Body,Body Name,Date,TransNo,Amount � (Excl VAT),Supplier name,Supplier ID,Expense Area,Expense Type,Expense Code
http://opendatacommunities.org/id/london-borough-council/sutton,London Borough of Sutton,09/11/2020,6981183,465.00 ,A T Sound Hire,10306,Resources Directorate,Materials - General,F100
http://opendatacommunities.org/id/london-borough-council/sutton,London Borough of Sutton,29/09/2020,6980879,469.40 ,A Wilderness Way Ltd,35014,Peoples Services Directorate,Client Care/Assistance,H301
http://opendatacommunities.org/id/london-borough-council/sutton,London Borough of Sutton,31/08/2020,6981082,838.30 ,A Wilderness Way Ltd,35014,Peoples Services Directorate,Client Care/Assistance,H301
http://opendatacommunities.org/id/london-borough-council/sutton,London Borough of Sutton,30/10/2020,6981083,"1,000.34 ",A Wilderness Way Ltd,35014,Peoples Services Directorate,Client Care/Assistance,H301
http://opendatacommunities.org/id/london-borough-council/sutton,London Borough of Sutton,30/07/2020,6981086,"1,056.54 ",A Wilderness Way Ltd,35014,Peoples Services Directorate,Client Care/Assistance,H301
http://opendatacommunities.org/id/london-borough-council/sutton,London Borough of Sutton,01/10/2020,40467679,"33,635.00 ",A Wilderness Way Ltd,35014,Peoples Services Directorate,Residential Care-Children,G330
http://opendatacommunities.org/id/london-borough-council/sutton,London Borough of Sutton,01/10/2020,40467733,"9,471.41 ",A Wilderness Way Ltd,35014,Peoples Services Directorate,Residential Care-Children,G330
http://opendatacommunities.org/id/london-borough-council/sutton,London Borough of Sutton,01/10/2020,40467734,"5,100.00 ",A Wilderness Way Ltd,35014,Peoples Services Directorate,Residential Care-Children,G330
http://opendatacommunities.org/id/london-borough-council/sutton,London Borough of Sutton,08/01/2019,6980447,450.00 ,Abbott Toxicology Plc,24389,Peoples Services Directorate,Children Assessments,G329
http://opendatacommunities.org/id/london-borough-council/sutton,London Borough of Sutton,14/03/2019,6980448,773.00 ,Abbott Toxicology Plc,24389,Peoples Services Directorate,Children Assessments,G329
http://opendatacommunities.org/id/london-borough-council/sutton,London Borough of Sutton,15/11/2018,6980450,581.00 ,Abbott Toxicology Plc,24389,Peoples Services Directorate,Children Assessments,G329
http://opendatacommunities.org/id/london-borough-council/sutton,London Borough of Sutton,04/07/2019,6980451,581.00 ,Abbott Toxicology Plc,24389,Peoples Services Directorate,Children Assessments,G329
http://opendatacommunities.org/id/london-borough-council/sutton,London Borough of Sutton,17/11/2020,1301878,"7,436.00 ",Absolute Care Services Ltd,10021,Peoples Services Directorate,Contract Cleaning,D806
http://opendatacommunities.org/id/london-borough-council/sutton,London Borough of Sutton,17/11/2020,1301879,"8,281.00 ",Absolute Care Services Ltd,10021,Peoples Services Directorate,Contract Cleaning,D806
http://opendatacommunities.org/id/london-borough-council/sutton,London Borough of Sutton,26/10/2020,6980212,"5,348.23 ",Absolute Care Services Ltd,10021,Peoples Services Directorate,Homecare Core Services,G336
http://opendatacommunities.org/id/london-borough-council/sutton,London Borough of Sutton,26/10/2020,6980213,"5,589.89 ",Absolute Care Services Ltd,10021,Peoples Services Directorate,Homecare Core Services,G336
http://opendatacommunities.org/id/london-borough-council/sutton,London Borough of Sutton,26/10/2020,6980214,"6,357.91 ",Absolute Care Services Ltd,10021,Peoples Services Directorate,Homecare Core Services,G336
http://opendatacommunities.org/id/london-borough-council/sutton,London Borough of Sutton,02/11/2020,6980843,"5,348.23 ",Absolute Care Services Ltd,10021,Peoples Services Directorate,Homecare Core Services,G336
http://opendatacommunities.org/id/london-borough-council/sutton,London Borough of Sutton,02/11/2020,6980844,"6,357.91 ",Absolute Care Services Ltd,10021,Peoples Services Directorate,Homecare Core Services,G336
http://opendatacommunities.org/id/london-borough-council/sutton,London Borough of Sutton,02/11/2020,6980845,"5,589.89 ",Absolute Care Services Ltd,10021,Peoples Services Directorate,Homecare Core Services,G336
http://opendatacommunities.org/id/london-borough-council/sutton,London Borough of Sutton,09/11/2020,6981190,"6,357.91 ",Absolute Care Services Ltd,10021,Peoples Services Directorate,Homecare Core Services,G336
http://opendatacommunities.org/id/london-borough-council/sutton,London Borough of Sutton,09/11/2020,6981209,"5,348.23 ",Absolute Care Services Ltd,10021,Peoples Services Directorate,Homecare Core Services,G336
http://opendatacommunities.org/id/london-borough-council/sutton,London Borough of Sutton,09/11/2020,6981212,"5,589.89 ",Absolute Care Services Ltd,10021,Peoples Services Directorate,Homecare Core Services,G336
http://opendatacommunities.org/id/london-borough-council/sutton,London Borough of Sutton,16/11/2020,6981455,"5,589.89 ",Absolute Care Services Ltd,10021,Peoples Services Directorate,Homecare Core Services,G336
http://opendatacommunities.org/id/london-borough-council/sutton,London Borough of Sutton,16/11/2020,6981456,"6,357.91 ",Absolute Care Services Ltd,10021,Peoples Services Directorate,Homecare Core Services,G336
http://opendatacommunities.org/id/london-borough-council/sutton,London Borough of Sutton,16/11/2020,6981461,"5,348.23 ",Absolute Care Services Ltd,10021,Peoples Services Directorate,Homecare Core Services,G336
http://opendatacommunities.org/id/london-borough-council/sutton,London Borough of Sutton,23/11/2020,6981807,"6,357.91 ",Absolute Care Services Ltd,10021,Peoples Services Directorate,Homecare Core Services,G336
http://opendatacommunities.org/id/london-borough-council/sutton,London Borough of Sutton,27/09/2020,40468096,516.62 ,Absolute Care Services Ltd,10021,Peoples Services Directorate,Home Care,G334
http://opendatacommunities.org/id/london-borough-council/sutton,London Borough of Sutton,27/09/2020,40468170,734.58 ,Absolute Care Services Ltd,10021,Peoples Services Directorate,Home Care,G334
http://opendatacommunities.org/id/london-borough-council/sutton,London Borough of Sutton,04/10/2020,40468171,734.58 ,Absolute Care Services Ltd,10021,Peoples Services Directorate,Home Care,G334
http://opendatacommunities.org/id/london-borough-council/sutton,London Borough of Sutton,27/09/2020,40468184,603.41 ,Absolute Care Services Ltd,10021,Peoples Services Directorate,Home Care,G334
http://opendatacommunities.org/id/london-borough-council/sutton,London Borough of Sutton,04/10/2020,40468185,638.39 ,Absolute Care Services Ltd,10021,Peoples Services Directorate,Home Care,G334
http://opendatacommunities.org/id/london-borough-council/sutton,London Borough of Sutton,04/10/2020,40468210,509.44 ,Absolute Care Services Ltd,10021,Peoples Services Directorate,Home Care,G334
http://opendatacommunities.org/id/london-borough-council/sutton,London Borough of Sutton,27/09/2020,40468232,428.51 ,Absolute Care Services Ltd,10021,Peoples Services Directorate,Home Care,G334
http://opendatacommunities.org/id/london-borough-council/sutton,London Borough of Sutton,04/10/2020,40468233,428.51 ,Absolute Care Services Ltd,10021,Peoples Services Directorate,Home Care,G334
http://opendatacommunities.org/id/london-borough-council/sutton,London Borough of Sutton,11/10/2020,40469411,495.25 ,Absolute Care Services Ltd,10021,Peoples Services Directorate,Home Care,G334
http://opendatacommunities.org/id/london-borough-council/sutton,London Borough of Sutton,31/10/2020,6980885,966.00 ,Access Independent Ltd,24086,Health and Wellbeing Directorate,Mobility Scheme for the Disabled,H401
http://opendatacommunities.org/id/london-borough-council/sutton,London Borough of Sutton,30/10/2020,40466747,"2,903.20 ",Acorn Lodge,15804,Peoples Services Directorate,Residential Care - Ext Provider,G310
http://opendatacommunities.org/id/london-borough-council/sutton,London Borough of Sutton,27/11/2020,40474008,"2,903.20 ",Acorn Lodge,15804,Peoples Services Directorate,Residential Care - Ext Provider,G310
http://opendatacommunities.org/id/london-borough-council/sutton,London Borough of Sutton,30/10/2020,40466838,"3,115.36 ",Acorn Residential Home,15828,Peoples Services Directorate,Residential Care - Ext Provider,G310
http://opendatacommunities.org/id/london-borough-council/sutton,London Borough of Sutton,27/11/2020,40474118,"3,115.36 ",Acorn Residential Home,15828,Peoples Services Directorate,Residential Care - Ext Provider,G310
http://opendatacommunities.org/id/london-borough-council/sutton,London Borough of Sutton,24/11/2020,6981948,"2,864.00 ",Action For Children Services Ltd,13159,Peoples Services Directorate,Respite Care,G333
http://opendatacommunities.org/id/london-borough-council/sutton,London Borough of Sutton,10/11/2020,1301594,"2,940.00 ",Active Prospects,13617,Peoples Services Directorate,Contract Cleaning,D806
http://opendatacommunities.org/id/london-borough-council/sutton,London Borough of Sutton,21/10/2020,6979965,"178,618.09 ",ADAM HTT LTD,34364,Peoples Services Directorate,Hired Peoples Transport (Children),E072
http://opendatacommunities.org/id/london-borough-council/sutton,London Borough of Sutton,28/10/2020,6980237,"137,288.90 ",ADAM HTT LTD,34364,Peoples Services Directorate,Hired Peoples Transport (Children),E072
http://opendatacommunities.org/id/london-borough-council/sutton,London Borough of Sutton,04/11/2020,6980697,"20,422.20 ",ADAM HTT LTD,34364,Peoples Services Directorate,Hired Peoples Transport (Children),E072
http://opendatacommunities.org/id/london-borough-council/sutton,London Borough of Sutton,11/11/2020,6981064,"81,574.23 ",ADAM HTT LTD,34364,Peoples Services Directorate,Hired Peoples Transport (Children),E072
http://opendatacommunities.org/id/london-borough-council/sutton,London Borough of Sutton,11/11/2020,6981064,"41,183.83 ",ADAM HTT LTD,34364,Peoples Services Directorate,Hired Peoples Transport (Children),E072
http://opendatacommunities.org/id/london-borough-council/sutton,London Borough of Sutton,04/11/2020,6981243,"2,500.00 ",ADAM HTT LTD,34364,Resources Directorate,Subscriptions - General,F450
http://opendatacommunities.org/id/london-borough-council/sutton,London Borough of Sutton,18/11/2020,6981539,"58,809.96 ",ADAM HTT LTD,34364,Peoples Services Directorate,Hired Peoples Transport (Children),E072
http://opendatacommunities.org/id/london-borough-council/sutton,London Borough of Sutton,18/11/2020,6981539,"103,354.75 ",ADAM HTT LTD,34364,Peoples Services Directorate,Hired Peoples Transport (Children),E072
http://opendatacommunities.org/id/london-borough-council/sutton,London Borough of Sutton,25/11/2020,6981953,"109,792.35 ",ADAM HTT LTD,34364,Peoples Services Directorate,Hired Peoples Transport (Children),E072
http://opendatacommunities.org/id/london-borough-council/sutton,London Borough of Sutton,25/11/2020,6981953,"61,951.40 ",ADAM HTT LTD,34364,Peoples Services Directorate,Hired Peoples Transport (Children),E072
http://opendatacommunities.org/id/london-borough-council/sutton,London Borough of Sutton,22/11/2020,6981784,"3,500.00 ",Adaptive Solutions Limited,35710,"Environment, Housing & Regeneration Directorate",Special,D535
http://opendatacommunities.org/id/london-borough-council/sutton,London Borough of Sutton,02/11/2020,1300859,"235,205.83 ",Adecco Uk Ltd,10059,Resources Directorate,Suspense/Holding Accounts,X550
http://opendatacommunities.org/id/london-borough-council/sutton,London Borough of Sutton,09/11/2020,1301588,"224,694.60 ",Adecco Uk Ltd,10059,Resources Directorate,Suspense/Holding Accounts,X550
http://opendatacommunities.org/id/london-borough-council/sutton,London Borough of Sutton,16/11/2020,1301804,"224,322.11 ",Adecco Uk Ltd,10059,Resources Directorate,Suspense/Holding Accounts,X550
http://opendatacommunities.org/id/london-borough-council/sutton,London Borough of Sutton,23/11/2020,1302107,"6,050,000.00 ",Adecco Uk Ltd,10059,Resources Directorate,Suspense/Holding Accounts,X550
http://opendatacommunities.org/id/london-borough-council/sutton,London Borough of Sutton,30/11/2020,1302814,"242,945.64 ",Adecco Uk Ltd,10059,Resources Directorate,Suspense/Holding Accounts,X550
http://opendatacommunities.org/id/london-borough-council/sutton,London Borough of Sutton,01/10/2020,6981132,"1,679.84 ",AdEPT Education,10310,Peoples Services Directorate,Telephones - Rentals,F370
http://opendatacommunities.org/id/london-borough-council/sutton,London Borough of Sutton,06/11/2020,6981093,"5,483.70 ",Advanced Demand Side Management Ltd,26989,Resources Directorate,Water - Metered,D690
http://opendatacommunities.org/id/london-borough-council/sutton,London Borough of Sutton,31/10/2020,6981519,"2,243.40 ",Advanced Demand Side Management Ltd,26989,Resources Directorate,Water - Metered,D690
http://opendatacommunities.org/id/london-borough-council/sutton,London Borough of Sutton,31/10/2020,6981521,"4,454.01 ",Advanced Demand Side Management Ltd,26989,Resources Directorate,Water - Metered,D690
http://opendatacommunities.org/id/london-borough-council/sutton,London Borough of Sutton,31/10/2020,6980557,"12,916.69 ",Advocacy For All,24795,Peoples Services Directorate,Provider Contract Payments,F470
http://opendatacommunities.org/id/london-borough-council/sutton,London Borough of Sutton,31/10/2020,6980558,"2,916.67 ",Advocacy For All,24795,Peoples Services Directorate,Provider Contract Payments,F470
http://opendatacommunities.org/id/london-borough-council/sutton,London Borough of Sutton,06/11/2020,6980905,"8,200.00 ",AECOM Ltd,22196,"Environment, Housing & Regeneration Directorate",Feasibility Studies,Y192
http://opendatacommunities.org/id/london-borough-council/sutton,London Borough of Sutton,27/10/2020,40467641,"3,538.34 ",Affinity Fostering Services Ltd,26535,Peoples Services Directorate,Foster Parents,G326
http://opendatacommunities.org/id/london-borough-council/sutton,London Borough of Sutton,27/10/2020,40467642,"3,361.64 ",Affinity Fostering Services Ltd,26535,Peoples Services Directorate,Foster Parents,G326
http://opendatacommunities.org/id/london-borough-council/sutton,London Borough of Sutton,27/10/2020,40467683,"3,361.64 ",Affinity Fostering Services Ltd,26535,Peoples Services Directorate,Foster Parents,G326
http://opendatacommunities.org/id/london-borough-council/sutton,London Borough of Sutton,27/10/2020,40467729,"3,538.34 ",Affinity Fostering Services Ltd,26535,Peoples Services Directorate,Foster Parents,G326
http://opendatacommunities.org/id/london-borough-council/sutton,London Borough of Sutton,15/10/2020,6980575,"6,750.02 ",AIMEDIADATA LTD,35692,Resources Directorate,Corporate Publicity,F356
http://opendatacommunities.org/id/london-borough-council/sutton,London Borough of Sutton,30/10/2020,40466844,"7,511.00 ",Aims Care Partnership (Leighton House Ltd),12628,Peoples Services Directorate,Residential Care - Ext Provider,G310
http://opendatacommunities.org/id/london-borough-council/sutton,London Borough of Sutton,27/11/2020,40474135,"7,511.00 ",Aims Care Partnership (Leighton House Ltd),12628,Peoples Services Directorate,Residential Care - Ext Provider,G310
http://opendatacommunities.org/id/london-borough-council/sutton,London Borough of Sutton,30/10/2020,40466994,"8,400.16 ",Aitch Care Homes,20446,Peoples Services Directorate,Residential Care - Ext Provider,G310
http://opendatacommunities.org/id/london-borough-council/sutton,London Borough of Sutton,27/11/2020,40474262,"8,400.16 ",Aitch Care Homes,20446,Peoples Services Directorate,Residential Care - Ext Provider,G310
http://opendatacommunities.org/id/london-borough-council/sutton,London Borough of Sutton,13/12/2020,6981682,997.10 ,Alfred O Okrah & Rebecca M Quansah,34836,"Environment, Housing & Regeneration Directorate",Temporary Protection - Homeless Persons,H300
http://opendatacommunities.org/id/london-borough-council/sutton,London Borough of Sutton,13/12/2020,6981684,997.10 ,Alfred O Okrah & Rebecca M Quansah,34836,"Environment, Housing & Regeneration Directorate",Temporary Protection - Homeless Persons,H300
http://opendatacommunities.org/id/london-borough-council/sutton,London Borough of Sutton,31/10/2020,40467706,"4,561.34 ",All4U Fostering Ltd,30193,Peoples Services Directorate,Foster Parents,G326
http://opendatacommunities.org/id/london-borough-council/sutton,London Borough of Sutton,27/10/2020,6980195,"1,480.00 ",Allen Lane Ltd,18334,Resources Directorate,Agency Staff - Other,A301
http://opendatacommunities.org/id/london-borough-council/sutton,London Borough of Sutton,27/10/2020,6980206,"1,868.75 ",Allen Lane Ltd,18334,Resources Directorate,Agency Staff - Other,A301
http://opendatacommunities.org/id/london-borough-council/sutton,London Borough of Sutton,03/11/2020,6980619,"1,850.00 ",Allen Lane Ltd,18334,Resources Directorate,Agency Staff - Other,A301
http://opendatacommunities.org/id/london-borough-council/sutton,London Borough of Sutton,03/11/2020,6980620,"3,450.00 ",Allen Lane Ltd,18334,Resources Directorate,Agency Staff - Other,A301
http://opendatacommunities.org/id/london-borough-council/sutton,London Borough of Sutton,03/11/2020,6980621,"2,748.50 ",Allen Lane Ltd,18334,Resources Directorate,Agency Staff - Other,A301
http://opendatacommunities.org/id/london-borough-council/sutton,London Borough of Sutton,03/11/2020,6980622,"1,868.75 ",Allen Lane Ltd,18334,Resources Directorate,Agency Staff - Other,A301
http://opendatacommunities.org/id/london-borough-council/sutton,London Borough of Sutton,03/11/2020,6980623,"1,868.75 ",Allen Lane Ltd,18334,Resources Directorate,Agency Staff - Other,A301
http://opendatacommunities.org/id/london-borough-council/sutton,London Borough of Sutton,10/11/2020,6980988,"3,450.00 ",Allen Lane Ltd,18334,Resources Directorate,Agency Staff - Other,A301
http://opendatacommunities.org/id/london-borough-council/sutton,London Borough of Sutton,10/11/2020,6980989,"1,850.00 ",Allen Lane Ltd,18334,Resources Directorate,Agency Staff - Other,A301
http://opendatacommunities.org/id/london-borough-council/sutton,London Borough of Sutton,10/11/2020,6980991,"2,748.50 ",Allen Lane Ltd,18334,Resources Directorate,Agency Staff - Other,A301
http://opendatacommunities.org/id/london-borough-council/sutton,London Borough of Sutton,10/11/2020,6980992,"1,868.75 ",Allen Lane Ltd,18334,Resources Directorate,Agency Staff - Other,A301
http://opendatacommunities.org/id/london-borough-council/sutton,London Borough of Sutton,10/11/2020,6980993,"1,868.75 ",Allen Lane Ltd,18334,Resources Directorate,Agency Staff - Other,A301
http://opendatacommunities.org/id/london-borough-council/sutton,London Borough of Sutton,17/11/2020,6981467,"1,850.00 ",Allen Lane Ltd,18334,Resources Directorate,Agency Staff - Other,A301
http://opendatacommunities.org/id/london-borough-council/sutton,London Borough of Sutton,17/11/2020,6981468,"3,450.00 ",Allen Lane Ltd,18334,Resources Directorate,Agency Staff - Other,A301
http://opendatacommunities.org/id/london-borough-council/sutton,London Borough of Sutton,17/11/2020,6981469,"2,748.50 ",Allen Lane Ltd,18334,Resources Directorate,Agency Staff - Other,A301
http://opendatacommunities.org/id/london-borough-council/sutton,London Borough of Sutton,17/11/2020,6981470,"1,868.75 ",Allen Lane Ltd,18334,Resources Directorate,Agency Staff - Other,A301
http://opendatacommunities.org/id/london-borough-council/sutton,London Borough of Sutton,17/11/2020,6981471,"1,868.75 ",Allen Lane Ltd,18334,Resources Directorate,Agency Staff - Other,A301
http://opendatacommunities.org/id/london-borough-council/sutton,London Borough of Sutton,24/11/2020,6981834,"3,450.00 ",Allen Lane Ltd,18334,Resources Directorate,Agency Staff - Other,A301
http://opendatacommunities.org/id/london-borough-council/sutton,London Borough of Sutton,24/11/2020,6981835,"1,868.75 ",Allen Lane Ltd,18334,Resources Directorate,Agency Staff - Other,A301
http://opendatacommunities.org/id/london-borough-council/sutton,London Borough of Sutton,24/11/2020,6981836,"1,850.00 ",Allen Lane Ltd,18334,Resources Directorate,Agency Staff - Other,A301
http://opendatacommunities.org/id/london-borough-council/sutton,London Borough of Sutton,24/11/2020,6981837,"2,198.80 ",Allen Lane Ltd,18334,Resources Directorate,Agency Staff - Other,A301
http://opendatacommunities.org/id/london-borough-council/sutton,London Borough of Sutton,24/11/2020,6981838,"1,868.75 ",Allen Lane Ltd,18334,Resources Directorate,Agency Staff - Other,A301
http://opendatacommunities.org/id/london-borough-council/sutton,London Borough of Sutton,26/10/2020,6981606,"11,859.13 ",Allgood Secure Ltd,24853,"Environment, Housing & Regeneration Directorate",Building Works -Main Contractor,Y350
http://opendatacommunities.org/id/london-borough-council/sutton,London Borough of Sutton,29/09/2020,6981607,"1,586.85 ",Allgood Secure Ltd,24853,"Environment, Housing & Regeneration Directorate",Building Works -Main Contractor,Y350
http://opendatacommunities.org/id/london-borough-council/sutton,London Borough of Sutton,30/10/2020,40467026,"3,625.00 ",Alliance Care (Dale Homes) Ltd T/A Uplands Care Home,26835,Peoples Services Directorate,Nursing Care - Ext Provider,G311
http://opendatacommunities.org/id/london-borough-council/sutton,London Borough of Sutton,27/11/2020,40474345,"3,625.00 ",Alliance Care (Dale Homes) Ltd T/A Uplands Care Home,26835,Peoples Services Directorate,Nursing Care - Ext Provider,G311
http://opendatacommunities.org/id/london-borough-council/sutton,London Borough of Sutton,30/10/2020,40466792,"4,454.16 ",Allied Care (Mhs) Ltd,10145,Peoples Services Directorate,Residential Care - Ext Provider,G310
http://opendatacommunities.org/id/london-borough-council/sutton,London Borough of Sutton,27/11/2020,40474067,"4,454.16 ",Allied Care (Mhs) Ltd,10145,Peoples Services Directorate,Residential Care - Ext Provider,G310
http://opendatacommunities.org/id/london-borough-council/sutton,London Borough of Sutton,27/10/2020,6980215,512.87 ,Allied Publicity Services (Manchester) Ltd,34039,Health and Wellbeing Directorate,Mobility Scheme for the Disabled,H401
http://opendatacommunities.org/id/london-borough-council/sutton,London Borough of Sutton,01/11/2020,6980612,920.06 ,Allstar Business Solutions,24482,"Environment, Housing & Regeneration Directorate",Fuel Etc,E030
http://opendatacommunities.org/id/london-borough-council/sutton,London Borough of Sutton,30/10/2020,40466794,"4,505.60 ",Allswell Care Services Ltd,20761,Peoples Services Directorate,Residential Care - Ext Provider,G310
http://opendatacommunities.org/id/london-borough-council/sutton,London Borough of Sutton,30/10/2020,40466845,"6,370.00 ",Allswell Care Services Ltd,20761,Peoples Services Directorate,Residential Care - Ext Provider,G310
http://opendatacommunities.org/id/london-borough-council/sutton,London Borough of Sutton,30/10/2020,40466891,"3,563.52 ",Allswell Care Services Ltd,20761,Peoples Services Directorate,Residential Care - Ext Provider,G310
http://opendatacommunities.org/id/london-borough-council/sutton,London Borough of Sutton,27/11/2020,40474074,"4,505.60 ",Allswell Care Services Ltd,20761,Peoples Services Directorate,Residential Care - Ext Provider,G310
http://opendatacommunities.org/id/london-borough-council/sutton,London Borough of Sutton,27/11/2020,40474148,"6,370.00 ",Allswell Care Services Ltd,20761,Peoples Services Directorate,Residential Care - Ext Provider,G310
http://opendatacommunities.org/id/london-borough-council/sutton,London Borough of Sutton,27/11/2020,40474170,"3,563.52 ",Allswell Care Services Ltd,20761,Peoples Services Directorate,Residential Care - Ext Provider,G310
http://opendatacommunities.org/id/london-borough-council/sutton,London Borough of Sutton,04/06/2020,6973474,"37,111.30 ",Almond Pharma Ltd,35483,Resources Directorate,Health and Safety Equipment,F005
http://opendatacommunities.org/id/london-borough-council/sutton,London Borough of Sutton,17/11/2020,1301877,"2,535.00 ",Ambient Support Limited,21702,Peoples Services Directorate,Contract Cleaning,D806
http://opendatacommunities.org/id/london-borough-council/sutton,London Borough of Sutton,11/11/2020,6981121,"7,200.00 ",Ambient Support Limited,21702,Peoples Services Directorate,Provider Contract Payments,F470
http://opendatacommunities.org/id/london-borough-council/sutton,London Borough of Sutton,25/11/2020,6981960,"9,588.31 ",Ambient Support Limited,21702,Peoples Services Directorate,Provider Contract Payments,F470
http://opendatacommunities.org/id/london-borough-council/sutton,London Borough of Sutton,25/11/2020,6981964,"22,754.40 ",Ambient Support Limited,21702,Peoples Services Directorate,Provider Contract Payments,F470
http://opendatacommunities.org/id/london-borough-council/sutton,London Borough of Sutton,30/10/2020,40466680,"3,340.00 ",ANA Treatment Centres Ltd,10196,Peoples Services Directorate,Interim Placements - Ext Provider,G317
http://opendatacommunities.org/id/london-borough-council/sutton,London Borough of Sutton,30/10/2020,40466727,"3,313.57 ",ANA Treatment Centres Ltd,10196,Peoples Services Directorate,Interim Placements - Ext Provider,G317
http://opendatacommunities.org/id/london-borough-council/sutton,London Borough of Sutton,27/11/2020,40474009,"2,780.00 ",ANA Treatment Centres Ltd,10196,Peoples Services Directorate,Interim Placements - Ext Provider,G317
http://opendatacommunities.org/id/london-borough-council/sutton,London Borough of Sutton,27/11/2020,40474373,"1,789.29 ",ANA Treatment Centres Ltd,10196,Peoples Services Directorate,Interim Placements - Ext Provider,G317
http://opendatacommunities.org/id/london-borough-council/sutton,London Borough of Sutton,01/10/2020,40467680,"3,361.33 ",Anchor Foster Care Services Ltd,10179,Peoples Services Directorate,Foster Parents,G326
http://opendatacommunities.org/id/london-borough-council/sutton,London Borough of Sutton,30/10/2020,40466996,"2,662.40 ",Anchor Trust,17878,Peoples Services Directorate,Residential Care - Ext Provider,G310
http://opendatacommunities.org/id/london-borough-council/sutton,London Borough of Sutton,27/11/2020,40474312,"2,662.40 ",Anchor Trust,17878,Peoples Services Directorate,Residential Care - Ext Provider,G310
http://opendatacommunities.org/id/london-borough-council/sutton,London Borough of Sutton,10/11/2020,40472605,"28,041.58 ",Anderida Adolescent Care Ltd,26195,Peoples Services Directorate,Residential Care-Children,G330
http://opendatacommunities.org/id/london-borough-council/sutton,London Borough of Sutton,02/11/2020,6980587,950.00 ,Andy Stewart,26808,"Environment, Housing & Regeneration Directorate",Temporary Protection - Homeless Persons,H300
http://opendatacommunities.org/id/london-borough-council/sutton,London Borough of Sutton,02/11/2020,6980588,950.00 ,Andy Stewart,26808,"Environment, Housing & Regeneration Directorate",Temporary Protection - Homeless Persons,H300
http://opendatacommunities.org/id/london-borough-council/sutton,London Borough of Sutton,30/11/2020,6982223,950.00 ,Andy Stewart,26808,"Environment, Housing & Regeneration Directorate",Temporary Protection - Homeless Persons,H300
http://opendatacommunities.org/id/london-borough-council/sutton,London Borough of Sutton,07/10/2020,6980252,"7,578.46 ",Aon UK Limited,26323,Resources Directorate,Insurance Premiums (Other),F330
http://opendatacommunities.org/id/london-borough-council/sutton,London Borough of Sutton,02/10/2020,6980253,"1,152.48 ",Aon UK Limited,26323,Resources Directorate,Insurance Premiums (Other),F330
http://opendatacommunities.org/id/london-borough-council/sutton,London Borough of Sutton,29/10/2020,6981207,"1,000.51 ",Aon UK Limited,26323,Resources Directorate,Insurance Premiums (Other),F330
http://opendatacommunities.org/id/london-borough-council/sutton,London Borough of Sutton,31/10/2020,6980692,"8,330.52 ",Apetito Ltd,10206,Health and Wellbeing Directorate,Provisions - General,F150
http://opendatacommunities.org/id/london-borough-council/sutton,London Borough of Sutton,31/10/2020,6981309,"11,643.60 ",Apex Housing Solutions Ltd,29950,"Environment, Housing & Regeneration Directorate",Bed and Breakfast Accommodation,G400
http://opendatacommunities.org/id/london-borough-council/sutton,London Borough of Sutton,30/10/2020,6981310,"1,116.00 ",APL Properties,26226,"Environment, Housing & Regeneration Directorate",Bed and Breakfast Accommodation,G400
http://opendatacommunities.org/id/london-borough-council/sutton,London Borough of Sutton,12/10/2020,6977764,795.00 ,Approved Multi Services Ltd,97774,"Environment, Housing & Regeneration Directorate",Road Markings,D523
http://opendatacommunities.org/id/london-borough-council/sutton,London Borough of Sutton,12/10/2020,6977764,"2,380.00 ",Approved Multi Services Ltd,97774,"Environment, Housing & Regeneration Directorate",Road Markings,D523
http://opendatacommunities.org/id/london-borough-council/sutton,London Borough of Sutton,31/10/2020,6980873,"2,938.00 ",Architype Ltd,25419,Peoples Services Directorate,External Fees  - Architects,Y100
http://opendatacommunities.org/id/london-borough-council/sutton,London Borough of Sutton,28/10/2020,6980571,"1,273.76 ",Arthur Rai Medical Services Ltd,35084,Health and Wellbeing Directorate,Agency Staff - Other,A301
http://opendatacommunities.org/id/london-borough-council/sutton,London Borough of Sutton,04/11/2020,6981302,"1,005.60 ",Arthur Rai Medical Services Ltd,35084,Health and Wellbeing Directorate,Agency Staff - Other,A301
http://opendatacommunities.org/id/london-borough-council/sutton,London Borough of Sutton,04/12/2020,6981303,"1,273.76 ",Arthur Rai Medical Services Ltd,35084,Health and Wellbeing Directorate,Agency Staff - Other,A301
http://opendatacommunities.org/id/london-borough-council/sutton,London Borough of Sutton,04/11/2020,6981304,"1,257.00 ",Arthur Rai Medical Services Ltd,35084,Health and Wellbeing Directorate,Agency Staff - Other,A301
http://opendatacommunities.org/id/london-borough-council/sutton,London Borough of Sutton,11/11/2020,6981791,"1,257.00 ",Arthur Rai Medical Services Ltd,35084,Health and Wellbeing Directorate,Agency Staff - Other,A301
http://opendatacommunities.org/id/london-borough-council/sutton,London Borough of Sutton,11/11/2020,6981792,754.20 ,Arthur Rai Medical Services Ltd,35084,Health and Wellbeing Directorate,Agency Staff - Other,A301
http://opendatacommunities.org/id/london-borough-council/sutton,London Borough of Sutton,11/11/2020,6981793,754.20 ,Arthur Rai Medical Services Ltd,35084,Health and Wellbeing Directorate,Agency Staff - Other,A301
http://opendatacommunities.org/id/london-borough-council/sutton,London Borough of Sutton,11/11/2020,6981794,502.80 ,Arthur Rai Medical Services Ltd,35084,Health and Wellbeing Directorate,Agency Staff - Other,A301
http://opendatacommunities.org/id/london-borough-council/sutton,London Borough of Sutton,11/11/2020,6981795,"1,290.52 ",Arthur Rai Medical Services Ltd,35084,Health and Wellbeing Directorate,Agency Staff - Other,A301
http://opendatacommunities.org/id/london-borough-council/sutton,London Borough of Sutton,18/11/2020,6982024,"1,257.00 ",Arthur Rai Medical Services Ltd,35084,Health and Wellbeing Directorate,Agency Staff - Other,A301
http://opendatacommunities.org/id/london-borough-council/sutton,London Borough of Sutton,18/11/2020,6982026,"1,307.28 ",Arthur Rai Medical Services Ltd,35084,Health and Wellbeing Directorate,Agency Staff - Other,A301
http://opendatacommunities.org/id/london-borough-council/sutton,London Borough of Sutton,03/11/2020,1300871,"5,512.50 ",Ashurst Lodge Healthcare Ltd,35731,Peoples Services Directorate,Contract Cleaning,D806
http://opendatacommunities.org/id/london-borough-council/sutton,London Borough of Sutton,30/10/2020,40466618,"3,920.00 ",Aspen Place,35583,Peoples Services Directorate,Nursing Care - Ext Provider,G311
http://opendatacommunities.org/id/london-borough-council/sutton,London Borough of Sutton,27/11/2020,40473970,"3,920.00 ",Aspen Place,35583,Peoples Services Directorate,Nursing Care - Ext Provider,G311
http://opendatacommunities.org/id/london-borough-council/sutton,London Borough of Sutton,30/10/2020,40466860,"5,492.48 ",Aspens Charities,30002,Peoples Services Directorate,Residential Care - Ext Provider,G310
http://opendatacommunities.org/id/london-borough-council/sutton,London Borough of Sutton,27/11/2020,40474176,"5,492.48 ",Aspens Charities,30002,Peoples Services Directorate,Residential Care - Ext Provider,G310
http://opendatacommunities.org/id/london-borough-council/sutton,London Borough of Sutton,01/10/2020,40467716,"3,703.88 ",Aspirations Fostering Limited,35293,Peoples Services Directorate,Foster Parents,G326
http://opendatacommunities.org/id/london-borough-council/sutton,London Borough of Sutton,31/10/2020,6981317,"14,514.10 ",Assetgrove Lettings Ltd,28820,"Environment, Housing & Regeneration Directorate",Bed and Breakfast Accommodation,G400
http://opendatacommunities.org/id/london-borough-council/sutton,London Borough of Sutton,30/10/2020,6980429,"1,472.00 ",ASSOCIATON OF ACCOUNTING TECHNICIANS,34474,Peoples Services Directorate,Fees - Exams,F285
http://opendatacommunities.org/id/london-borough-council/sutton,London Borough of Sutton,20/11/2020,6981639,736.00 ,ASSOCIATON OF ACCOUNTING TECHNICIANS,34474,Peoples Services Directorate,Fees - Exams,F285
http://opendatacommunities.org/id/london-borough-council/sutton,London Borough of Sutton,12/11/2020,6981254,"1,503.20 ",Atalian Servest Limited,23051,Peoples Services Directorate,Building Cleaning Contract,G015
http://opendatacommunities.org/id/london-borough-council/sutton,London Borough of Sutton,12/11/2020,6981255,736.60 ,Atalian Servest Limited,23051,Peoples Services Directorate,Building Cleaning Contract,G015
http://opendatacommunities.org/id/london-borough-council/sutton,London Borough of Sutton,13/11/2020,6981364,"(72,463.49)",Atalian Servest Limited,23051,Resources Directorate,FM - Building Cleaning Contract - Servest,G611
http://opendatacommunities.org/id/london-borough-council/sutton,London Borough of Sutton,13/11/2020,6981371,"72,322.99 ",Atalian Servest Limited,23051,Resources Directorate,FM - Building Cleaning Contract - Servest,G611
http://opendatacommunities.org/id/london-borough-council/sutton,London Borough of Sutton,16/10/2020,6981840,"1,380.00 ",Athona Ltd,35649,Peoples Services Directorate,Agency Staff - Other,A301
http://opendatacommunities.org/id/london-borough-council/sutton,London Borough of Sutton,21/10/2020,6981841,"1,380.00 ",Athona Ltd,35649,Peoples Services Directorate,Agency Staff - Other,A301
http://opendatacommunities.org/id/london-borough-council/sutton,London Borough of Sutton,30/09/2020,6981842,"1,380.00 ",Athona Ltd,35649,Peoples Services Directorate,Agency Staff - Other,A301
http://opendatacommunities.org/id/london-borough-council/sutton,London Borough of Sutton,23/09/2020,6981843,"1,380.00 ",Athona Ltd,35649,Peoples Services Directorate,Agency Staff - Other,A301
http://opendatacommunities.org/id/london-borough-council/sutton,London Borough of Sutton,21/10/2020,6979947,"4,000.00 ",Atkins Ltd,10307,Peoples Services Directorate,External Fees  - Architects,Y100
http://opendatacommunities.org/id/london-borough-council/sutton,London Borough of Sutton,30/10/2020,40466621,"4,580.72 ",Autism & Aspergers Care Services,10327,Peoples Services Directorate,Residential Care - Ext Provider,G310
http://opendatacommunities.org/id/london-borough-council/sutton,London Borough of Sutton,27/11/2020,40473973,"4,580.72 ",Autism & Aspergers Care Services,10327,Peoples Services Directorate,Residential Care - Ext Provider,G310
http://opendatacommunities.org/id/london-borough-council/sutton,London Borough of Sutton,23/11/2020,6981764,"1,025.00 ",Auto Surveys Limited,35582,"Environment, Housing & Regeneration Directorate","Surveys, Trial Holes Etc",Y200
http://opendatacommunities.org/id/london-borough-council/sutton,London Borough of Sutton,30/10/2020,40466710,"13,274.80 ",Avens Ltd,35899,Peoples Services Directorate,Residential Care - Ext Provider,G310
http://opendatacommunities.org/id/london-borough-council/sutton,London Borough of Sutton,27/11/2020,40474026,"6,637.40 ",Avens Ltd,35899,Peoples Services Directorate,Residential Care - Ext Provider,G310
http://opendatacommunities.org/id/london-borough-council/sutton,London Borough of Sutton,02/11/2020,1301675,675.00 ,Avenue Primary Acadamy,26025,Peoples Services Directorate,Top-up Funding,G064
http://opendatacommunities.org/id/london-borough-council/sutton,London Borough of Sutton,01/12/2020,1302204,648.00 ,Avenue Primary Acadamy,26025,Peoples Services Directorate,Payments to Schools,G065
http://opendatacommunities.org/id/london-borough-council/sutton,London Borough of Sutton,04/11/2020,6980809,528.00 ,Axcis Education Recruitment,21583,Peoples Services Directorate,One to One Care,G335
http://opendatacommunities.org/id/london-borough-council/sutton,London Borough of Sutton,04/11/2020,6980815,"1,056.00 ",Axcis Education Recruitment,21583,Peoples Services Directorate,One to One Care,G335
http://opendatacommunities.org/id/london-borough-council/sutton,London Borough of Sutton,04/11/2020,6980821,792.00 ,Axcis Education Recruitment,21583,Peoples Services Directorate,One to One Care,G335
http://opendatacommunities.org/id/london-borough-council/sutton,London Borough of Sutton,04/11/2020,6980828,792.00 ,Axcis Education Recruitment,21583,Peoples Services Directorate,One to One Care,G335
http://opendatacommunities.org/id/london-borough-council/sutton,London Borough of Sutton,11/11/2020,6981437,"1,056.00 ",Axcis Education Recruitment,21583,Peoples Services Directorate,One to One Care,G335
http://opendatacommunities.org/id/london-borough-council/sutton,London Borough of Sutton,11/11/2020,6981440,"1,320.00 ",Axcis Education Recruitment,21583,Peoples Services Directorate,One to One Care,G335
http://opendatacommunities.org/id/london-borough-council/sutton,London Borough of Sutton,11/11/2020,6981441,792.00 ,Axcis Education Recruitment,21583,Peoples Services Directorate,One to One Care,G335
http://opendatacommunities.org/id/london-borough-council/sutton,London Borough of Sutton,11/11/2020,6981442,"1,848.00 ",Axcis Education Recruitment,21583,Peoples Services Directorate,One to One Care,G335
http://opendatacommunities.org/id/london-borough-council/sutton,London Borough of Sutton,11/11/2020,6981443,792.00 ,Axcis Education Recruitment,21583,Peoples Services Directorate,One to One Care,G335
http://opendatacommunities.org/id/london-borough-council/sutton,London Borough of Sutton,11/11/2020,6981446,528.00 ,Axcis Education Recruitment,21583,Peoples Services Directorate,One to One Care,G335
http://opendatacommunities.org/id/london-borough-council/sutton,London Borough of Sutton,18/11/2020,6981661,528.00 ,Axcis Education Recruitment,21583,Peoples Services Directorate,One to One Care,G335
http://opendatacommunities.org/id/london-borough-council/sutton,London Borough of Sutton,18/11/2020,6981662,"1,056.00 ",Axcis Education Recruitment,21583,Peoples Services Directorate,One to One Care,G335
http://opendatacommunities.org/id/london-borough-council/sutton,London Borough of Sutton,18/11/2020,6981665,528.00 ,Axcis Education Recruitment,21583,Peoples Services Directorate,One to One Care,G335
http://opendatacommunities.org/id/london-borough-council/sutton,London Borough of Sutton,18/11/2020,6981669,"1,320.00 ",Axcis Education Recruitment,21583,Peoples Services Directorate,One to One Care,G335
http://opendatacommunities.org/id/london-borough-council/sutton,London Borough of Sutton,18/11/2020,6981670,528.00 ,Axcis Education Recruitment,21583,Peoples Services Directorate,One to One Care,G335
http://opendatacommunities.org/id/london-borough-council/sutton,London Borough of Sutton,18/11/2020,6981673,"1,056.00 ",Axcis Education Recruitment,21583,Peoples Services Directorate,One to One Care,G335
http://opendatacommunities.org/id/london-borough-council/sutton,London Borough of Sutton,25/11/2020,6982039,528.00 ,Axcis Education Recruitment,21583,Peoples Services Directorate,One to One Care,G335
http://opendatacommunities.org/id/london-borough-council/sutton,London Borough of Sutton,25/11/2020,6982040,"1,584.00 ",Axcis Education Recruitment,21583,Peoples Services Directorate,One to One Care,G335
http://opendatacommunities.org/id/london-borough-council/sutton,London Borough of Sutton,25/11/2020,6982041,"1,056.00 ",Axcis Education Recruitment,21583,Peoples Services Directorate,One to One Care,G335
http://opendatacommunities.org/id/london-borough-council/sutton,London Borough of Sutton,25/11/2020,6982044,506.00 ,Axcis Education Recruitment,21583,Peoples Services Directorate,One to One Care,G335
http://opendatacommunities.org/id/london-borough-council/sutton,London Borough of Sutton,25/11/2020,6982047,528.00 ,Axcis Education Recruitment,21583,Peoples Services Directorate,One to One Care,G335
http://opendatacommunities.org/id/london-borough-council/sutton,London Borough of Sutton,25/11/2020,6982048,"1,342.00 ",Axcis Education Recruitment,21583,Peoples Services Directorate,One to One Care,G335
http://opendatacommunities.org/id/london-borough-council/sutton,London Borough of Sutton,25/11/2020,6982049,814.00 ,Axcis Education Recruitment,21583,Peoples Services Directorate,One to One Care,G335
http://opendatacommunities.org/id/london-borough-council/sutton,London Borough of Sutton,01/12/2020,1302205,600.00 ,Aylsham Learning Federation,35670,Peoples Services Directorate,Payments to Schools,G065
http://opendatacommunities.org/id/london-borough-council/sutton,London Borough of Sutton,25/09/2020,6980849,"2,688.00 ",Baily Garner (Health & Safety) Ltd,35418,"Environment, Housing & Regeneration Directorate",External Fees  - Other,Y130
http://opendatacommunities.org/id/london-borough-council/sutton,London Borough of Sutton,22/10/2020,6980059,741.00 ,Balmont Ltd,97636,Peoples Services Directorate,Health and Safety Equipment,F005
http://opendatacommunities.org/id/london-borough-council/sutton,London Borough of Sutton,09/11/2020,6980917,"6,431.23 ",Balmont Ltd,97636,Peoples Services Directorate,Provider Contract Payments,F470
http://opendatacommunities.org/id/london-borough-council/sutton,London Borough of Sutton,09/11/2020,6980918,981.60 ,Balmont Ltd,97636,Peoples Services Directorate,Provider Contract Payments,F470
http://opendatacommunities.org/id/london-borough-council/sutton,London Borough of Sutton,09/11/2020,6980919,"1,920.00 ",Balmont Ltd,97636,Peoples Services Directorate,Provider Contract Payments,F470
http://opendatacommunities.org/id/london-borough-council/sutton,London Borough of Sutton,27/11/2020,6982124,"1,589.76 ",Balmont Ltd,97636,Peoples Services Directorate,Provider Contract Payments,F470
http://opendatacommunities.org/id/london-borough-council/sutton,London Borough of Sutton,29/10/2020,6980336,"6,875.00 ",Baltimore Consulting Ltd,35386,Health and Wellbeing Directorate,Agency Staff - Other,A301
http://opendatacommunities.org/id/london-borough-council/sutton,London Borough of Sutton,04/11/2020,6980746,"3,437.50 ",Baltimore Consulting Ltd,35386,Health and Wellbeing Directorate,Agency Staff - Other,A301
http://opendatacommunities.org/id/london-borough-council/sutton,London Borough of Sutton,04/11/2020,6980747,"2,200.00 ",Baltimore Consulting Ltd,35386,Peoples Services Directorate,Agency Staff - Other,A301
http://opendatacommunities.org/id/london-borough-council/sutton,London Borough of Sutton,10/11/2020,6981012,"2,750.00 ",Baltimore Consulting Ltd,35386,Health and Wellbeing Directorate,Agency Staff - Other,A301
http://opendatacommunities.org/id/london-borough-council/sutton,London Borough of Sutton,18/11/2020,6981541,"3,437.50 ",Baltimore Consulting Ltd,35386,Peoples Services Directorate,Agency Staff - Other,A301
http://opendatacommunities.org/id/london-borough-council/sutton,London Borough of Sutton,18/11/2020,6981542,"4,400.00 ",Baltimore Consulting Ltd,35386,Peoples Services Directorate,Agency Staff - Other,A301
http://opendatacommunities.org/id/london-borough-council/sutton,London Borough of Sutton,24/11/2020,6981864,"2,200.00 ",Baltimore Consulting Ltd,35386,Peoples Services Directorate,Agency Staff - Other,A301
http://opendatacommunities.org/id/london-borough-council/sutton,London Borough of Sutton,02/11/2020,1301676,675.00 ,Bandon Hill Primary,10372,Peoples Services Directorate,Top-up Funding,G064
http://opendatacommunities.org/id/london-borough-council/sutton,London Borough of Sutton,31/10/2020,40467614,"3,607.47 ",Banya,10375,Peoples Services Directorate,Foster Parents,G326
http://opendatacommunities.org/id/london-borough-council/sutton,London Borough of Sutton,30/10/2020,40466627,"5,200.00 ",Barchester Healthcare Homes Ltd,34661,Peoples Services Directorate,Nursing Care - Ext Provider,G311
http://opendatacommunities.org/id/london-borough-council/sutton,London Borough of Sutton,27/11/2020,40473980,"5,200.00 ",Barchester Healthcare Homes Ltd,34661,Peoples Services Directorate,Nursing Care - Ext Provider,G311
http://opendatacommunities.org/id/london-borough-council/sutton,London Borough of Sutton,02/11/2020,6980899,824.34 ,Barnardo's,10370,Peoples Services Directorate,Play Groups,G322
http://opendatacommunities.org/id/london-borough-council/sutton,London Borough of Sutton,02/11/2020,6980900,"2,511.00 ",Barnardo's,10370,Peoples Services Directorate,Play Groups,G322
http://opendatacommunities.org/id/london-borough-council/sutton,London Borough of Sutton,04/08/2020,6980906,"11,757.45 ",Barnardo's,10370,Peoples Services Directorate,Agency Staff - Other,A301
http://opendatacommunities.org/id/london-borough-council/sutton,London Borough of Sutton,05/11/2020,6980892,"3,263.75 ",Barnett Waddingham LLP,28449,Non-Service Cost Centres,Investment Expenses,A931
http://opendatacommunities.org/id/london-borough-council/sutton,London Borough of Sutton,09/11/2020,6981032,"9,893.25 ",Beddington Bid Ltd,26888,"Environment, Housing & Regeneration Directorate",Other Services,F340
http://opendatacommunities.org/id/london-borough-council/sutton,London Borough of Sutton,30/09/2020,6981585,852.00 ,Beddington Infants School,10445,Peoples Services Directorate,Building Works -Main Contractor,Y350
http://opendatacommunities.org/id/london-borough-council/sutton,London Borough of Sutton,30/09/2020,6981585,"9,652.00 ",Beddington Infants School,10445,Peoples Services Directorate,Equipment It,Y523
http://opendatacommunities.org/id/london-borough-council/sutton,London Borough of Sutton,02/11/2020,6980574,"2,586.00 ",Beeches Tree Care,10451,"Environment, Housing & Regeneration Directorate",Trees - SCH,D875
http://opendatacommunities.org/id/london-borough-council/sutton,London Borough of Sutton,12/11/2020,6981178,"15,000.00 ",Beeches Tree Care,10451,"Environment, Housing & Regeneration Directorate",Highway Trees - Maintenance,D560
http://opendatacommunities.org/id/london-borough-council/sutton,London Borough of Sutton,17/11/2020,6981398,"1,980.00 ",Beeches Tree Care,10451,"Environment, Housing & Regeneration Directorate",Emergency Repairs,D540
http://opendatacommunities.org/id/london-borough-council/sutton,London Borough of Sutton,20/11/2020,6981693,950.00 ,Beeches Tree Care,10451,"Environment, Housing & Regeneration Directorate",Emergency Repairs,D540
http://opendatacommunities.org/id/london-borough-council/sutton,London Borough of Sutton,20/11/2020,6981694,"10,376.50 ",Beeches Tree Care,10451,"Environment, Housing & Regeneration Directorate",Trees - SCH,D875
http://opendatacommunities.org/id/london-borough-council/sutton,London Borough of Sutton,20/11/2020,6981695,"3,366.00 ",Beeches Tree Care,10451,"Environment, Housing & Regeneration Directorate",Trees - SCH,D875
http://opendatacommunities.org/id/london-borough-council/sutton,London Borough of Sutton,15/11/2020,6981333,"1,024.83 ",Bellville-Homes Ltd,26490,"Environment, Housing & Regeneration Directorate",Temporary Protection - Homeless Persons,H300
http://opendatacommunities.org/id/london-borough-council/sutton,London Borough of Sutton,05/10/2020,40467153,443.00 ,Best at Home Domiciliary Care Services Ltd,30159,Peoples Services Directorate,Home Care,G334
http://opendatacommunities.org/id/london-borough-council/sutton,London Borough of Sutton,19/10/2020,40469209,800.00 ,Best at Home Domiciliary Care Services Ltd,30159,Peoples Services Directorate,Home Care,G334
http://opendatacommunities.org/id/london-borough-council/sutton,London Borough of Sutton,19/10/2020,40469211,772.00 ,Best at Home Domiciliary Care Services Ltd,30159,Peoples Services Directorate,Home Care,G334
http://opendatacommunities.org/id/london-borough-council/sutton,London Borough of Sutton,19/10/2020,40469217,656.00 ,Best at Home Domiciliary Care Services Ltd,30159,Peoples Services Directorate,Home Care,G334
http://opendatacommunities.org/id/london-borough-council/sutton,London Borough of Sutton,19/10/2020,40469223,656.00 ,Best at Home Domiciliary Care Services Ltd,30159,Peoples Services Directorate,Home Care,G334
http://opendatacommunities.org/id/london-borough-council/sutton,London Borough of Sutton,19/10/2020,40469228,912.00 ,Best at Home Domiciliary Care Services Ltd,30159,Peoples Services Directorate,Home Care,G334
http://opendatacommunities.org/id/london-borough-council/sutton,London Borough of Sutton,05/10/2020,40470495,912.00 ,Best at Home Domiciliary Care Services Ltd,30159,Peoples Services Directorate,Home Care,G334
http://opendatacommunities.org/id/london-borough-council/sutton,London Borough of Sutton,05/10/2020,40470497,"1,450.00 ",Best at Home Domiciliary Care Services Ltd,30159,Peoples Services Directorate,Home Care,G334
http://opendatacommunities.org/id/london-borough-council/sutton,London Borough of Sutton,12/10/2020,40470503,656.00 ,Best at Home Domiciliary Care Services Ltd,30159,Peoples Services Directorate,Home Care,G334
http://opendatacommunities.org/id/london-borough-council/sutton,London Borough of Sutton,12/10/2020,40470523,772.00 ,Best at Home Domiciliary Care Services Ltd,30159,Peoples Services Directorate,Home Care,G334
http://opendatacommunities.org/id/london-borough-council/sutton,London Borough of Sutton,12/10/2020,40470536,800.00 ,Best at Home Domiciliary Care Services Ltd,30159,Peoples Services Directorate,Home Care,G334
http://opendatacommunities.org/id/london-borough-council/sutton,London Borough of Sutton,05/10/2020,40470542,656.00 ,Best at Home Domiciliary Care Services Ltd,30159,Peoples Services Directorate,Home Care,G334
http://opendatacommunities.org/id/london-borough-council/sutton,London Borough of Sutton,05/10/2020,40470544,772.00 ,Best at Home Domiciliary Care Services Ltd,30159,Peoples Services Directorate,Home Care,G334
http://opendatacommunities.org/id/london-borough-council/sutton,London Borough of Sutton,12/10/2020,40470578,656.00 ,Best at Home Domiciliary Care Services Ltd,30159,Peoples Services Directorate,Home Care,G334
http://opendatacommunities.org/id/london-borough-council/sutton,London Borough of Sutton,12/10/2020,40470585,912.00 ,Best at Home Domiciliary Care Services Ltd,30159,Peoples Services Directorate,Home Care,G334
http://opendatacommunities.org/id/london-borough-council/sutton,London Borough of Sutton,05/10/2020,40470597,800.00 ,Best at Home Domiciliary Care Services Ltd,30159,Peoples Services Directorate,Home Care,G334
http://opendatacommunities.org/id/london-borough-council/sutton,London Borough of Sutton,26/10/2020,40473136,800.00 ,Best at Home Domiciliary Care Services Ltd,30159,Peoples Services Directorate,Home Care,G334
http://opendatacommunities.org/id/london-borough-council/sutton,London Borough of Sutton,26/10/2020,40473145,772.00 ,Best at Home Domiciliary Care Services Ltd,30159,Peoples Services Directorate,Home Care,G334
http://opendatacommunities.org/id/london-borough-council/sutton,London Borough of Sutton,26/10/2020,40473212,912.00 ,Best at Home Domiciliary Care Services Ltd,30159,Peoples Services Directorate,Home Care,G334
http://opendatacommunities.org/id/london-borough-council/sutton,London Borough of Sutton,26/10/2020,40473220,772.00 ,Best at Home Domiciliary Care Services Ltd,30159,Peoples Services Directorate,Home Care,G334
http://opendatacommunities.org/id/london-borough-council/sutton,London Borough of Sutton,26/10/2020,40473228,656.00 ,Best at Home Domiciliary Care Services Ltd,30159,Peoples Services Directorate,Home Care,G334
http://opendatacommunities.org/id/london-borough-council/sutton,London Borough of Sutton,26/10/2020,40473230,656.00 ,Best at Home Domiciliary Care Services Ltd,30159,Peoples Services Directorate,Home Care,G334
http://opendatacommunities.org/id/london-borough-council/sutton,London Borough of Sutton,02/11/2020,40473594,772.00 ,Best at Home Domiciliary Care Services Ltd,30159,Peoples Services Directorate,Home Care,G334
http://opendatacommunities.org/id/london-borough-council/sutton,London Borough of Sutton,02/11/2020,40474390,656.00 ,Best at Home Domiciliary Care Services Ltd,30159,Peoples Services Directorate,Home Care,G334
http://opendatacommunities.org/id/london-borough-council/sutton,London Borough of Sutton,02/11/2020,40474404,800.00 ,Best at Home Domiciliary Care Services Ltd,30159,Peoples Services Directorate,Home Care,G334
http://opendatacommunities.org/id/london-borough-council/sutton,London Borough of Sutton,02/11/2020,40474405,656.00 ,Best at Home Domiciliary Care Services Ltd,30159,Peoples Services Directorate,Home Care,G334
http://opendatacommunities.org/id/london-borough-council/sutton,London Borough of Sutton,02/11/2020,40474417,772.00 ,Best at Home Domiciliary Care Services Ltd,30159,Peoples Services Directorate,Home Care,G334
http://opendatacommunities.org/id/london-borough-council/sutton,London Borough of Sutton,02/11/2020,40474442,912.00 ,Best at Home Domiciliary Care Services Ltd,30159,Peoples Services Directorate,Home Care,G334
http://opendatacommunities.org/id/london-borough-council/sutton,London Borough of Sutton,31/10/2020,6981318,"4,805.00 ",Bestcourt UK Ltd,10441,"Environment, Housing & Regeneration Directorate",Bed and Breakfast Accommodation,G400
http://opendatacommunities.org/id/london-borough-council/sutton,London Borough of Sutton,15/11/2020,6981934,470.00 ,Better Impact Software Ltd,26928,Health and Wellbeing Directorate,Purchase of IT Equipment,F380
http://opendatacommunities.org/id/london-borough-council/sutton,London Borough of Sutton,30/10/2020,6981812,"3,159.00 ",Bevan Brittan LLP,28285,"Environment, Housing & Regeneration Directorate",Legal Fees,Y040
http://opendatacommunities.org/id/london-borough-council/sutton,London Borough of Sutton,01/10/2020,1301703,"16,665.79 ",Beyond Autism,17692,Peoples Services Directorate,Independent Schools,G325
http://opendatacommunities.org/id/london-borough-council/sutton,London Borough of Sutton,17/09/2020,6981034,452.57 ,BFS Group T/A Bidfood,14589,Health and Wellbeing Directorate,Refreshments,F155
http://opendatacommunities.org/id/london-borough-council/sutton,London Borough of Sutton,13/08/2020,6981036,459.77 ,BFS Group T/A Bidfood,14589,Health and Wellbeing Directorate,Refreshments,F155
http://opendatacommunities.org/id/london-borough-council/sutton,London Borough of Sutton,12/11/2020,6981361,656.72 ,BFS Group T/A Bidfood,14589,Health and Wellbeing Directorate,Refreshments,F155
http://opendatacommunities.org/id/london-borough-council/sutton,London Borough of Sutton,30/09/2020,6980168,900.00 ,Bindmans LLP,35160,Peoples Services Directorate,Personal Requisites,F106
http://opendatacommunities.org/id/london-borough-council/sutton,London Borough of Sutton,24/11/2020,1302136,"14,196.00 ",Bluebird Care Sutton,26822,Peoples Services Directorate,Contract Cleaning,D806
http://opendatacommunities.org/id/london-borough-council/sutton,London Borough of Sutton,30/09/2020,6981061,"1,575.00 ",Brand Narrative,35541,"Environment, Housing & Regeneration Directorate",Special,D535
http://opendatacommunities.org/id/london-borough-council/sutton,London Borough of Sutton,04/11/2020,6981062,"1,618.75 ",Brand Narrative,35541,"Environment, Housing & Regeneration Directorate",Special,D535
http://opendatacommunities.org/id/london-borough-council/sutton,London Borough of Sutton,01/09/2020,6981063,918.75 ,Brand Narrative,35541,"Environment, Housing & Regeneration Directorate",Special,D535
http://opendatacommunities.org/id/london-borough-council/sutton,London Borough of Sutton,24/11/2020,6981850,"3,600.00 ",Branimira Miteva,99898,"Environment, Housing & Regeneration Directorate",Depositors,X460
http://opendatacommunities.org/id/london-borough-council/sutton,London Borough of Sutton,27/10/2020,6981999,"3,758.89 ",Breyer Group Plc,97044,"Environment, Housing & Regeneration Directorate",Building Works -Main Contractor,Y350
http://opendatacommunities.org/id/london-borough-council/sutton,London Borough of Sutton,30/10/2020,6982006,"37,593.19 ",Breyer Group Plc,97044,"Environment, Housing & Regeneration Directorate",Building Works -Main Contractor,Y350
http://opendatacommunities.org/id/london-borough-council/sutton,London Borough of Sutton,30/10/2020,40466648,"2,173.88 ",Bridge House Care Centre,10620,Peoples Services Directorate,Nursing Care - Ext Provider,G311
http://opendatacommunities.org/id/london-borough-council/sutton,London Borough of Sutton,30/10/2020,40466666,"1,152.73 ",Bridge House Care Centre,10620,Peoples Services Directorate,Nursing Care - Ext Provider,G311
http://opendatacommunities.org/id/london-borough-council/sutton,London Borough of Sutton,30/10/2020,40466667,"3,472.64 ",Bridge House Care Centre,10620,Peoples Services Directorate,Nursing Care - Ext Provider,G311
http://opendatacommunities.org/id/london-borough-council/sutton,London Borough of Sutton,30/10/2020,40466668,"3,586.28 ",Bridge House Care Centre,10620,Peoples Services Directorate,Nursing Care - Ext Provider,G311
http://opendatacommunities.org/id/london-borough-council/sutton,London Borough of Sutton,30/10/2020,40466743,"2,075.08 ",Bridge House Care Centre,10620,Peoples Services Directorate,Nursing Care - Ext Provider,G311
http://opendatacommunities.org/id/london-borough-council/sutton,London Borough of Sutton,30/10/2020,40466816,"3,611.68 ",Bridge House Care Centre,10620,Peoples Services Directorate,Nursing Care - Ext Provider,G311
http://opendatacommunities.org/id/london-borough-council/sutton,London Borough of Sutton,30/10/2020,40466817,"3,586.28 ",Bridge House Care Centre,10620,Peoples Services Directorate,Nursing Care - Ext Provider,G311
http://opendatacommunities.org/id/london-borough-council/sutton,London Borough of Sutton,30/10/2020,40466818,"3,502.24 ",Bridge House Care Centre,10620,Peoples Services Directorate,Nursing Care - Ext Provider,G311
http://opendatacommunities.org/id/london-borough-council/sutton,London Borough of Sutton,30/10/2020,40466859,"3,611.68 ",Bridge House Care Centre,10620,Peoples Services Directorate,Nursing Care - Ext Provider,G311
http://opendatacommunities.org/id/london-borough-council/sutton,London Borough of Sutton,30/10/2020,40466890,"2,908.16 ",Bridge House Care Centre,10620,Peoples Services Directorate,Nursing Care - Ext Provider,G311
http://opendatacommunities.org/id/london-borough-council/sutton,London Borough of Sutton,30/10/2020,40466955,"3,555.32 ",Bridge House Care Centre,10620,Peoples Services Directorate,Nursing Care - Ext Provider,G311
http://opendatacommunities.org/id/london-borough-council/sutton,London Borough of Sutton,30/10/2020,40466956,"3,612.00 ",Bridge House Care Centre,10620,Peoples Services Directorate,Nursing Care - Ext Provider,G311
http://opendatacommunities.org/id/london-borough-council/sutton,London Borough of Sutton,30/10/2020,40467009,"3,575.68 ",Bridge House Care Centre,10620,Peoples Services Directorate,Nursing Care - Ext Provider,G311
http://opendatacommunities.org/id/london-borough-council/sutton,London Borough of Sutton,30/10/2020,40467010,"3,555.32 ",Bridge House Care Centre,10620,Peoples Services Directorate,Nursing Care - Ext Provider,G311
http://opendatacommunities.org/id/london-borough-council/sutton,London Borough of Sutton,27/11/2020,40473988,"3,472.64 ",Bridge House Care Centre,10620,Peoples Services Directorate,Nursing Care - Ext Provider,G311
http://opendatacommunities.org/id/london-borough-council/sutton,London Borough of Sutton,27/11/2020,40474045,"2,075.08 ",Bridge House Care Centre,10620,Peoples Services Directorate,Nursing Care - Ext Provider,G311
http://opendatacommunities.org/id/london-borough-council/sutton,London Borough of Sutton,27/11/2020,40474107,"3,611.68 ",Bridge House Care Centre,10620,Peoples Services Directorate,Nursing Care - Ext Provider,G311
http://opendatacommunities.org/id/london-borough-council/sutton,London Borough of Sutton,27/11/2020,40474128,"3,502.24 ",Bridge House Care Centre,10620,Peoples Services Directorate,Nursing Care - Ext Provider,G311
http://opendatacommunities.org/id/london-borough-council/sutton,London Borough of Sutton,27/11/2020,40474129,"3,586.28 ",Bridge House Care Centre,10620,Peoples Services Directorate,Nursing Care - Ext Provider,G311
http://opendatacommunities.org/id/london-borough-council/sutton,London Borough of Sutton,27/11/2020,40474174,"5,418.00 ",Bridge House Care Centre,10620,Peoples Services Directorate,Nursing Care - Ext Provider,G311
http://opendatacommunities.org/id/london-borough-council/sutton,London Borough of Sutton,27/11/2020,40474189,"2,908.16 ",Bridge House Care Centre,10620,Peoples Services Directorate,Nursing Care - Ext Provider,G311
http://opendatacommunities.org/id/london-borough-council/sutton,London Borough of Sutton,27/11/2020,40474192,"3,611.68 ",Bridge House Care Centre,10620,Peoples Services Directorate,Nursing Care - Ext Provider,G311
http://opendatacommunities.org/id/london-borough-council/sutton,London Borough of Sutton,27/11/2020,40474252,"3,612.00 ",Bridge House Care Centre,10620,Peoples Services Directorate,Nursing Care - Ext Provider,G311
http://opendatacommunities.org/id/london-borough-council/sutton,London Borough of Sutton,27/11/2020,40474292,"3,555.32 ",Bridge House Care Centre,10620,Peoples Services Directorate,Nursing Care - Ext Provider,G311
http://opendatacommunities.org/id/london-borough-council/sutton,London Borough of Sutton,27/11/2020,40474305,"3,575.68 ",Bridge House Care Centre,10620,Peoples Services Directorate,Nursing Care - Ext Provider,G311
http://opendatacommunities.org/id/london-borough-council/sutton,London Borough of Sutton,27/11/2020,40474323,"3,555.32 ",Bridge House Care Centre,10620,Peoples Services Directorate,Nursing Care - Ext Provider,G311
http://opendatacommunities.org/id/london-borough-council/sutton,London Borough of Sutton,27/11/2020,40474359,"3,586.28 ",Bridge House Care Centre,10620,Peoples Services Directorate,Nursing Care - Ext Provider,G311
http://opendatacommunities.org/id/london-borough-council/sutton,London Borough of Sutton,01/10/2020,40467653,"3,365.71 ",Brighter Futures Foster Care Ltd,27648,Peoples Services Directorate,Foster Parents,G326
http://opendatacommunities.org/id/london-borough-council/sutton,London Borough of Sutton,01/10/2020,40467739,"3,365.67 ",Brighter Futures Foster Care Ltd,27648,Peoples Services Directorate,Foster Parents,G326
http://opendatacommunities.org/id/london-borough-council/sutton,London Borough of Sutton,01/10/2020,40467760,"2,790.00 ",Brighter Futures Foster Care Ltd,27648,Peoples Services Directorate,Foster Parents,G326
http://opendatacommunities.org/id/london-borough-council/sutton,London Borough of Sutton,01/07/2020,1301991,"4,253.96 ",Brighton and Hove City Council,34380,Peoples Services Directorate,Hired Peoples Transport (Children),E072
http://opendatacommunities.org/id/london-borough-council/sutton,London Borough of Sutton,01/12/2020,1302207,782.00 ,Brindishe Manor School,35806,Peoples Services Directorate,Payments to Schools,G065
http://opendatacommunities.org/id/london-borough-council/sutton,London Borough of Sutton,10/11/2020,6981065,"1,368.34 ",British Gas,10641,Peoples Services Directorate,Electricity - General,D620
http://opendatacommunities.org/id/london-borough-council/sutton,London Borough of Sutton,21/10/2020,6981000,533.84 ,British Gas Plc,10577,Resources Directorate,Electricity - General,D620
http://opendatacommunities.org/id/london-borough-council/sutton,London Borough of Sutton,30/10/2020,40466780,"2,775.44 ",British Home & Hospital For Incurables,10589,Peoples Services Directorate,Nursing Care - Ext Provider,G311
http://opendatacommunities.org/id/london-borough-council/sutton,London Borough of Sutton,30/10/2020,40466910,"2,497.88 ",British Home & Hospital For Incurables,10589,Peoples Services Directorate,Nursing Care - Ext Provider,G311
http://opendatacommunities.org/id/london-borough-council/sutton,London Borough of Sutton,27/11/2020,40474083,"9,160.10 ",British Home & Hospital For Incurables,10589,Peoples Services Directorate,Nursing Care - Ext Provider,G311
http://opendatacommunities.org/id/london-borough-council/sutton,London Borough of Sutton,27/11/2020,40474250,"2,497.88 ",British Home & Hospital For Incurables,10589,Peoples Services Directorate,Nursing Care - Ext Provider,G311
http://opendatacommunities.org/id/london-borough-council/sutton,London Borough of Sutton,13/08/2019,6978337,"1,575.00 ",British Telecommunications Plc,10574,Resources Directorate,Telephones - Rentals,F370
http://opendatacommunities.org/id/london-borough-council/sutton,London Borough of Sutton,13/11/2019,6978342,"1,605.00 ",British Telecommunications Plc,10574,Resources Directorate,Telephones - Rentals,F370
http://opendatacommunities.org/id/london-borough-council/sutton,London Borough of Sutton,30/10/2020,40466670,"3,364.00 ",Broadlands Nursing Home,10586,Peoples Services Directorate,Nursing Care - Ext Provider,G311
http://opendatacommunities.org/id/london-borough-council/sutton,London Borough of Sutton,30/10/2020,40466671,"3,586.28 ",Broadlands Nursing Home,10586,Peoples Services Directorate,Nursing Care - Ext Provider,G311
http://opendatacommunities.org/id/london-borough-council/sutton,London Borough of Sutton,30/10/2020,40466761,"3,543.04 ",Broadlands Nursing Home,10586,Peoples Services Directorate,Nursing Care - Ext Provider,G311
http://opendatacommunities.org/id/london-borough-council/sutton,London Borough of Sutton,30/10/2020,40466903,"3,752.64 ",Broadlands Nursing Home,10586,Peoples Services Directorate,Nursing Care - Ext Provider,G311
http://opendatacommunities.org/id/london-borough-council/sutton,London Borough of Sutton,27/11/2020,40473990,475.24 ,Broadlands Nursing Home,10586,Peoples Services Directorate,Nursing Care - 3rd party top up payment,G360
http://opendatacommunities.org/id/london-borough-council/sutton,London Borough of Sutton,27/11/2020,40474082,"3,543.04 ",Broadlands Nursing Home,10586,Peoples Services Directorate,Nursing Care - Ext Provider,G311
http://opendatacommunities.org/id/london-borough-council/sutton,London Borough of Sutton,27/11/2020,40474221,"3,752.64 ",Broadlands Nursing Home,10586,Peoples Services Directorate,Nursing Care - Ext Provider,G311
http://opendatacommunities.org/id/london-borough-council/sutton,London Borough of Sutton,27/11/2020,40474366,"3,586.28 ",Broadlands Nursing Home,10586,Peoples Services Directorate,Nursing Care - Ext Provider,G311
http://opendatacommunities.org/id/london-borough-council/sutton,London Borough of Sutton,23/11/2020,6981817,"9,180.00 ",BT Business Direct Ltd,22323,Peoples Services Directorate,Purchase of IT Equipment,F380
http://opendatacommunities.org/id/london-borough-council/sutton,London Borough of Sutton,11/11/2020,6982191,776.00 ,BT Business Direct Ltd,22323,Peoples Services Directorate,Purchase of IT Equipment,F380
http://opendatacommunities.org/id/london-borough-council/sutton,London Borough of Sutton,01/09/2020,6980783,"16,575.00 ",Buller Hotel,23493,"Environment, Housing & Regeneration Directorate",Bed and Breakfast Accommodation,G400
http://opendatacommunities.org/id/london-borough-council/sutton,London Borough of Sutton,01/09/2020,6980785,"10,780.00 ",Buller Hotel,23493,"Environment, Housing & Regeneration Directorate",Bed and Breakfast Accommodation,G400
http://opendatacommunities.org/id/london-borough-council/sutton,London Borough of Sutton,27/10/2020,6980236,471.48 ,Bunzl Catering Supplies,10706,Health and Wellbeing Directorate,Refreshments,F155
http://opendatacommunities.org/id/london-borough-council/sutton,London Borough of Sutton,30/10/2020,40466917,"7,824.28 ",Butterfly's Care Homes Ltd,28860,Peoples Services Directorate,Residential Care - Ext Provider,G310
http://opendatacommunities.org/id/london-borough-council/sutton,London Borough of Sutton,27/11/2020,40474233,"7,824.28 ",Butterfly's Care Homes Ltd,28860,Peoples Services Directorate,Residential Care - Ext Provider,G310
http://opendatacommunities.org/id/london-borough-council/sutton,London Borough of Sutton,01/11/2020,40467623,"3,518.01 ",By The Bridge Ltd,25655,Peoples Services Directorate,Foster Parents,G326
http://opendatacommunities.org/id/london-borough-council/sutton,London Borough of Sutton,01/11/2020,40467644,"4,711.38 ",By The Bridge Ltd,25655,Peoples Services Directorate,Foster Parents,G326
http://opendatacommunities.org/id/london-borough-council/sutton,London Borough of Sutton,01/11/2020,40467645,"3,019.93 ",By The Bridge Ltd,25655,Peoples Services Directorate,Foster Parents,G326
http://opendatacommunities.org/id/london-borough-council/sutton,London Borough of Sutton,01/11/2020,40467687,"5,936.77 ",By The Bridge Ltd,25655,Peoples Services Directorate,Foster Parents,G326
http://opendatacommunities.org/id/london-borough-council/sutton,London Borough of Sutton,01/11/2020,40467708,"3,019.93 ",By The Bridge Ltd,25655,Peoples Services Directorate,Foster Parents,G326
http://opendatacommunities.org/id/london-borough-council/sutton,London Borough of Sutton,19/11/2020,6981616,"1,824.00 ",C.E.R Investments Ltd,26967,"Environment, Housing & Regeneration Directorate",Temporary Protection - Homeless Persons,H300
http://opendatacommunities.org/id/london-borough-council/sutton,London Borough of Sutton,29/09/2020,40467650,"15,500.00 ",Calcot Services for Children Ltd,34806,Peoples Services Directorate,Residential Care-Children,G330
http://opendatacommunities.org/id/london-borough-council/sutton,London Borough of Sutton,28/10/2020,6980696,"23,865.00 ",Calibre Conservation,97630,"Environment, Housing & Regeneration Directorate",Building Works -Main Contractor,Y350
http://opendatacommunities.org/id/london-borough-council/sutton,London Borough of Sutton,12/11/2020,1301939,"22,898.03 ",Cambian Asperger Syndrome Services Ltd,12082,Peoples Services Directorate,Residential Care-Children,G330
http://opendatacommunities.org/id/london-borough-council/sutton,London Borough of Sutton,12/11/2020,1301940,"6,500.00 ",Cambian Asperger Syndrome Services Ltd,12082,Peoples Services Directorate,Independent Schools,G325
http://opendatacommunities.org/id/london-borough-council/sutton,London Borough of Sutton,12/11/2020,1301941,"17,653.44 ",Cambian Asperger Syndrome Services Ltd,12082,Peoples Services Directorate,Independent Schools,G325
http://opendatacommunities.org/id/london-borough-council/sutton,London Borough of Sutton,30/10/2020,40466975,"4,118.48 ",Cambian Asperger Syndrome Services Ltd,12082,Peoples Services Directorate,Interim Placements - Ext Provider,G317
http://opendatacommunities.org/id/london-borough-council/sutton,London Borough of Sutton,27/11/2020,40474275,"6,406.52 ",Cambian Asperger Syndrome Services Ltd,12082,Peoples Services Directorate,Interim Placements - Ext Provider,G317
http://opendatacommunities.org/id/london-borough-council/sutton,London Borough of Sutton,06/11/2020,6980823,"10,436.40 ",Candy Pampering & Aesthetics Ltd (Robyn Raye Academy),35706,Peoples Services Directorate,Fees - Consultants (Ad Hoc),F283
http://opendatacommunities.org/id/london-borough-council/sutton,London Borough of Sutton,24/11/2020,6981831,"10,035.00 ",Candy Pampering & Aesthetics Ltd (Robyn Raye Academy),35706,Peoples Services Directorate,Fees - Consultants (Ad Hoc),F283
http://opendatacommunities.org/id/london-borough-council/sutton,London Borough of Sutton,30/10/2020,40466920,"3,913.56 ",Canterbury Oast Trust,10755,Peoples Services Directorate,Residential Care - Ext Provider,G310
http://opendatacommunities.org/id/london-borough-council/sutton,London Borough of Sutton,27/11/2020,40474197,"3,913.56 ",Canterbury Oast Trust,10755,Peoples Services Directorate,Residential Care - Ext Provider,G310
http://opendatacommunities.org/id/london-borough-council/sutton,London Borough of Sutton,20/11/2020,6981712,495.00 ,Capital Hair and Beauty,17777,Peoples Services Directorate,Education Equipment,F009
http://opendatacommunities.org/id/london-borough-council/sutton,London Borough of Sutton,31/10/2020,6980504,845.00 ,Capital Traffic Management Ltd,24034,"Environment, Housing & Regeneration Directorate",Roads & Sewers Etc-Main Contract,Y300
http://opendatacommunities.org/id/london-borough-council/sutton,London Borough of Sutton,30/10/2020,40467677,"3,671.33 ",Capstone Foster Care (South East) Ltd,16360,Peoples Services Directorate,Foster Parents,G326
http://opendatacommunities.org/id/london-borough-council/sutton,London Borough of Sutton,30/10/2020,40467678,"5,739.34 ",Capstone Foster Care (South East) Ltd,16360,Peoples Services Directorate,Foster Parents,G326
http://opendatacommunities.org/id/london-borough-council/sutton,London Borough of Sutton,30/10/2020,40467712,"3,432.32 ",Capstone Foster Care (South East) Ltd,16360,Peoples Services Directorate,Foster Parents,G326
http://opendatacommunities.org/id/london-borough-council/sutton,London Borough of Sutton,01/10/2020,40467715,"19,884.33 ",Care 4 Children Residential Services Ltd,29992,Peoples Services Directorate,Residential Care-Children,G330
http://opendatacommunities.org/id/london-borough-council/sutton,London Borough of Sutton,01/10/2020,40467759,"9,621.45 ",Care 4 Children Residential Services Ltd,29992,Peoples Services Directorate,Residential Care-Children,G330
http://opendatacommunities.org/id/london-borough-council/sutton,London Borough of Sutton,31/10/2020,40473418,"10,185.71 ",Care Advocates Ltd,34664,Peoples Services Directorate,Supported Living - Ext Provider,G306
http://opendatacommunities.org/id/london-borough-council/sutton,London Borough of Sutton,30/10/2020,40466782,"3,631.80 ",Care Direct Uk Ltd  (David House),27080,Peoples Services Directorate,Residential Care - Ext Provider,G310
http://opendatacommunities.org/id/london-borough-council/sutton,London Borough of Sutton,27/11/2020,40474060,"3,631.80 ",Care Direct Uk Ltd  (David House),27080,Peoples Services Directorate,Residential Care - Ext Provider,G310
http://opendatacommunities.org/id/london-borough-council/sutton,London Borough of Sutton,17/11/2020,1301881,"17,914.00 ",Care More Ltd,33872,Peoples Services Directorate,Contract Cleaning,D806
http://opendatacommunities.org/id/london-borough-council/sutton,London Borough of Sutton,05/10/2020,40467100,605.00 ,Care More Ltd,33872,Peoples Services Directorate,Home Care,G334
http://opendatacommunities.org/id/london-borough-council/sutton,London Borough of Sutton,19/10/2020,40470488,666.00 ,Care More Ltd,33872,Peoples Services Directorate,Home Care,G334
http://opendatacommunities.org/id/london-borough-council/sutton,London Borough of Sutton,19/10/2020,40470489,432.00 ,Care More Ltd,33872,Peoples Services Directorate,Home Care,G334
http://opendatacommunities.org/id/london-borough-council/sutton,London Borough of Sutton,19/10/2020,40470490,441.00 ,Care More Ltd,33872,Peoples Services Directorate,Home Care,G334
http://opendatacommunities.org/id/london-borough-council/sutton,London Borough of Sutton,19/10/2020,40470490,511.00 ,Care More Ltd,33872,Peoples Services Directorate,Home Care,G334
http://opendatacommunities.org/id/london-borough-council/sutton,London Borough of Sutton,19/10/2020,40470491,666.00 ,Care More Ltd,33872,Peoples Services Directorate,Home Care,G334
http://opendatacommunities.org/id/london-borough-council/sutton,London Borough of Sutton,19/10/2020,40470560,798.00 ,Care More Ltd,33872,Peoples Services Directorate,Home Care,G334
http://opendatacommunities.org/id/london-borough-council/sutton,London Borough of Sutton,19/10/2020,40470562,456.00 ,Care More Ltd,33872,Peoples Services Directorate,Home Care,G334
http://opendatacommunities.org/id/london-borough-council/sutton,London Borough of Sutton,19/10/2020,40470565,473.00 ,Care More Ltd,33872,Peoples Services Directorate,Home Care,G334
http://opendatacommunities.org/id/london-borough-council/sutton,London Borough of Sutton,19/10/2020,40470566,488.00 ,Care More Ltd,33872,Peoples Services Directorate,Home Care,G334
http://opendatacommunities.org/id/london-borough-council/sutton,London Borough of Sutton,19/10/2020,40470591,756.00 ,Care More Ltd,33872,Peoples Services Directorate,Home Care,G334
http://opendatacommunities.org/id/london-borough-council/sutton,London Borough of Sutton,19/10/2020,40470592,603.00 ,Care More Ltd,33872,Peoples Services Directorate,Home Care,G334
http://opendatacommunities.org/id/london-borough-council/sutton,London Borough of Sutton,19/10/2020,40470598,546.00 ,Care More Ltd,33872,Peoples Services Directorate,Home Care,G334
http://opendatacommunities.org/id/london-borough-council/sutton,London Borough of Sutton,19/10/2020,40470599,770.00 ,Care More Ltd,33872,Peoples Services Directorate,Home Care,G334
http://opendatacommunities.org/id/london-borough-council/sutton,London Borough of Sutton,19/10/2020,40470601,546.00 ,Care More Ltd,33872,Peoples Services Directorate,Home Care,G334
http://opendatacommunities.org/id/london-borough-council/sutton,London Borough of Sutton,19/10/2020,40470602,714.00 ,Care More Ltd,33872,Peoples Services Directorate,Home Care,G334
http://opendatacommunities.org/id/london-borough-council/sutton,London Borough of Sutton,19/10/2020,40470603,922.00 ,Care More Ltd,33872,Peoples Services Directorate,Home Care,G334
http://opendatacommunities.org/id/london-borough-council/sutton,London Borough of Sutton,02/11/2020,40474413,692.00 ,Care More Ltd,33872,Peoples Services Directorate,Home Care,G334
http://opendatacommunities.org/id/london-borough-council/sutton,London Borough of Sutton,30/10/2020,40466658,"3,586.28 ",Care UK Homecare Ltd,10853,Peoples Services Directorate,Nursing Care - Ext Provider,G311
http://opendatacommunities.org/id/london-borough-council/sutton,London Borough of Sutton,30/10/2020,40466708,"4,600.00 ",Care UK Homecare Ltd,10853,Peoples Services Directorate,Residential Care - Ext Provider,G310
http://opendatacommunities.org/id/london-borough-council/sutton,London Borough of Sutton,30/10/2020,40467003,"3,555.32 ",Care UK Homecare Ltd,10853,Peoples Services Directorate,Nursing Care - Ext Provider,G311
http://opendatacommunities.org/id/london-borough-council/sutton,London Borough of Sutton,27/11/2020,40474036,"4,600.00 ",Care UK Homecare Ltd,10853,Peoples Services Directorate,Residential Care - Ext Provider,G310
http://opendatacommunities.org/id/london-borough-council/sutton,London Borough of Sutton,27/11/2020,40474331,"3,555.32 ",Care UK Homecare Ltd,10853,Peoples Services Directorate,Nursing Care - Ext Provider,G311
http://opendatacommunities.org/id/london-borough-council/sutton,London Borough of Sutton,27/11/2020,40474371,"3,586.28 ",Care UK Homecare Ltd,10853,Peoples Services Directorate,Nursing Care - Ext Provider,G311
http://opendatacommunities.org/id/london-borough-council/sutton,London Borough of Sutton,01/10/2020,40467149,"4,732.00 ",Care Unlimited Domcare Ltd,28906,Peoples Services Directorate,Supported Living - Ext Provider,G306
http://opendatacommunities.org/id/london-borough-council/sutton,London Borough of Sutton,01/10/2020,40467150,"4,060.00 ",Care Unlimited Domcare Ltd,28906,Peoples Services Directorate,Supported Living - Ext Provider,G306
http://opendatacommunities.org/id/london-borough-council/sutton,London Borough of Sutton,01/10/2020,40467151,"4,060.00 ",Care Unlimited Domcare Ltd,28906,Peoples Services Directorate,Supported Living - Ext Provider,G306
http://opendatacommunities.org/id/london-borough-council/sutton,London Borough of Sutton,01/10/2020,40467152,"4,060.00 ",Care Unlimited Domcare Ltd,28906,Peoples Services Directorate,Supported Living - Ext Provider,G306
http://opendatacommunities.org/id/london-borough-council/sutton,London Borough of Sutton,01/10/2020,40467154,"4,060.00 ",Care Unlimited Domcare Ltd,28906,Peoples Services Directorate,Supported Living - Ext Provider,G306
http://opendatacommunities.org/id/london-borough-council/sutton,London Borough of Sutton,27/11/2020,40473968,"6,192.00 ",Care Unlimited Group Ltd,10774,Peoples Services Directorate,Nursing Care - Ext Provider,G311
http://opendatacommunities.org/id/london-borough-council/sutton,London Borough of Sutton,17/11/2020,1301882,"13,520.00 ",Caremark (Sutton),25541,Peoples Services Directorate,Contract Cleaning,D806
http://opendatacommunities.org/id/london-borough-council/sutton,London Borough of Sutton,03/11/2020,6980738,500.00 ,Caremark (Sutton),25541,Peoples Services Directorate,Home Care,G334
http://opendatacommunities.org/id/london-borough-council/sutton,London Borough of Sutton,03/11/2020,6980742,525.00 ,Caremark (Sutton),25541,Peoples Services Directorate,Home Care,G334
http://opendatacommunities.org/id/london-borough-council/sutton,London Borough of Sutton,03/11/2020,6980894,770.00 ,Caremark (Sutton),25541,Peoples Services Directorate,Home Care,G334
http://opendatacommunities.org/id/london-borough-council/sutton,London Borough of Sutton,16/11/2020,6981480,500.00 ,Caremark (Sutton),25541,Peoples Services Directorate,Home Care,G334
http://opendatacommunities.org/id/london-borough-council/sutton,London Borough of Sutton,16/11/2020,6981511,720.00 ,Caremark (Sutton),25541,Peoples Services Directorate,Home Care,G334
http://opendatacommunities.org/id/london-borough-council/sutton,London Borough of Sutton,27/09/2020,40468008,442.50 ,Caremark (Sutton),25541,Peoples Services Directorate,Home Care,G334
http://opendatacommunities.org/id/london-borough-council/sutton,London Borough of Sutton,04/10/2020,40468009,442.50 ,Caremark (Sutton),25541,Peoples Services Directorate,Home Care,G334
http://opendatacommunities.org/id/london-borough-council/sutton,London Borough of Sutton,11/10/2020,40468010,442.50 ,Caremark (Sutton),25541,Peoples Services Directorate,Home Care,G334
http://opendatacommunities.org/id/london-borough-council/sutton,London Borough of Sutton,18/10/2020,40468011,442.50 ,Caremark (Sutton),25541,Peoples Services Directorate,Home Care,G334
http://opendatacommunities.org/id/london-borough-council/sutton,London Borough of Sutton,25/10/2020,40468012,442.50 ,Caremark (Sutton),25541,Peoples Services Directorate,Home Care,G334
http://opendatacommunities.org/id/london-borough-council/sutton,London Borough of Sutton,27/09/2020,40468043,998.47 ,Caremark (Sutton),25541,Peoples Services Directorate,Home Care,G334
http://opendatacommunities.org/id/london-borough-council/sutton,London Borough of Sutton,04/10/2020,40468044,998.47 ,Caremark (Sutton),25541,Peoples Services Directorate,Home Care,G334
http://opendatacommunities.org/id/london-borough-council/sutton,London Borough of Sutton,11/10/2020,40468045,998.47 ,Caremark (Sutton),25541,Peoples Services Directorate,Home Care,G334
http://opendatacommunities.org/id/london-borough-council/sutton,London Borough of Sutton,18/10/2020,40468046,998.47 ,Caremark (Sutton),25541,Peoples Services Directorate,Home Care,G334
http://opendatacommunities.org/id/london-borough-council/sutton,London Borough of Sutton,25/10/2020,40468047,998.47 ,Caremark (Sutton),25541,Peoples Services Directorate,Home Care,G334
http://opendatacommunities.org/id/london-borough-council/sutton,London Borough of Sutton,27/09/2020,40468048,767.03 ,Caremark (Sutton),25541,Peoples Services Directorate,Home Care,G334
http://opendatacommunities.org/id/london-borough-council/sutton,London Borough of Sutton,04/10/2020,40468049,767.03 ,Caremark (Sutton),25541,Peoples Services Directorate,Home Care,G334
http://opendatacommunities.org/id/london-borough-council/sutton,London Borough of Sutton,11/10/2020,40468050,767.03 ,Caremark (Sutton),25541,Peoples Services Directorate,Home Care,G334
http://opendatacommunities.org/id/london-borough-council/sutton,London Borough of Sutton,18/10/2020,40468051,767.03 ,Caremark (Sutton),25541,Peoples Services Directorate,Home Care,G334
http://opendatacommunities.org/id/london-borough-council/sutton,London Borough of Sutton,25/10/2020,40468052,767.03 ,Caremark (Sutton),25541,Peoples Services Directorate,Home Care,G334
http://opendatacommunities.org/id/london-borough-council/sutton,London Borough of Sutton,27/09/2020,40468053,767.03 ,Caremark (Sutton),25541,Peoples Services Directorate,Home Care,G334
http://opendatacommunities.org/id/london-borough-council/sutton,London Borough of Sutton,04/10/2020,40468054,767.03 ,Caremark (Sutton),25541,Peoples Services Directorate,Home Care,G334
http://opendatacommunities.org/id/london-borough-council/sutton,London Borough of Sutton,11/10/2020,40468055,767.03 ,Caremark (Sutton),25541,Peoples Services Directorate,Home Care,G334
http://opendatacommunities.org/id/london-borough-council/sutton,London Borough of Sutton,18/10/2020,40468056,767.03 ,Caremark (Sutton),25541,Peoples Services Directorate,Home Care,G334
http://opendatacommunities.org/id/london-borough-council/sutton,London Borough of Sutton,25/10/2020,40468057,767.03 ,Caremark (Sutton),25541,Peoples Services Directorate,Home Care,G334
http://opendatacommunities.org/id/london-borough-council/sutton,London Borough of Sutton,27/09/2020,40468074,"1,833.50 ",Caremark (Sutton),25541,Peoples Services Directorate,Home Care,G334
http://opendatacommunities.org/id/london-borough-council/sutton,London Borough of Sutton,04/10/2020,40468075,"1,833.50 ",Caremark (Sutton),25541,Peoples Services Directorate,Home Care,G334
http://opendatacommunities.org/id/london-borough-council/sutton,London Borough of Sutton,11/10/2020,40468076,"1,833.50 ",Caremark (Sutton),25541,Peoples Services Directorate,Home Care,G334
http://opendatacommunities.org/id/london-borough-council/sutton,London Borough of Sutton,18/10/2020,40468077,"1,833.50 ",Caremark (Sutton),25541,Peoples Services Directorate,Home Care,G334
http://opendatacommunities.org/id/london-borough-council/sutton,London Borough of Sutton,25/10/2020,40468078,"1,833.50 ",Caremark (Sutton),25541,Peoples Services Directorate,Home Care,G334
http://opendatacommunities.org/id/london-borough-council/sutton,London Borough of Sutton,27/09/2020,40468107,949.93 ,Caremark (Sutton),25541,Peoples Services Directorate,Home Care,G334
http://opendatacommunities.org/id/london-borough-council/sutton,London Borough of Sutton,04/10/2020,40468108,"1,009.23 ",Caremark (Sutton),25541,Peoples Services Directorate,Home Care,G334
http://opendatacommunities.org/id/london-borough-council/sutton,London Borough of Sutton,11/10/2020,40468109,949.99 ,Caremark (Sutton),25541,Peoples Services Directorate,Home Care,G334
http://opendatacommunities.org/id/london-borough-council/sutton,London Borough of Sutton,18/10/2020,40468110,949.99 ,Caremark (Sutton),25541,Peoples Services Directorate,Home Care,G334
http://opendatacommunities.org/id/london-borough-council/sutton,London Borough of Sutton,25/10/2020,40468111,949.99 ,Caremark (Sutton),25541,Peoples Services Directorate,Home Care,G334
http://opendatacommunities.org/id/london-borough-council/sutton,London Borough of Sutton,04/11/2020,6980896,"2,502.50 ",Careoline Carers Services Ltd,23798,Peoples Services Directorate,Home Care,G334
http://opendatacommunities.org/id/london-borough-council/sutton,London Borough of Sutton,04/11/2020,6980897,"2,502.50 ",Careoline Carers Services Ltd,23798,Peoples Services Directorate,Home Care,G334
http://opendatacommunities.org/id/london-borough-council/sutton,London Borough of Sutton,18/06/2020,6980938,577.50 ,Careoline Carers Services Ltd,23798,Peoples Services Directorate,Hired Peoples Transport (Children),E072
http://opendatacommunities.org/id/london-borough-council/sutton,London Borough of Sutton,12/10/2020,6981073,660.00 ,Careoline Carers Services Ltd,23798,Peoples Services Directorate,Hired Peoples Transport (Children),E072
http://opendatacommunities.org/id/london-borough-council/sutton,London Borough of Sutton,21/07/2020,6981074,"1,388.75 ",Careoline Carers Services Ltd,23798,Peoples Services Directorate,Hired Peoples Transport (Children),E072
http://opendatacommunities.org/id/london-borough-council/sutton,London Borough of Sutton,13/11/2020,6981497,"2,942.50 ",Careoline Carers Services Ltd,23798,Peoples Services Directorate,Home Care,G334
http://opendatacommunities.org/id/london-borough-council/sutton,London Borough of Sutton,30/10/2020,40466653,"5,676.16 ",Caretech Community Services Ltd,10791,Peoples Services Directorate,Residential Care - Ext Provider,G310
http://opendatacommunities.org/id/london-borough-council/sutton,London Borough of Sutton,30/10/2020,40466749,"5,531.60 ",Caretech Community Services Ltd,10791,Peoples Services Directorate,Residential Care - Ext Provider,G310
http://opendatacommunities.org/id/london-borough-council/sutton,London Borough of Sutton,30/10/2020,40466799,"5,534.00 ",Caretech Community Services Ltd,10791,Peoples Services Directorate,Residential Care - Ext Provider,G310
http://opendatacommunities.org/id/london-borough-council/sutton,London Borough of Sutton,30/10/2020,40466800,"5,534.00 ",Caretech Community Services Ltd,10791,Peoples Services Directorate,Residential Care - Ext Provider,G310
http://opendatacommunities.org/id/london-borough-council/sutton,London Borough of Sutton,01/10/2020,40470783,"2,092.50 ",Caretech Community Services Ltd,10791,Peoples Services Directorate,One to One Care,G335
http://opendatacommunities.org/id/london-borough-council/sutton,London Borough of Sutton,27/11/2020,40473997,"5,676.16 ",Caretech Community Services Ltd,10791,Peoples Services Directorate,Residential Care - Ext Provider,G310
http://opendatacommunities.org/id/london-borough-council/sutton,London Borough of Sutton,27/11/2020,40474092,"5,531.60 ",Caretech Community Services Ltd,10791,Peoples Services Directorate,Residential Care - Ext Provider,G310
http://opendatacommunities.org/id/london-borough-council/sutton,London Borough of Sutton,27/11/2020,40474137,"5,534.00 ",Caretech Community Services Ltd,10791,Peoples Services Directorate,Residential Care - Ext Provider,G310
http://opendatacommunities.org/id/london-borough-council/sutton,London Borough of Sutton,27/11/2020,40474150,"5,534.00 ",Caretech Community Services Ltd,10791,Peoples Services Directorate,Residential Care - Ext Provider,G310
http://opendatacommunities.org/id/london-borough-council/sutton,London Borough of Sutton,16/11/2020,1301944,"3,430.67 ",Carew Academy,25284,Peoples Services Directorate,Place Funding,G063
http://opendatacommunities.org/id/london-borough-council/sutton,London Borough of Sutton,16/11/2020,1301945,"4,893.00 ",Carew Academy,25284,Peoples Services Directorate,Place Funding,G063
http://opendatacommunities.org/id/london-borough-council/sutton,London Borough of Sutton,16/11/2020,1301946,"1,804.33 ",Carew Academy,25284,Peoples Services Directorate,Place Funding,G063
http://opendatacommunities.org/id/london-borough-council/sutton,London Borough of Sutton,16/11/2020,1301947,"4,893.00 ",Carew Academy,25284,Peoples Services Directorate,Place Funding,G063
http://opendatacommunities.org/id/london-borough-council/sutton,London Borough of Sutton,16/11/2020,1301947,"3,333.33 ",Carew Academy,25284,Peoples Services Directorate,Payments to Schools,G065
http://opendatacommunities.org/id/london-borough-council/sutton,London Borough of Sutton,16/11/2020,1301948,"3,430.67 ",Carew Academy,25284,Peoples Services Directorate,Place Funding,G063
http://opendatacommunities.org/id/london-borough-council/sutton,London Borough of Sutton,16/11/2020,1301948,"3,333.33 ",Carew Academy,25284,Peoples Services Directorate,Payments to Schools,G065
http://opendatacommunities.org/id/london-borough-council/sutton,London Borough of Sutton,16/11/2020,1301949,"4,893.00 ",Carew Academy,25284,Peoples Services Directorate,Place Funding,G063
http://opendatacommunities.org/id/london-borough-council/sutton,London Borough of Sutton,16/11/2020,1301949,"3,333.33 ",Carew Academy,25284,Peoples Services Directorate,Payments to Schools,G065
http://opendatacommunities.org/id/london-borough-council/sutton,London Borough of Sutton,31/10/2020,40467620,"5,015.49 ",Caridon Young Living Ltd,35469,Peoples Services Directorate,Approved Lodgings,H323
http://opendatacommunities.org/id/london-borough-council/sutton,London Borough of Sutton,31/10/2020,40472597,"7,768.87 ",Caridon Young Living Ltd,35469,Peoples Services Directorate,Approved Lodgings,H323
http://opendatacommunities.org/id/london-borough-council/sutton,London Borough of Sutton,30/10/2020,40466647,"2,688.28 ",Carlene House,10763,Peoples Services Directorate,Residential Care - Ext Provider,G310
http://opendatacommunities.org/id/london-borough-council/sutton,London Borough of Sutton,30/10/2020,40466789,"2,747.08 ",Carlene House,10763,Peoples Services Directorate,Residential Care - Ext Provider,G310
http://opendatacommunities.org/id/london-borough-council/sutton,London Borough of Sutton,30/10/2020,40466839,"2,688.28 ",Carlene House,10763,Peoples Services Directorate,Residential Care - Ext Provider,G310
http://opendatacommunities.org/id/london-borough-council/sutton,London Borough of Sutton,30/10/2020,40466938,"4,440.00 ",Carlene House,10763,Peoples Services Directorate,Residential Care - Ext Provider,G310
http://opendatacommunities.org/id/london-borough-council/sutton,London Borough of Sutton,30/10/2020,40466939,"2,806.40 ",Carlene House,10763,Peoples Services Directorate,Residential Care - Ext Provider,G310
http://opendatacommunities.org/id/london-borough-council/sutton,London Borough of Sutton,30/10/2020,40466940,"2,693.72 ",Carlene House,10763,Peoples Services Directorate,Residential Care - Ext Provider,G310
http://opendatacommunities.org/id/london-borough-council/sutton,London Borough of Sutton,30/10/2020,40466941,"2,718.40 ",Carlene House,10763,Peoples Services Directorate,Residential Care - Ext Provider,G310
http://opendatacommunities.org/id/london-borough-council/sutton,London Borough of Sutton,29/10/2020,40473416,"2,397.56 ",Carlene House,10763,Peoples Services Directorate,Supported Living - Ext Provider,G306
http://opendatacommunities.org/id/london-borough-council/sutton,London Borough of Sutton,29/10/2020,40473417,"3,369.76 ",Carlene House,10763,Peoples Services Directorate,Supported Living - Ext Provider,G306
http://opendatacommunities.org/id/london-borough-council/sutton,London Borough of Sutton,29/10/2020,40473419,"2,528.57 ",Carlene House,10763,Peoples Services Directorate,Supported Living - Ext Provider,G306
http://opendatacommunities.org/id/london-borough-council/sutton,London Borough of Sutton,29/10/2020,40473420,"3,225.56 ",Carlene House,10763,Peoples Services Directorate,Supported Living - Ext Provider,G306
http://opendatacommunities.org/id/london-borough-council/sutton,London Borough of Sutton,29/10/2020,40473443,420.00 ,Carlene House,10763,Peoples Services Directorate,Supported Living - Ext Provider,G306
http://opendatacommunities.org/id/london-borough-council/sutton,London Borough of Sutton,29/10/2020,40473444,682.00 ,Carlene House,10763,Peoples Services Directorate,Supported Living - Ext Provider,G306
http://opendatacommunities.org/id/london-borough-council/sutton,London Borough of Sutton,29/10/2020,40473457,992.00 ,Carlene House,10763,Peoples Services Directorate,Supported Living - Ext Provider,G306
http://opendatacommunities.org/id/london-borough-council/sutton,London Borough of Sutton,29/10/2020,40473458,"1,107.01 ",Carlene House,10763,Peoples Services Directorate,Day Care,G337
http://opendatacommunities.org/id/london-borough-council/sutton,London Borough of Sutton,29/10/2020,40473459,"1,107.01 ",Carlene House,10763,Peoples Services Directorate,Day Care,G337
http://opendatacommunities.org/id/london-borough-council/sutton,London Borough of Sutton,29/10/2020,40473460,"1,107.01 ",Carlene House,10763,Peoples Services Directorate,Day Care,G337
http://opendatacommunities.org/id/london-borough-council/sutton,London Borough of Sutton,29/10/2020,40473461,"1,107.01 ",Carlene House,10763,Peoples Services Directorate,Day Care,G337
http://opendatacommunities.org/id/london-borough-council/sutton,London Borough of Sutton,29/10/2020,40473473,"1,107.01 ",Carlene House,10763,Peoples Services Directorate,Day Care,G337
http://opendatacommunities.org/id/london-borough-council/sutton,London Borough of Sutton,27/11/2020,40474056,"2,747.08 ",Carlene House,10763,Peoples Services Directorate,Residential Care - Ext Provider,G310
http://opendatacommunities.org/id/london-borough-council/sutton,London Borough of Sutton,27/11/2020,40474143,"2,688.28 ",Carlene House,10763,Peoples Services Directorate,Residential Care - Ext Provider,G310
http://opendatacommunities.org/id/london-borough-council/sutton,London Borough of Sutton,27/11/2020,40474209,"2,806.40 ",Carlene House,10763,Peoples Services Directorate,Residential Care - Ext Provider,G310
http://opendatacommunities.org/id/london-borough-council/sutton,London Borough of Sutton,27/11/2020,40474212,"4,440.00 ",Carlene House,10763,Peoples Services Directorate,Residential Care - Ext Provider,G310
http://opendatacommunities.org/id/london-borough-council/sutton,London Borough of Sutton,27/11/2020,40474226,"2,718.40 ",Carlene House,10763,Peoples Services Directorate,Residential Care - Ext Provider,G310
http://opendatacommunities.org/id/london-borough-council/sutton,London Borough of Sutton,27/11/2020,40474229,"2,693.72 ",Carlene House,10763,Peoples Services Directorate,Residential Care - Ext Provider,G310
http://opendatacommunities.org/id/london-borough-council/sutton,London Borough of Sutton,27/11/2020,40474330,"2,688.28 ",Carlene House,10763,Peoples Services Directorate,Residential Care - Ext Provider,G310
http://opendatacommunities.org/id/london-borough-council/sutton,London Borough of Sutton,30/11/2020,6982231,"1,090.90 ",Caroline Barkus,34619,Peoples Services Directorate,Fees - Consultants (Ad Hoc),F283
http://opendatacommunities.org/id/london-borough-council/sutton,London Borough of Sutton,02/11/2020,1301678,"(3,667.00)",Carshalton Boys Sports College (Academy),23984,Peoples Services Directorate,Top-up Funding,G064
http://opendatacommunities.org/id/london-borough-council/sutton,London Borough of Sutton,15/10/2020,6980882,"455,835.00 ",Carshalton Boys Sports College (Academy),23984,Peoples Services Directorate,Building Works -Main Contractor,Y350
http://opendatacommunities.org/id/london-borough-council/sutton,London Borough of Sutton,28/10/2020,6980238,781.00 ,Carter Jonas LLP,30103,"Environment, Housing & Regeneration Directorate",Surveyors Fees,Y030
http://opendatacommunities.org/id/london-borough-council/sutton,London Borough of Sutton,19/04/2020,6980987,567.84 ,Castle Water Ltd (collection account - Thames (other),27112,Resources Directorate,Sewerage - Metered,D695
http://opendatacommunities.org/id/london-borough-council/sutton,London Borough of Sutton,17/09/2020,6979834,"4,796.40 ",Caysh Enterprise Cic,28016,Peoples Services Directorate,Approved Lodgings,H323
http://opendatacommunities.org/id/london-borough-council/sutton,London Borough of Sutton,21/09/2020,6979835,"2,466.72 ",Caysh Enterprise Cic,28016,Peoples Services Directorate,Approved Lodgings,H323
http://opendatacommunities.org/id/london-borough-council/sutton,London Borough of Sutton,12/11/2020,6981232,880.50 ,Caysh Enterprise Cic,28016,Peoples Services Directorate,Approved Lodgings,H323
http://opendatacommunities.org/id/london-borough-council/sutton,London Borough of Sutton,02/11/2020,6980545,"2,087.23 ",Caysh Housing Project,23133,Peoples Services Directorate,Approved Lodgings,H323
http://opendatacommunities.org/id/london-borough-council/sutton,London Borough of Sutton,02/11/2020,6980546,"1,326.49 ",Caysh Housing Project,23133,Peoples Services Directorate,Approved Lodgings,H323
http://opendatacommunities.org/id/london-borough-council/sutton,London Borough of Sutton,02/11/2020,6980547,"1,452.35 ",Caysh Housing Project,23133,Peoples Services Directorate,Approved Lodgings,H323
http://opendatacommunities.org/id/london-borough-council/sutton,London Borough of Sutton,02/11/2020,6980548,431.79 ,Caysh Housing Project,23133,Peoples Services Directorate,Approved Lodgings,H323
http://opendatacommunities.org/id/london-borough-council/sutton,London Borough of Sutton,02/11/2020,6980549,"1,329.59 ",Caysh Housing Project,23133,Peoples Services Directorate,Approved Lodgings,H323
http://opendatacommunities.org/id/london-borough-council/sutton,London Borough of Sutton,02/11/2020,6980550,431.79 ,Caysh Housing Project,23133,Peoples Services Directorate,Approved Lodgings,H323
http://opendatacommunities.org/id/london-borough-council/sutton,London Borough of Sutton,02/11/2020,6980567,"30,833.33 ",Caysh Housing Project,23133,Peoples Services Directorate,Approved Lodgings,H323
http://opendatacommunities.org/id/london-borough-council/sutton,London Borough of Sutton,04/11/2020,6980712,"2,024.30 ",CBRE Ltd,35887,Resources Directorate,Rent - General,D650
http://opendatacommunities.org/id/london-borough-council/sutton,London Borough of Sutton,03/11/2020,6980657,"3,600.00 ",Centro Residential Sales & Lettings Ltd,99898,"Environment, Housing & Regeneration Directorate",Depositors,X460
http://opendatacommunities.org/id/london-borough-council/sutton,London Borough of Sutton,28/09/2020,6980339,"9,158.75 ",Certus Security LLP,33832,"Environment, Housing & Regeneration Directorate",Building Works -Main Contractor,Y350
http://opendatacommunities.org/id/london-borough-council/sutton,London Borough of Sutton,28/09/2020,6980340,"6,105.84 ",Certus Security LLP,33832,"Environment, Housing & Regeneration Directorate",Building Works -Main Contractor,Y350
http://opendatacommunities.org/id/london-borough-council/sutton,London Borough of Sutton,01/10/2020,40467631,"5,679.51 ",Channels & Choices Theraputic Fostering Ltd,25665,Peoples Services Directorate,Foster Parents,G326
http://opendatacommunities.org/id/london-borough-council/sutton,London Borough of Sutton,01/10/2020,40467740,"5,679.51 ",Channels & Choices Theraputic Fostering Ltd,25665,Peoples Services Directorate,Foster Parents,G326
http://opendatacommunities.org/id/london-borough-council/sutton,London Borough of Sutton,30/10/2020,40466695,"3,586.28 ",Charlton Park Care Home T/A Four Seasons (No 7) Ltd.,30290,Peoples Services Directorate,Nursing Care - Ext Provider,G311
http://opendatacommunities.org/id/london-borough-council/sutton,London Borough of Sutton,27/11/2020,40473993,"3,586.28 ",Charlton Park Care Home T/A Four Seasons (No 7) Ltd.,30290,Peoples Services Directorate,Nursing Care - Ext Provider,G311
http://opendatacommunities.org/id/london-borough-council/sutton,London Borough of Sutton,01/10/2020,40467669,"18,283.80 ",Chartwell Care Services Ltd,35398,Peoples Services Directorate,Residential Care-Children,G330
http://opendatacommunities.org/id/london-borough-council/sutton,London Borough of Sutton,02/11/2020,1301680,"4,540.00 ",Cheam Common Infants School -ACADEMY,30167,Peoples Services Directorate,Top-up Funding,G064
http://opendatacommunities.org/id/london-borough-council/sutton,London Borough of Sutton,02/11/2020,1301681,"3,073.33 ",Cheam Common Junior Academy,28932,Peoples Services Directorate,Top-up Funding,G064
http://opendatacommunities.org/id/london-borough-council/sutton,London Borough of Sutton,02/11/2020,1301683,"1,690.00 ",Cheam High School (Academy),23996,Peoples Services Directorate,Top-up Funding,G064
http://opendatacommunities.org/id/london-borough-council/sutton,London Borough of Sutton,02/11/2020,1301691,"(6,823.33)",Cheam High School (Academy),23996,Peoples Services Directorate,Place Funding,G063
http://opendatacommunities.org/id/london-borough-council/sutton,London Borough of Sutton,02/11/2020,1301684,"3,380.00 ",Cheam Park Farm Primary School (LEO Academy Trust),23882,Peoples Services Directorate,Top-up Funding,G064
http://opendatacommunities.org/id/london-borough-council/sutton,London Borough of Sutton,30/10/2020,40466674,"3,555.32 ",Chegworth Nursing Home Bayswift Ltd,10908,Peoples Services Directorate,Nursing Care - Ext Provider,G311
http://opendatacommunities.org/id/london-borough-council/sutton,London Borough of Sutton,30/10/2020,40466725,"3,555.32 ",Chegworth Nursing Home Bayswift Ltd,10908,Peoples Services Directorate,Nursing Care - Ext Provider,G311
http://opendatacommunities.org/id/london-borough-council/sutton,London Borough of Sutton,30/10/2020,40466764,"3,555.32 ",Chegworth Nursing Home Bayswift Ltd,10908,Peoples Services Directorate,Nursing Care - Ext Provider,G311
http://opendatacommunities.org/id/london-borough-council/sutton,London Borough of Sutton,30/10/2020,40466781,633.09 ,Chegworth Nursing Home Bayswift Ltd,10908,Peoples Services Directorate,Nursing Care - Ext Provider,G311
http://opendatacommunities.org/id/london-borough-council/sutton,London Borough of Sutton,30/10/2020,40466803,"4,800.00 ",Chegworth Nursing Home Bayswift Ltd,10908,Peoples Services Directorate,Nursing Care - Short Term Placements,G328
http://opendatacommunities.org/id/london-borough-council/sutton,London Borough of Sutton,30/10/2020,40466862,"3,643.84 ",Chegworth Nursing Home Bayswift Ltd,10908,Peoples Services Directorate,Nursing Care - Ext Provider,G311
http://opendatacommunities.org/id/london-borough-council/sutton,London Borough of Sutton,30/10/2020,40466958,"3,800.00 ",Chegworth Nursing Home Bayswift Ltd,10908,Peoples Services Directorate,Nursing Care - Ext Provider,G311
http://opendatacommunities.org/id/london-borough-council/sutton,London Borough of Sutton,30/10/2020,40467002,"2,800.00 ",Chegworth Nursing Home Bayswift Ltd,10908,Peoples Services Directorate,Nursing Care - Short Term Placements,G328
http://opendatacommunities.org/id/london-borough-council/sutton,London Borough of Sutton,30/10/2020,40467011,"3,746.52 ",Chegworth Nursing Home Bayswift Ltd,10908,Peoples Services Directorate,Nursing Care - Ext Provider,G311
http://opendatacommunities.org/id/london-borough-council/sutton,London Borough of Sutton,30/10/2020,40467012,"3,555.32 ",Chegworth Nursing Home Bayswift Ltd,10908,Peoples Services Directorate,Nursing Care - Ext Provider,G311
http://opendatacommunities.org/id/london-borough-council/sutton,London Borough of Sutton,27/11/2020,40474049,"3,555.32 ",Chegworth Nursing Home Bayswift Ltd,10908,Peoples Services Directorate,Nursing Care - Ext Provider,G311
http://opendatacommunities.org/id/london-borough-council/sutton,London Borough of Sutton,27/11/2020,40474061,"3,555.32 ",Chegworth Nursing Home Bayswift Ltd,10908,Peoples Services Directorate,Nursing Care - Ext Provider,G311
http://opendatacommunities.org/id/london-borough-council/sutton,London Borough of Sutton,27/11/2020,40474096,"2,000.00 ",Chegworth Nursing Home Bayswift Ltd,10908,Peoples Services Directorate,Nursing Care - Ext Provider,G311
http://opendatacommunities.org/id/london-borough-council/sutton,London Borough of Sutton,27/11/2020,40474112,"4,800.00 ",Chegworth Nursing Home Bayswift Ltd,10908,Peoples Services Directorate,Nursing Care - Short Term Placements,G328
http://opendatacommunities.org/id/london-borough-council/sutton,London Borough of Sutton,27/11/2020,40474132,"3,703.38 ",Chegworth Nursing Home Bayswift Ltd,10908,Peoples Services Directorate,Nursing Care - Ext Provider,G311
http://opendatacommunities.org/id/london-borough-council/sutton,London Borough of Sutton,27/11/2020,40474164,"3,643.84 ",Chegworth Nursing Home Bayswift Ltd,10908,Peoples Services Directorate,Nursing Care - Ext Provider,G311
http://opendatacommunities.org/id/london-borough-council/sutton,London Borough of Sutton,27/11/2020,40474279,"3,800.00 ",Chegworth Nursing Home Bayswift Ltd,10908,Peoples Services Directorate,Nursing Care - Ext Provider,G311
http://opendatacommunities.org/id/london-borough-council/sutton,London Borough of Sutton,27/11/2020,40474319,"3,746.52 ",Chegworth Nursing Home Bayswift Ltd,10908,Peoples Services Directorate,Nursing Care - Ext Provider,G311
http://opendatacommunities.org/id/london-borough-council/sutton,London Borough of Sutton,27/11/2020,40474324,"3,555.32 ",Chegworth Nursing Home Bayswift Ltd,10908,Peoples Services Directorate,Nursing Care - Ext Provider,G311
http://opendatacommunities.org/id/london-borough-council/sutton,London Borough of Sutton,27/11/2020,40474339,"2,800.00 ",Chegworth Nursing Home Bayswift Ltd,10908,Peoples Services Directorate,Nursing Care - Short Term Placements,G328
http://opendatacommunities.org/id/london-borough-council/sutton,London Borough of Sutton,27/11/2020,40474350,"3,555.32 ",Chegworth Nursing Home Bayswift Ltd,10908,Peoples Services Directorate,Nursing Care - Ext Provider,G311
http://opendatacommunities.org/id/london-borough-council/sutton,London Borough of Sutton,09/09/2020,6979041,"5,878.93 ",Chelsea and Westminster NHS ft,28891,Health and Wellbeing Directorate,Provider Contract Payments,F470
http://opendatacommunities.org/id/london-borough-council/sutton,London Borough of Sutton,14/11/2020,6981343,"13,725.00 ",Chelsea Studios Ltd,32128,"Environment, Housing & Regeneration Directorate",Temporary Protection - Homeless Persons,H300
http://opendatacommunities.org/id/london-borough-council/sutton,London Borough of Sutton,30/10/2020,40466772,"2,790.40 ",Cherry Lodge,10934,Peoples Services Directorate,Residential Care - Ext Provider,G310
http://opendatacommunities.org/id/london-borough-council/sutton,London Borough of Sutton,30/10/2020,40466846,"3,360.00 ",Cherry Lodge,10934,Peoples Services Directorate,Residential Care - Ext Provider,G310
http://opendatacommunities.org/id/london-borough-council/sutton,London Borough of Sutton,27/11/2020,40474081,"2,790.40 ",Cherry Lodge,10934,Peoples Services Directorate,Residential Care - Ext Provider,G310
http://opendatacommunities.org/id/london-borough-council/sutton,London Borough of Sutton,27/11/2020,40474103,"3,360.00 ",Cherry Lodge,10934,Peoples Services Directorate,Residential Care - Ext Provider,G310
http://opendatacommunities.org/id/london-borough-council/sutton,London Borough of Sutton,30/10/2020,40466694,"4,800.00 ",CHHG Ltd T/A Belmont House,29991,Peoples Services Directorate,Nursing Care - Ext Provider,G311
http://opendatacommunities.org/id/london-borough-council/sutton,London Borough of Sutton,30/10/2020,40466880,"2,228.57 ",CHHG Ltd T/A Belmont House,29991,Peoples Services Directorate,Residential Care - Ext Provider,G310
http://opendatacommunities.org/id/london-borough-council/sutton,London Borough of Sutton,27/11/2020,40474360,"4,800.00 ",CHHG Ltd T/A Belmont House,29991,Peoples Services Directorate,Nursing Care - Ext Provider,G311
http://opendatacommunities.org/id/london-borough-council/sutton,London Borough of Sutton,30/10/2020,40466628,"6,356.00 ",CHHG Ltd t/a Cranmer Court,22562,Peoples Services Directorate,Nursing Care - Ext Provider,G311
http://opendatacommunities.org/id/london-borough-council/sutton,London Borough of Sutton,27/11/2020,40473982,"6,356.00 ",CHHG Ltd t/a Cranmer Court,22562,Peoples Services Directorate,Nursing Care - Ext Provider,G311
http://opendatacommunities.org/id/london-borough-council/sutton,London Borough of Sutton,01/10/2020,40467648,"3,472.00 ",Children of Colour,16870,Peoples Services Directorate,Foster Parents,G326
http://opendatacommunities.org/id/london-borough-council/sutton,London Borough of Sutton,01/10/2020,40467718,"3,385.20 ",Children of Colour,16870,Peoples Services Directorate,Foster Parents,G326
http://opendatacommunities.org/id/london-borough-council/sutton,London Borough of Sutton,06/11/2020,1301709,695.19 ,Children's Trust,10927,Peoples Services Directorate,NMSS Payments,G061
http://opendatacommunities.org/id/london-borough-council/sutton,London Borough of Sutton,09/10/2020,40467657,"16,272.52 ",Children's Trust,10927,Peoples Services Directorate,Residential Care-Children,G330
http://opendatacommunities.org/id/london-borough-council/sutton,London Borough of Sutton,31/10/2020,1301722,"9,333.31 ",Chipstead Valey Primary Trust T/A Chipstead Valley Primary School,26265,Peoples Services Directorate,Top-up Funding,G064
http://opendatacommunities.org/id/london-borough-council/sutton,London Borough of Sutton,30/10/2020,40466711,"7,240.00 ",Choice Care Group (Surrey) Ltd,22029,Peoples Services Directorate,Residential Care - Ext Provider,G310
http://opendatacommunities.org/id/london-borough-council/sutton,London Borough of Sutton,30/10/2020,40466751,"7,878.28 ",Choice Care Group (Surrey) Ltd,22029,Peoples Services Directorate,Residential Care - Ext Provider,G310
http://opendatacommunities.org/id/london-borough-council/sutton,London Borough of Sutton,30/10/2020,40466998,"7,511.00 ",Choice Care Group (Surrey) Ltd,22029,Peoples Services Directorate,Residential Care - Ext Provider,G310
http://opendatacommunities.org/id/london-borough-council/sutton,London Borough of Sutton,30/10/2020,40466999,"7,526.32 ",Choice Care Group (Surrey) Ltd,22029,Peoples Services Directorate,Residential Care - Ext Provider,G310
http://opendatacommunities.org/id/london-borough-council/sutton,London Borough of Sutton,27/11/2020,40474046,"7,240.00 ",Choice Care Group (Surrey) Ltd,22029,Peoples Services Directorate,Residential Care - Ext Provider,G310
http://opendatacommunities.org/id/london-borough-council/sutton,London Borough of Sutton,27/11/2020,40474093,"7,878.28 ",Choice Care Group (Surrey) Ltd,22029,Peoples Services Directorate,Residential Care - Ext Provider,G310
http://opendatacommunities.org/id/london-borough-council/sutton,London Borough of Sutton,27/11/2020,40474303,"7,526.32 ",Choice Care Group (Surrey) Ltd,22029,Peoples Services Directorate,Residential Care - Ext Provider,G310
http://opendatacommunities.org/id/london-borough-council/sutton,London Borough of Sutton,27/11/2020,40474310,"7,511.00 ",Choice Care Group (Surrey) Ltd,22029,Peoples Services Directorate,Residential Care - Ext Provider,G310
http://opendatacommunities.org/id/london-borough-council/sutton,London Borough of Sutton,17/11/2020,1301903,"5,070.00 ",Choice Support,12929,Peoples Services Directorate,Contract Cleaning,D806
http://opendatacommunities.org/id/london-borough-council/sutton,London Borough of Sutton,30/04/2020,6981365,"36,250.02 ",Choice Support,12929,Peoples Services Directorate,Imagine Sutton Mainstream,G305
http://opendatacommunities.org/id/london-borough-council/sutton,London Borough of Sutton,30/10/2020,40467001,"5,509.00 ",Choice Support,12929,Peoples Services Directorate,Residential Care - Ext Provider,G310
http://opendatacommunities.org/id/london-borough-council/sutton,London Borough of Sutton,04/09/2020,40467075,"1,384.48 ",Choice Support,12929,Peoples Services Directorate,Supported Living - Ext Provider,G306
http://opendatacommunities.org/id/london-borough-council/sutton,London Borough of Sutton,04/09/2020,40467075,552.03 ,Choice Support,12929,Peoples Services Directorate,Supported Living - Ext Provider,G306
http://opendatacommunities.org/id/london-borough-council/sutton,London Borough of Sutton,04/09/2020,40467075,"2,241.03 ",Choice Support,12929,Peoples Services Directorate,Supported Living - Ext Provider,G306
http://opendatacommunities.org/id/london-borough-council/sutton,London Borough of Sutton,30/10/2020,40470426,633.81 ,Choice Support,12929,Peoples Services Directorate,Supported Living - Ext Provider,G306
http://opendatacommunities.org/id/london-borough-council/sutton,London Borough of Sutton,30/10/2020,40470426,"6,097.17 ",Choice Support,12929,Peoples Services Directorate,Supported Living - Ext Provider,G306
http://opendatacommunities.org/id/london-borough-council/sutton,London Borough of Sutton,30/10/2020,40470428,887.36 ,Choice Support,12929,Peoples Services Directorate,Supported Living - Ext Provider,G306
http://opendatacommunities.org/id/london-borough-council/sutton,London Borough of Sutton,30/10/2020,40470428,"5,600.01 ",Choice Support,12929,Peoples Services Directorate,Supported Living - Ext Provider,G306
http://opendatacommunities.org/id/london-borough-council/sutton,London Borough of Sutton,30/10/2020,40470429,887.36 ,Choice Support,12929,Peoples Services Directorate,Supported Living - Ext Provider,G306
http://opendatacommunities.org/id/london-borough-council/sutton,London Borough of Sutton,30/10/2020,40470429,"6,637.89 ",Choice Support,12929,Peoples Services Directorate,Supported Living - Ext Provider,G306
http://opendatacommunities.org/id/london-borough-council/sutton,London Borough of Sutton,30/10/2020,40470430,"2,250.12 ",Choice Support,12929,Peoples Services Directorate,Supported Living - Ext Provider,G306
http://opendatacommunities.org/id/london-borough-council/sutton,London Borough of Sutton,30/10/2020,40470430,633.81 ,Choice Support,12929,Peoples Services Directorate,Supported Living - Ext Provider,G306
http://opendatacommunities.org/id/london-borough-council/sutton,London Borough of Sutton,30/10/2020,40470430,"1,451.68 ",Choice Support,12929,Peoples Services Directorate,Supported Living - Ext Provider,G306
http://opendatacommunities.org/id/london-borough-council/sutton,London Borough of Sutton,30/10/2020,40470431,"2,710.28 ",Choice Support,12929,Peoples Services Directorate,Supported Living - Ext Provider,G306
http://opendatacommunities.org/id/london-borough-council/sutton,London Borough of Sutton,30/10/2020,40470431,633.81 ,Choice Support,12929,Peoples Services Directorate,Supported Living - Ext Provider,G306
http://opendatacommunities.org/id/london-borough-council/sutton,London Borough of Sutton,30/10/2020,40470431,"1,560.68 ",Choice Support,12929,Peoples Services Directorate,Supported Living - Ext Provider,G306
http://opendatacommunities.org/id/london-borough-council/sutton,London Borough of Sutton,30/10/2020,40470432,"3,448.49 ",Choice Support,12929,Peoples Services Directorate,Supported Living - Ext Provider,G306
http://opendatacommunities.org/id/london-borough-council/sutton,London Borough of Sutton,30/10/2020,40470432,633.81 ,Choice Support,12929,Peoples Services Directorate,Supported Living - Ext Provider,G306
http://opendatacommunities.org/id/london-borough-council/sutton,London Borough of Sutton,30/10/2020,40470432,"3,019.75 ",Choice Support,12929,Peoples Services Directorate,Supported Living - Ext Provider,G306
http://opendatacommunities.org/id/london-borough-council/sutton,London Borough of Sutton,30/10/2020,40470433,"1,633.17 ",Choice Support,12929,Peoples Services Directorate,Supported Living - Ext Provider,G306
http://opendatacommunities.org/id/london-borough-council/sutton,London Borough of Sutton,30/10/2020,40470433,633.81 ,Choice Support,12929,Peoples Services Directorate,Supported Living - Ext Provider,G306
http://opendatacommunities.org/id/london-borough-council/sutton,London Borough of Sutton,30/10/2020,40470433,"1,705.93 ",Choice Support,12929,Peoples Services Directorate,Supported Living - Ext Provider,G306
http://opendatacommunities.org/id/london-borough-council/sutton,London Borough of Sutton,30/10/2020,40470434,887.36 ,Choice Support,12929,Peoples Services Directorate,Supported Living - Ext Provider,G306
http://opendatacommunities.org/id/london-borough-council/sutton,London Borough of Sutton,30/10/2020,40470434,"5,621.71 ",Choice Support,12929,Peoples Services Directorate,Supported Living - Ext Provider,G306
http://opendatacommunities.org/id/london-borough-council/sutton,London Borough of Sutton,30/10/2020,40470435,887.36 ,Choice Support,12929,Peoples Services Directorate,Supported Living - Ext Provider,G306
http://opendatacommunities.org/id/london-borough-council/sutton,London Borough of Sutton,30/10/2020,40470435,"4,801.45 ",Choice Support,12929,Peoples Services Directorate,Supported Living - Ext Provider,G306
http://opendatacommunities.org/id/london-borough-council/sutton,London Borough of Sutton,19/11/2020,40472276,"2,342.06 ",Choice Support,12929,Peoples Services Directorate,Supported Living - Ext Provider,G306
http://opendatacommunities.org/id/london-borough-council/sutton,London Borough of Sutton,19/11/2020,40472276,"1,634.06 ",Choice Support,12929,Peoples Services Directorate,Supported Living - Ext Provider,G306
http://opendatacommunities.org/id/london-borough-council/sutton,London Borough of Sutton,19/11/2020,40472279,"2,851.20 ",Choice Support,12929,Peoples Services Directorate,Supported Living - Ext Provider,G306
http://opendatacommunities.org/id/london-borough-council/sutton,London Borough of Sutton,19/11/2020,40472279,"1,154.06 ",Choice Support,12929,Peoples Services Directorate,Supported Living - Ext Provider,G306
http://opendatacommunities.org/id/london-borough-council/sutton,London Borough of Sutton,19/11/2020,40472280,"2,579.66 ",Choice Support,12929,Peoples Services Directorate,Supported Living - Ext Provider,G306
http://opendatacommunities.org/id/london-borough-council/sutton,London Borough of Sutton,19/11/2020,40472280,"1,643.06 ",Choice Support,12929,Peoples Services Directorate,Supported Living - Ext Provider,G306
http://opendatacommunities.org/id/london-borough-council/sutton,London Borough of Sutton,19/11/2020,40472281,"2,409.94 ",Choice Support,12929,Peoples Services Directorate,Supported Living - Ext Provider,G306
http://opendatacommunities.org/id/london-borough-council/sutton,London Borough of Sutton,19/11/2020,40472281,"1,643.06 ",Choice Support,12929,Peoples Services Directorate,Supported Living - Ext Provider,G306
http://opendatacommunities.org/id/london-borough-council/sutton,London Borough of Sutton,19/11/2020,40472282,"5,023.54 ",Choice Support,12929,Peoples Services Directorate,Supported Living - Ext Provider,G306
http://opendatacommunities.org/id/london-borough-council/sutton,London Borough of Sutton,19/11/2020,40472282,"1,643.06 ",Choice Support,12929,Peoples Services Directorate,Supported Living - Ext Provider,G306
http://opendatacommunities.org/id/london-borough-council/sutton,London Borough of Sutton,19/11/2020,40472283,"3,556.54 ",Choice Support,12929,Peoples Services Directorate,Supported Living - Ext Provider,G306
http://opendatacommunities.org/id/london-borough-council/sutton,London Borough of Sutton,19/11/2020,40472283,556.32 ,Choice Support,12929,Peoples Services Directorate,Supported Living - Ext Provider,G306
http://opendatacommunities.org/id/london-borough-council/sutton,London Borough of Sutton,19/11/2020,40472288,"2,409.94 ",Choice Support,12929,Peoples Services Directorate,Supported Living - Ext Provider,G306
http://opendatacommunities.org/id/london-borough-council/sutton,London Borough of Sutton,19/11/2020,40472288,"1,643.06 ",Choice Support,12929,Peoples Services Directorate,Supported Living - Ext Provider,G306
http://opendatacommunities.org/id/london-borough-council/sutton,London Borough of Sutton,19/11/2020,40472289,"2,647.54 ",Choice Support,12929,Peoples Services Directorate,Supported Living - Ext Provider,G306
http://opendatacommunities.org/id/london-borough-council/sutton,London Borough of Sutton,19/11/2020,40472289,"1,643.06 ",Choice Support,12929,Peoples Services Directorate,Supported Living - Ext Provider,G306
http://opendatacommunities.org/id/london-borough-council/sutton,London Borough of Sutton,19/11/2020,40472290,"2,274.18 ",Choice Support,12929,Peoples Services Directorate,Supported Living - Ext Provider,G306
http://opendatacommunities.org/id/london-borough-council/sutton,London Borough of Sutton,19/11/2020,40472290,468.90 ,Choice Support,12929,Peoples Services Directorate,Supported Living - Ext Provider,G306
http://opendatacommunities.org/id/london-borough-council/sutton,London Borough of Sutton,19/11/2020,40472290,"1,598.70 ",Choice Support,12929,Peoples Services Directorate,Supported Living - Ext Provider,G306
http://opendatacommunities.org/id/london-borough-council/sutton,London Borough of Sutton,19/11/2020,40472291,"2,211.72 ",Choice Support,12929,Peoples Services Directorate,Supported Living - Ext Provider,G306
http://opendatacommunities.org/id/london-borough-council/sutton,London Borough of Sutton,19/11/2020,40472291,468.90 ,Choice Support,12929,Peoples Services Directorate,Supported Living - Ext Provider,G306
http://opendatacommunities.org/id/london-borough-council/sutton,London Borough of Sutton,19/11/2020,40472291,"1,564.76 ",Choice Support,12929,Peoples Services Directorate,Supported Living - Ext Provider,G306
http://opendatacommunities.org/id/london-borough-council/sutton,London Borough of Sutton,19/11/2020,40472292,"4,998.42 ",Choice Support,12929,Peoples Services Directorate,Supported Living - Ext Provider,G306
http://opendatacommunities.org/id/london-borough-council/sutton,London Borough of Sutton,19/11/2020,40472292,431.74 ,Choice Support,12929,Peoples Services Directorate,Supported Living - Ext Provider,G306
http://opendatacommunities.org/id/london-borough-council/sutton,London Borough of Sutton,19/11/2020,40472293,"6,079.12 ",Choice Support,12929,Peoples Services Directorate,Supported Living - Ext Provider,G306
http://opendatacommunities.org/id/london-borough-council/sutton,London Borough of Sutton,19/11/2020,40472293,919.28 ,Choice Support,12929,Peoples Services Directorate,Supported Living - Ext Provider,G306
http://opendatacommunities.org/id/london-borough-council/sutton,London Borough of Sutton,19/11/2020,40472298,"1,934.74 ",Choice Support,12929,Peoples Services Directorate,Supported Living - Ext Provider,G306
http://opendatacommunities.org/id/london-borough-council/sutton,London Borough of Sutton,19/11/2020,40472298,"1,018.28 ",Choice Support,12929,Peoples Services Directorate,Supported Living - Ext Provider,G306
http://opendatacommunities.org/id/london-borough-council/sutton,London Borough of Sutton,19/11/2020,40472299,"3,937.38 ",Choice Support,12929,Peoples Services Directorate,Supported Living - Ext Provider,G306
http://opendatacommunities.org/id/london-borough-council/sutton,London Borough of Sutton,19/11/2020,40472299,"1,634.06 ",Choice Support,12929,Peoples Services Directorate,Supported Living - Ext Provider,G306
http://opendatacommunities.org/id/london-borough-council/sutton,London Borough of Sutton,19/11/2020,40472300,"3,937.38 ",Choice Support,12929,Peoples Services Directorate,Supported Living - Ext Provider,G306
http://opendatacommunities.org/id/london-borough-council/sutton,London Borough of Sutton,19/11/2020,40472300,844.32 ,Choice Support,12929,Peoples Services Directorate,Supported Living - Ext Provider,G306
http://opendatacommunities.org/id/london-borough-council/sutton,London Borough of Sutton,19/11/2020,40472302,"3,801.60 ",Choice Support,12929,Peoples Services Directorate,Supported Living - Ext Provider,G306
http://opendatacommunities.org/id/london-borough-council/sutton,London Borough of Sutton,19/11/2020,40472302,"1,634.06 ",Choice Support,12929,Peoples Services Directorate,Supported Living - Ext Provider,G306
http://opendatacommunities.org/id/london-borough-council/sutton,London Borough of Sutton,19/11/2020,40472303,"3,054.86 ",Choice Support,12929,Peoples Services Directorate,Supported Living - Ext Provider,G306
http://opendatacommunities.org/id/london-borough-council/sutton,London Borough of Sutton,19/11/2020,40472303,"1,643.06 ",Choice Support,12929,Peoples Services Directorate,Supported Living - Ext Provider,G306
http://opendatacommunities.org/id/london-borough-council/sutton,London Borough of Sutton,19/11/2020,40472304,"3,292.46 ",Choice Support,12929,Peoples Services Directorate,Supported Living - Ext Provider,G306
http://opendatacommunities.org/id/london-borough-council/sutton,London Borough of Sutton,19/11/2020,40472304,"1,634.06 ",Choice Support,12929,Peoples Services Directorate,Supported Living - Ext Provider,G306
http://opendatacommunities.org/id/london-borough-council/sutton,London Borough of Sutton,19/11/2020,40472311,"1,357.72 ",Choice Support,12929,Peoples Services Directorate,Supported Living - Ext Provider,G306
http://opendatacommunities.org/id/london-borough-council/sutton,London Borough of Sutton,19/11/2020,40472311,"2,323.02 ",Choice Support,12929,Peoples Services Directorate,Supported Living - Ext Provider,G306
http://opendatacommunities.org/id/london-borough-council/sutton,London Borough of Sutton,19/11/2020,40472311,468.90 ,Choice Support,12929,Peoples Services Directorate,Supported Living - Ext Provider,G306
http://opendatacommunities.org/id/london-borough-council/sutton,London Borough of Sutton,19/11/2020,40472312,"2,856.22 ",Choice Support,12929,Peoples Services Directorate,Supported Living - Ext Provider,G306
http://opendatacommunities.org/id/london-borough-council/sutton,London Borough of Sutton,19/11/2020,40472312,"1,634.06 ",Choice Support,12929,Peoples Services Directorate,Supported Living - Ext Provider,G306
http://opendatacommunities.org/id/london-borough-council/sutton,London Borough of Sutton,19/11/2020,40472313,"2,701.84 ",Choice Support,12929,Peoples Services Directorate,Supported Living - Ext Provider,G306
http://opendatacommunities.org/id/london-borough-council/sutton,London Borough of Sutton,19/11/2020,40472313,"1,384.88 ",Choice Support,12929,Peoples Services Directorate,Supported Living - Ext Provider,G306
http://opendatacommunities.org/id/london-borough-council/sutton,London Borough of Sutton,19/11/2020,40472313,844.32 ,Choice Support,12929,Peoples Services Directorate,Supported Living - Ext Provider,G306
http://opendatacommunities.org/id/london-borough-council/sutton,London Borough of Sutton,19/11/2020,40472314,"2,044.28 ",Choice Support,12929,Peoples Services Directorate,Supported Living - Ext Provider,G306
http://opendatacommunities.org/id/london-borough-council/sutton,London Borough of Sutton,19/11/2020,40472314,468.90 ,Choice Support,12929,Peoples Services Directorate,Supported Living - Ext Provider,G306
http://opendatacommunities.org/id/london-borough-council/sutton,London Borough of Sutton,19/11/2020,40472314,"1,820.74 ",Choice Support,12929,Peoples Services Directorate,Supported Living - Ext Provider,G306
http://opendatacommunities.org/id/london-borough-council/sutton,London Borough of Sutton,19/11/2020,40472315,"2,579.66 ",Choice Support,12929,Peoples Services Directorate,Supported Living - Ext Provider,G306
http://opendatacommunities.org/id/london-borough-council/sutton,London Borough of Sutton,19/11/2020,40472315,"1,643.06 ",Choice Support,12929,Peoples Services Directorate,Supported Living - Ext Provider,G306
http://opendatacommunities.org/id/london-borough-council/sutton,London Borough of Sutton,19/11/2020,40472324,"2,240.22 ",Choice Support,12929,Peoples Services Directorate,Supported Living - Ext Provider,G306
http://opendatacommunities.org/id/london-borough-council/sutton,London Borough of Sutton,19/11/2020,40472324,468.90 ,Choice Support,12929,Peoples Services Directorate,Supported Living - Ext Provider,G306
http://opendatacommunities.org/id/london-borough-council/sutton,London Borough of Sutton,19/11/2020,40472324,"1,573.58 ",Choice Support,12929,Peoples Services Directorate,Supported Living - Ext Provider,G306
http://opendatacommunities.org/id/london-borough-council/sutton,London Borough of Sutton,19/11/2020,40472325,"3,054.86 ",Choice Support,12929,Peoples Services Directorate,Supported Living - Ext Provider,G306
http://opendatacommunities.org/id/london-borough-council/sutton,London Borough of Sutton,19/11/2020,40472325,"1,643.06 ",Choice Support,12929,Peoples Services Directorate,Supported Living - Ext Provider,G306
http://opendatacommunities.org/id/london-borough-council/sutton,London Borough of Sutton,19/11/2020,40472326,"2,002.62 ",Choice Support,12929,Peoples Services Directorate,Supported Living - Ext Provider,G306
http://opendatacommunities.org/id/london-borough-council/sutton,London Borough of Sutton,19/11/2020,40472326,"1,547.78 ",Choice Support,12929,Peoples Services Directorate,Supported Living - Ext Provider,G306
http://opendatacommunities.org/id/london-borough-council/sutton,London Borough of Sutton,19/11/2020,40472326,468.90 ,Choice Support,12929,Peoples Services Directorate,Supported Living - Ext Provider,G306
http://opendatacommunities.org/id/london-borough-council/sutton,London Borough of Sutton,30/10/2020,40472614,887.36 ,Choice Support,12929,Peoples Services Directorate,Supported Living - Ext Provider,G306
http://opendatacommunities.org/id/london-borough-council/sutton,London Borough of Sutton,27/11/2020,40474307,"5,509.00 ",Choice Support,12929,Peoples Services Directorate,Residential Care - Ext Provider,G310
http://opendatacommunities.org/id/london-borough-council/sutton,London Borough of Sutton,01/12/2020,1302202,900.00 ,Christchurch New Malden CofE Primary,34721,Peoples Services Directorate,Payments to Schools,G065
http://opendatacommunities.org/id/london-borough-council/sutton,London Borough of Sutton,01/12/2020,1302203,"1,200.00 ",Christchurch New Malden CofE Primary,34721,Peoples Services Directorate,Payments to Schools,G065
http://opendatacommunities.org/id/london-borough-council/sutton,London Borough of Sutton,08/11/2020,6981189,997.10 ,Christopher Millar,34823,"Environment, Housing & Regeneration Directorate",Temporary Protection - Homeless Persons,H300
http://opendatacommunities.org/id/london-borough-council/sutton,London Borough of Sutton,08/10/2020,6981260,997.10 ,Christopher Millar,34823,"Environment, Housing & Regeneration Directorate",Temporary Protection - Homeless Persons,H300
http://opendatacommunities.org/id/london-borough-council/sutton,London Borough of Sutton,03/11/2020,6980644,"28,854.96 ",Chroma Vision Limited,20351,"Environment, Housing & Regeneration Directorate",IT Equipment - Repair and Maintenance,F382
http://opendatacommunities.org/id/london-borough-council/sutton,London Borough of Sutton,20/11/2020,6981649,"35,000.00 ",Chroma Vision Limited,20351,"Environment, Housing & Regeneration Directorate",IT Equipment - Repair and Maintenance,F382
http://opendatacommunities.org/id/london-borough-council/sutton,London Borough of Sutton,20/11/2020,6981674,"4,340.00 ",Chroma Vision Limited,20351,"Environment, Housing & Regeneration Directorate",Equipment -General,Y520
http://opendatacommunities.org/id/london-borough-council/sutton,London Borough of Sutton,10/11/2020,6980965,"3,600.00 ",Cirrus Primary Academy Trust t/a Barrow Hedges Primary School Academy,30237,Resources Directorate,Provider Contract Payments,F470
http://opendatacommunities.org/id/london-borough-council/sutton,London Borough of Sutton,13/11/2020,6981311,"1,250.00 ",CITY LOCATIONS LTD,99898,"Environment, Housing & Regeneration Directorate",Depositors,X460
http://opendatacommunities.org/id/london-borough-council/sutton,London Borough of Sutton,08/10/2020,6981777,"30,000.00 ",City of London Corporation,22388,"Environment, Housing & Regeneration Directorate",Other Services,F340
http://opendatacommunities.org/id/london-borough-council/sutton,London Borough of Sutton,19/11/2020,6981954,"8,787.50 ",City of London Corporation,22388,"Environment, Housing & Regeneration Directorate",Asbestos CA Disposal,G173
http://opendatacommunities.org/id/london-borough-council/sutton,London Borough of Sutton,31/10/2020,6980698,"1,525.03 ",City Sprint UK (Excel) Ltd,26267,Health and Wellbeing Directorate,Hired Vehicles,E070
http://opendatacommunities.org/id/london-borough-council/sutton,London Borough of Sutton,01/11/2020,6981564,"11,834.00 ",Cityglen Ltd T/A Hytyme ltd,24115,"Environment, Housing & Regeneration Directorate",Bed and Breakfast Accommodation,G400
http://opendatacommunities.org/id/london-borough-council/sutton,London Borough of Sutton,23/11/2020,6981720,"9,184.77 ",Civica UK Ltd,10978,Resources Directorate,IT Licences,F385
http://opendatacommunities.org/id/london-borough-council/sutton,London Borough of Sutton,23/11/2020,6981721,937.21 ,Civica UK Ltd,10978,Resources Directorate,IT Licences,F385
http://opendatacommunities.org/id/london-borough-council/sutton,London Borough of Sutton,23/11/2020,6981722,"1,564.62 ",Civica UK Ltd,10978,Resources Directorate,IT Licences,F385
http://opendatacommunities.org/id/london-borough-council/sutton,London Borough of Sutton,23/11/2020,6981724,"1,564.62 ",Civica UK Ltd,10978,Resources Directorate,IT Licences,F385
http://opendatacommunities.org/id/london-borough-council/sutton,London Borough of Sutton,23/11/2020,6981725,"9,184.77 ",Civica UK Ltd,10978,Resources Directorate,IT Licences,F385
http://opendatacommunities.org/id/london-borough-council/sutton,London Borough of Sutton,23/11/2020,6981726,"12,500.00 ",Civica UK Ltd,10978,Resources Directorate,IT Licences,F385
http://opendatacommunities.org/id/london-borough-council/sutton,London Borough of Sutton,23/11/2020,6981727,937.21 ,Civica UK Ltd,10978,Resources Directorate,IT Licences,F385
http://opendatacommunities.org/id/london-borough-council/sutton,London Borough of Sutton,23/11/2020,6981728,534.38 ,Civica UK Ltd,10978,Resources Directorate,IT Licences,F385
http://opendatacommunities.org/id/london-borough-council/sutton,London Borough of Sutton,23/11/2020,6981729,534.38 ,Civica UK Ltd,10978,Resources Directorate,IT Licences,F385
http://opendatacommunities.org/id/london-borough-council/sutton,London Borough of Sutton,23/11/2020,6981730,"14,003.36 ",Civica UK Ltd,10978,Resources Directorate,IT Licences,F385
http://opendatacommunities.org/id/london-borough-council/sutton,London Borough of Sutton,30/10/2020,40466672,"5,600.00 ",Claremont Care Svs Ltd,18724,Peoples Services Directorate,Nursing Care - Ext Provider,G311
http://opendatacommunities.org/id/london-borough-council/sutton,London Borough of Sutton,30/10/2020,40466723,"5,200.00 ",Claremont Care Svs Ltd,18724,Peoples Services Directorate,Nursing Care - Ext Provider,G311
http://opendatacommunities.org/id/london-borough-council/sutton,London Borough of Sutton,30/10/2020,40466755,"4,400.00 ",Claremont Care Svs Ltd,18724,Peoples Services Directorate,Nursing Care - Short Term Placements,G328
http://opendatacommunities.org/id/london-borough-council/sutton,London Borough of Sutton,30/10/2020,40466762,"3,515.04 ",Claremont Care Svs Ltd,18724,Peoples Services Directorate,Nursing Care - Ext Provider,G311
http://opendatacommunities.org/id/london-borough-council/sutton,London Borough of Sutton,30/10/2020,40466957,"4,374.00 ",Claremont Care Svs Ltd,18724,Peoples Services Directorate,Nursing Care - Ext Provider,G311
http://opendatacommunities.org/id/london-borough-council/sutton,London Borough of Sutton,27/11/2020,40474032,"5,200.00 ",Claremont Care Svs Ltd,18724,Peoples Services Directorate,Nursing Care - Ext Provider,G311
http://opendatacommunities.org/id/london-borough-council/sutton,London Borough of Sutton,27/11/2020,40474071,"3,771.43 ",Claremont Care Svs Ltd,18724,Peoples Services Directorate,Nursing Care - Short Term Placements,G328
http://opendatacommunities.org/id/london-borough-council/sutton,London Borough of Sutton,27/11/2020,40474076,"3,515.04 ",Claremont Care Svs Ltd,18724,Peoples Services Directorate,Nursing Care - Ext Provider,G311
http://opendatacommunities.org/id/london-borough-council/sutton,London Borough of Sutton,27/11/2020,40474272,"4,374.00 ",Claremont Care Svs Ltd,18724,Peoples Services Directorate,Nursing Care - Ext Provider,G311
http://opendatacommunities.org/id/london-borough-council/sutton,London Borough of Sutton,27/11/2020,40474369,"5,600.00 ",Claremont Care Svs Ltd,18724,Peoples Services Directorate,Nursing Care - Ext Provider,G311
http://opendatacommunities.org/id/london-borough-council/sutton,London Borough of Sutton,05/11/2020,1301287,689.58 ,Clarion Housing Association Ltd,32192,Peoples Services Directorate,Approved Lodgings,H323
http://opendatacommunities.org/id/london-borough-council/sutton,London Borough of Sutton,27/10/2020,1301182,"8,861.76 ",Clark SLT Of Clark Interventions Limited,35715,Peoples Services Directorate,Place Funding,G063
http://opendatacommunities.org/id/london-borough-council/sutton,London Borough of Sutton,27/10/2020,1301183,"3,264.48 ",Clark SLT Of Clark Interventions Limited,35715,Peoples Services Directorate,Place Funding,G063
http://opendatacommunities.org/id/london-borough-council/sutton,London Borough of Sutton,13/11/2020,1301943,"1,200.00 ",Clark SLT Of Clark Interventions Limited,35715,Peoples Services Directorate,Special Educational Needs,G331
http://opendatacommunities.org/id/london-borough-council/sutton,London Borough of Sutton,14/10/2020,1301204,750.00 ,Classroom Teachers Ltd,32358,Peoples Services Directorate,Independent Schools,G325
http://opendatacommunities.org/id/london-borough-council/sutton,London Borough of Sutton,10/11/2020,6981022,"50,000.00 ",Clifford Chance LLP,99827,Resources Directorate,Legal Services,G049
http://opendatacommunities.org/id/london-borough-council/sutton,London Borough of Sutton,17/11/2020,1301883,"6,084.00 ",Clovecare Ltd,33431,Peoples Services Directorate,Contract Cleaning,D806
http://opendatacommunities.org/id/london-borough-council/sutton,London Borough of Sutton,05/10/2020,40467123,460.25 ,Clovecare Ltd,33431,Peoples Services Directorate,Home Care,G334
http://opendatacommunities.org/id/london-borough-council/sutton,London Borough of Sutton,05/10/2020,40467127,419.00 ,Clovecare Ltd,33431,Peoples Services Directorate,Home Care,G334
http://opendatacommunities.org/id/london-borough-council/sutton,London Borough of Sutton,05/10/2020,40467130,469.00 ,Clovecare Ltd,33431,Peoples Services Directorate,Home Care,G334
http://opendatacommunities.org/id/london-borough-council/sutton,London Borough of Sutton,05/10/2020,40467144,611.00 ,Clovecare Ltd,33431,Peoples Services Directorate,Home Care,G334
http://opendatacommunities.org/id/london-borough-council/sutton,London Borough of Sutton,13/10/2020,40469303,803.00 ,Clovecare Ltd,33431,Peoples Services Directorate,Home Care,G334
http://opendatacommunities.org/id/london-borough-council/sutton,London Borough of Sutton,13/10/2020,40469319,469.00 ,Clovecare Ltd,33431,Peoples Services Directorate,Home Care,G334
http://opendatacommunities.org/id/london-borough-council/sutton,London Borough of Sutton,13/10/2020,40469324,460.25 ,Clovecare Ltd,33431,Peoples Services Directorate,Home Care,G334
http://opendatacommunities.org/id/london-borough-council/sutton,London Borough of Sutton,13/10/2020,40469353,462.50 ,Clovecare Ltd,33431,Peoples Services Directorate,Home Care,G334
http://opendatacommunities.org/id/london-borough-council/sutton,London Borough of Sutton,19/10/2020,40470445,469.00 ,Clovecare Ltd,33431,Peoples Services Directorate,Home Care,G334
http://opendatacommunities.org/id/london-borough-council/sutton,London Borough of Sutton,19/10/2020,40470452,460.25 ,Clovecare Ltd,33431,Peoples Services Directorate,Home Care,G334
http://opendatacommunities.org/id/london-borough-council/sutton,London Borough of Sutton,19/10/2020,40470458,803.00 ,Clovecare Ltd,33431,Peoples Services Directorate,Home Care,G334
http://opendatacommunities.org/id/london-borough-council/sutton,London Borough of Sutton,26/10/2020,40472634,460.25 ,Clovecare Ltd,33431,Peoples Services Directorate,Home Care,G334
http://opendatacommunities.org/id/london-borough-council/sutton,London Borough of Sutton,26/10/2020,40472638,803.00 ,Clovecare Ltd,33431,Peoples Services Directorate,Home Care,G334
http://opendatacommunities.org/id/london-borough-council/sutton,London Borough of Sutton,26/10/2020,40472652,469.00 ,Clovecare Ltd,33431,Peoples Services Directorate,Home Care,G334
http://opendatacommunities.org/id/london-borough-council/sutton,London Borough of Sutton,02/11/2020,40474475,803.00 ,Clovecare Ltd,33431,Peoples Services Directorate,Home Care,G334
http://opendatacommunities.org/id/london-borough-council/sutton,London Borough of Sutton,30/10/2020,40466806,"2,600.00 ",Cloyda Limited,20402,Peoples Services Directorate,Residential Care - Ext Provider,G310
http://opendatacommunities.org/id/london-borough-council/sutton,London Borough of Sutton,27/11/2020,40474138,"2,600.00 ",Cloyda Limited,20402,Peoples Services Directorate,Residential Care - Ext Provider,G310
http://opendatacommunities.org/id/london-borough-council/sutton,London Borough of Sutton,17/11/2020,1301880,"1,014.00 ",Cmg Homes Ltd,11026,Peoples Services Directorate,Contract Cleaning,D806
http://opendatacommunities.org/id/london-borough-council/sutton,London Borough of Sutton,30/10/2020,40466750,"5,416.92 ",Cmg Homes Ltd,11026,Peoples Services Directorate,Residential Care - Ext Provider,G310
http://opendatacommunities.org/id/london-borough-council/sutton,London Borough of Sutton,30/10/2020,40467020,"7,036.00 ",Cmg Homes Ltd,11026,Peoples Services Directorate,Residential Care - Ext Provider,G310
http://opendatacommunities.org/id/london-borough-council/sutton,London Borough of Sutton,19/11/2020,40472284,"3,060.00 ",Cmg Homes Ltd,11026,Peoples Services Directorate,Supported Living - Ext Provider,G306
http://opendatacommunities.org/id/london-borough-council/sutton,London Borough of Sutton,19/11/2020,40472294,"3,544.28 ",Cmg Homes Ltd,11026,Peoples Services Directorate,Supported Living - Ext Provider,G306
http://opendatacommunities.org/id/london-borough-council/sutton,London Borough of Sutton,19/11/2020,40472295,"3,557.14 ",Cmg Homes Ltd,11026,Peoples Services Directorate,Supported Living - Ext Provider,G306
http://opendatacommunities.org/id/london-borough-council/sutton,London Borough of Sutton,19/11/2020,40472305,"4,444.28 ",Cmg Homes Ltd,11026,Peoples Services Directorate,Supported Living - Ext Provider,G306
http://opendatacommunities.org/id/london-borough-council/sutton,London Borough of Sutton,27/11/2020,40474077,"5,416.92 ",Cmg Homes Ltd,11026,Peoples Services Directorate,Residential Care - Ext Provider,G310
http://opendatacommunities.org/id/london-borough-council/sutton,London Borough of Sutton,27/11/2020,40474308,"7,036.00 ",Cmg Homes Ltd,11026,Peoples Services Directorate,Residential Care - Ext Provider,G310
http://opendatacommunities.org/id/london-borough-council/sutton,London Borough of Sutton,30/10/2020,40466879,"5,045.80 ",Cognithan Ltd,29938,Peoples Services Directorate,Residential Care - Ext Provider,G310
http://opendatacommunities.org/id/london-borough-council/sutton,London Borough of Sutton,27/11/2020,40474161,"5,045.80 ",Cognithan Ltd,29938,Peoples Services Directorate,Residential Care - Ext Provider,G310
http://opendatacommunities.org/id/london-borough-council/sutton,London Borough of Sutton,02/11/2020,6980543,"259,155.00 ",Cognus Ltd,26829,Peoples Services Directorate,Special Educational Needs,G331
http://opendatacommunities.org/id/london-borough-council/sutton,London Borough of Sutton,10/11/2020,6980979,"167,900.00 ",Cognus Ltd,26829,Peoples Services Directorate,Contractual Consultant Fees,G430
http://opendatacommunities.org/id/london-borough-council/sutton,London Borough of Sutton,10/11/2020,6980979,"198,600.00 ",Cognus Ltd,26829,Peoples Services Directorate,Contractual Consultant Fees,G430
http://opendatacommunities.org/id/london-borough-council/sutton,London Borough of Sutton,30/11/2020,6982239,"13,050.73 ",Cognus Ltd,26829,Peoples Services Directorate,Fees - Consultants (Ad Hoc),F283
http://opendatacommunities.org/id/london-borough-council/sutton,London Borough of Sutton,02/11/2020,6980570,"5,100.00 ",Collaborate I CIC,26296,Resources Directorate,Provider Contract Payments,F470
http://opendatacommunities.org/id/london-borough-council/sutton,London Borough of Sutton,16/11/2020,6981356,"2,400.00 ",Company of Editors Ltd,35734,Health and Wellbeing Directorate,Materials - General,F100
http://opendatacommunities.org/id/london-borough-council/sutton,London Borough of Sutton,16/11/2020,6981357,"9,999.00 ",Company of Editors Ltd,35734,Health and Wellbeing Directorate,Materials - General,F100
http://opendatacommunities.org/id/london-borough-council/sutton,London Borough of Sutton,01/10/2020,40467758,"17,271.34 ",Compass Children's Homes Ltd,26810,Peoples Services Directorate,Residential Care-Children,G330
http://opendatacommunities.org/id/london-borough-council/sutton,London Borough of Sutton,01/10/2020,40467625,"4,495.00 ",Compass Fostering Eastern Ltd,32193,Peoples Services Directorate,Foster Parents,G326
http://opendatacommunities.org/id/london-borough-council/sutton,London Borough of Sutton,01/10/2020,40467663,"3,480.11 ",Compass Fostering Eastern Ltd,32193,Peoples Services Directorate,Foster Parents,G326
http://opendatacommunities.org/id/london-borough-council/sutton,London Borough of Sutton,01/10/2020,40467670,"3,250.35 ",Compass Fostering Eastern Ltd,32193,Peoples Services Directorate,Foster Parents,G326
http://opendatacommunities.org/id/london-borough-council/sutton,London Borough of Sutton,01/10/2020,40467624,"3,454.02 ",Compass Fostering London Ltd,25848,Peoples Services Directorate,Foster Parents,G326
http://opendatacommunities.org/id/london-borough-council/sutton,London Borough of Sutton,01/10/2020,40467662,"3,454.02 ",Compass Fostering London Ltd,25848,Peoples Services Directorate,Foster Parents,G326
http://opendatacommunities.org/id/london-borough-council/sutton,London Borough of Sutton,31/10/2020,40467694,"2,005.56 ",Compass Fostering London Ltd,25848,Peoples Services Directorate,Foster Parents,G326
http://opendatacommunities.org/id/london-borough-council/sutton,London Borough of Sutton,31/10/2020,40467695,446.45 ,Compass Fostering London Ltd,25848,Peoples Services Directorate,Foster Parents,G326
http://opendatacommunities.org/id/london-borough-council/sutton,London Borough of Sutton,31/10/2020,40467755,"3,454.02 ",Compass Fostering London Ltd,25848,Peoples Services Directorate,Foster Parents,G326
http://opendatacommunities.org/id/london-borough-council/sutton,London Borough of Sutton,31/10/2020,40467756,638.44 ,Compass Fostering London Ltd,25848,Peoples Services Directorate,Foster Parents,G326
http://opendatacommunities.org/id/london-borough-council/sutton,London Borough of Sutton,01/10/2020,40467757,"3,365.67 ",Compass Fostering London Ltd,25848,Peoples Services Directorate,Foster Parents,G326
http://opendatacommunities.org/id/london-borough-council/sutton,London Borough of Sutton,01/10/2020,40467717,"4,054.49 ",Compass Fostering South Ltd,27957,Peoples Services Directorate,Foster Parents,G326
http://opendatacommunities.org/id/london-borough-council/sutton,London Borough of Sutton,01/10/2020,40467649,"3,454.02 ",Compass Fostering West Ltd,34686,Peoples Services Directorate,Foster Parents,G326
http://opendatacommunities.org/id/london-borough-council/sutton,London Borough of Sutton,05/11/2020,6980852,"1,535.00 ",Complete Ecology Ltd,97660,"Environment, Housing & Regeneration Directorate",Nature Conservation,G014
http://opendatacommunities.org/id/london-borough-council/sutton,London Borough of Sutton,30/10/2020,6980563,"1,150.58 ",Consult54 Ltd,26814,"Environment, Housing & Regeneration Directorate",Fees - Consultants (Ad Hoc),F283
http://opendatacommunities.org/id/london-borough-council/sutton,London Borough of Sutton,31/10/2020,6981415,535.25 ,Cooper & Co Chemist,20044,Health and Wellbeing Directorate,Provider Contract Payments,F470
http://opendatacommunities.org/id/london-borough-council/sutton,London Borough of Sutton,02/11/2020,6980541,"15,000.00 ",Cornerstone Property Assets Limited,35046,Resources Directorate,Fees - Consultants (Ad Hoc),F283
http://opendatacommunities.org/id/london-borough-council/sutton,London Borough of Sutton,07/10/2020,40467652,"14,642.75 ",Cornerways Childrens Services Ltd,18435,Peoples Services Directorate,Residential Care-Children,G330
http://opendatacommunities.org/id/london-borough-council/sutton,London Borough of Sutton,22/10/2020,6980045,"5,424.00 ",CPCAB,34532,Peoples Services Directorate,Fees - Exams,F285
http://opendatacommunities.org/id/london-borough-council/sutton,London Borough of Sutton,22/10/2020,6980073,"2,736.00 ",CPCAB,34532,Peoples Services Directorate,Fees - Exams,F285
http://opendatacommunities.org/id/london-borough-council/sutton,London Borough of Sutton,25/11/2020,6981961,"2,223.00 ",CPCAB,34532,Peoples Services Directorate,Fees - Exams,F285
http://opendatacommunities.org/id/london-borough-council/sutton,London Borough of Sutton,01/11/2020,6980959,"151,231.67 ",Cranstoun,11184,Health and Wellbeing Directorate,Provider Contract Payments,F470
http://opendatacommunities.org/id/london-borough-council/sutton,London Borough of Sutton,01/06/2020,6981005,"91,325.00 ",Cranstoun,11184,Resources Directorate,Provider Contract Payments,F470
http://opendatacommunities.org/id/london-borough-council/sutton,London Borough of Sutton,20/11/2020,1302177,"16,635.20 ",Cressey Oasis Education Ltd,27626,Peoples Services Directorate,Independent Schools,G325
http://opendatacommunities.org/id/london-borough-council/sutton,London Borough of Sutton,20/11/2020,1302178,"15,751.67 ",Cressey Oasis Education Ltd,27626,Peoples Services Directorate,Independent Schools,G325
http://opendatacommunities.org/id/london-borough-council/sutton,London Borough of Sutton,20/11/2020,1302179,"20,373.00 ",Cressey Oasis Education Ltd,27626,Peoples Services Directorate,Independent Schools,G325
http://opendatacommunities.org/id/london-borough-council/sutton,London Borough of Sutton,20/11/2020,1302180,"26,291.00 ",Cressey Oasis Education Ltd,27626,Peoples Services Directorate,Independent Schools,G325
http://opendatacommunities.org/id/london-borough-council/sutton,London Borough of Sutton,20/11/2020,1302181,"19,125.33 ",Cressey Oasis Education Ltd,27626,Peoples Services Directorate,Independent Schools,G325
http://opendatacommunities.org/id/london-borough-council/sutton,London Borough of Sutton,20/11/2020,1302182,"18,455.00 ",Cressey Oasis Education Ltd,27626,Peoples Services Directorate,Independent Schools,G325
http://opendatacommunities.org/id/london-borough-council/sutton,London Borough of Sutton,20/11/2020,1302183,"17,991.00 ",Cressey Oasis Education Ltd,27626,Peoples Services Directorate,Independent Schools,G325
http://opendatacommunities.org/id/london-borough-council/sutton,London Borough of Sutton,20/11/2020,1302184,"18,918.67 ",Cressey Oasis Education Ltd,27626,Peoples Services Directorate,Independent Schools,G325
http://opendatacommunities.org/id/london-borough-council/sutton,London Borough of Sutton,20/11/2020,1302185,"26,668.00 ",Cressey Oasis Education Ltd,27626,Peoples Services Directorate,Independent Schools,G325
http://opendatacommunities.org/id/london-borough-council/sutton,London Borough of Sutton,20/11/2020,1302186,"18,297.00 ",Cressey Oasis Education Ltd,27626,Peoples Services Directorate,Independent Schools,G325
http://opendatacommunities.org/id/london-borough-council/sutton,London Borough of Sutton,20/11/2020,1302187,"28,023.33 ",Cressey Oasis Education Ltd,27626,Peoples Services Directorate,Independent Schools,G325
http://opendatacommunities.org/id/london-borough-council/sutton,London Borough of Sutton,20/11/2020,1302188,"16,992.00 ",Cressey Oasis Education Ltd,27626,Peoples Services Directorate,Independent Schools,G325
http://opendatacommunities.org/id/london-borough-council/sutton,London Borough of Sutton,20/11/2020,1302189,"18,297.00 ",Cressey Oasis Education Ltd,27626,Peoples Services Directorate,Independent Schools,G325
http://opendatacommunities.org/id/london-borough-council/sutton,London Borough of Sutton,20/11/2020,1302190,"19,144.00 ",Cressey Oasis Education Ltd,27626,Peoples Services Directorate,Independent Schools,G325
http://opendatacommunities.org/id/london-borough-council/sutton,London Borough of Sutton,20/11/2020,1302191,"17,201.33 ",Cressey Oasis Education Ltd,27626,Peoples Services Directorate,Independent Schools,G325
http://opendatacommunities.org/id/london-borough-council/sutton,London Borough of Sutton,20/11/2020,1302192,"22,041.00 ",Cressey Oasis Education Ltd,27626,Peoples Services Directorate,Independent Schools,G325
http://opendatacommunities.org/id/london-borough-council/sutton,London Borough of Sutton,20/11/2020,1302193,"21,715.33 ",Cressey Oasis Education Ltd,27626,Peoples Services Directorate,Independent Schools,G325
http://opendatacommunities.org/id/london-borough-council/sutton,London Borough of Sutton,15/10/2020,6980523,483.17 ,Crest Manor Ltd,25469,Peoples Services Directorate,Approved Lodgings,H323
http://opendatacommunities.org/id/london-borough-council/sutton,London Borough of Sutton,30/10/2020,40466681,"2,908.16 ",CRNH Ltd T/A St Judes Nursing Home,14297,Peoples Services Directorate,Nursing Care - Ext Provider,G311
http://opendatacommunities.org/id/london-borough-council/sutton,London Borough of Sutton,30/10/2020,40466682,"3,612.00 ",CRNH Ltd T/A St Judes Nursing Home,14297,Peoples Services Directorate,Nursing Care - Ext Provider,G311
http://opendatacommunities.org/id/london-borough-council/sutton,London Borough of Sutton,30/10/2020,40466728,"3,545.44 ",CRNH Ltd T/A St Judes Nursing Home,14297,Peoples Services Directorate,Nursing Care - Ext Provider,G311
http://opendatacommunities.org/id/london-borough-council/sutton,London Borough of Sutton,30/10/2020,40466740,"3,612.00 ",CRNH Ltd T/A St Judes Nursing Home,14297,Peoples Services Directorate,Nursing Care - Ext Provider,G311
http://opendatacommunities.org/id/london-borough-council/sutton,London Borough of Sutton,30/10/2020,40466767,"3,872.00 ",CRNH Ltd T/A St Judes Nursing Home,14297,Peoples Services Directorate,Nursing Care - Ext Provider,G311
http://opendatacommunities.org/id/london-borough-council/sutton,London Borough of Sutton,30/10/2020,40466908,"4,070.40 ",CRNH Ltd T/A St Judes Nursing Home,14297,Peoples Services Directorate,Nursing Care - Ext Provider,G311
http://opendatacommunities.org/id/london-borough-council/sutton,London Borough of Sutton,30/10/2020,40466937,"3,556.00 ",CRNH Ltd T/A St Judes Nursing Home,14297,Peoples Services Directorate,Nursing Care - Ext Provider,G311
http://opendatacommunities.org/id/london-borough-council/sutton,London Borough of Sutton,30/10/2020,40467015,"3,502.08 ",CRNH Ltd T/A St Judes Nursing Home,14297,Peoples Services Directorate,Nursing Care - Ext Provider,G311
http://opendatacommunities.org/id/london-borough-council/sutton,London Borough of Sutton,30/10/2020,40467016,"3,555.32 ",CRNH Ltd T/A St Judes Nursing Home,14297,Peoples Services Directorate,Nursing Care - Ext Provider,G311
http://opendatacommunities.org/id/london-borough-council/sutton,London Borough of Sutton,30/10/2020,40467017,"3,612.00 ",CRNH Ltd T/A St Judes Nursing Home,14297,Peoples Services Directorate,Nursing Care - Ext Provider,G311
http://opendatacommunities.org/id/london-borough-council/sutton,London Borough of Sutton,27/11/2020,40473986,"2,908.16 ",CRNH Ltd T/A St Judes Nursing Home,14297,Peoples Services Directorate,Nursing Care - Ext Provider,G311
http://opendatacommunities.org/id/london-borough-council/sutton,London Borough of Sutton,27/11/2020,40474041,"3,612.00 ",CRNH Ltd T/A St Judes Nursing Home,14297,Peoples Services Directorate,Nursing Care - Ext Provider,G311
http://opendatacommunities.org/id/london-borough-council/sutton,London Borough of Sutton,27/11/2020,40474048,"3,545.44 ",CRNH Ltd T/A St Judes Nursing Home,14297,Peoples Services Directorate,Nursing Care - Ext Provider,G311
http://opendatacommunities.org/id/london-borough-council/sutton,London Borough of Sutton,27/11/2020,40474066,"2,627.43 ",CRNH Ltd T/A St Judes Nursing Home,14297,Peoples Services Directorate,Nursing Care - Ext Provider,G311
http://opendatacommunities.org/id/london-borough-council/sutton,London Borough of Sutton,27/11/2020,40474213,"3,556.00 ",CRNH Ltd T/A St Judes Nursing Home,14297,Peoples Services Directorate,Nursing Care - Ext Provider,G311
http://opendatacommunities.org/id/london-borough-council/sutton,London Borough of Sutton,27/11/2020,40474223,"4,070.40 ",CRNH Ltd T/A St Judes Nursing Home,14297,Peoples Services Directorate,Nursing Care - Ext Provider,G311
http://opendatacommunities.org/id/london-borough-council/sutton,London Borough of Sutton,27/11/2020,40474299,"3,612.00 ",CRNH Ltd T/A St Judes Nursing Home,14297,Peoples Services Directorate,Nursing Care - Ext Provider,G311
http://opendatacommunities.org/id/london-borough-council/sutton,London Borough of Sutton,27/11/2020,40474322,"3,502.08 ",CRNH Ltd T/A St Judes Nursing Home,14297,Peoples Services Directorate,Nursing Care - Ext Provider,G311
http://opendatacommunities.org/id/london-borough-council/sutton,London Borough of Sutton,27/11/2020,40474326,"3,555.32 ",CRNH Ltd T/A St Judes Nursing Home,14297,Peoples Services Directorate,Nursing Care - Ext Provider,G311
http://opendatacommunities.org/id/london-borough-council/sutton,London Borough of Sutton,27/11/2020,40474368,"3,612.00 ",CRNH Ltd T/A St Judes Nursing Home,14297,Peoples Services Directorate,Nursing Care - Ext Provider,G311
http://opendatacommunities.org/id/london-borough-council/sutton,London Borough of Sutton,30/10/2020,40466656,"3,171.44 ",Cross Care Services Ltd,12165,Peoples Services Directorate,Nursing Care - Ext Provider,G311
http://opendatacommunities.org/id/london-borough-council/sutton,London Borough of Sutton,30/10/2020,40466657,"3,612.00 ",Cross Care Services Ltd,12165,Peoples Services Directorate,Nursing Care - Ext Provider,G311
http://opendatacommunities.org/id/london-borough-council/sutton,London Borough of Sutton,30/10/2020,40466714,"3,870.00 ",Cross Care Services Ltd,12165,Peoples Services Directorate,Nursing Care - Ext Provider,G311
http://opendatacommunities.org/id/london-borough-council/sutton,London Borough of Sutton,30/10/2020,40466715,"3,612.00 ",Cross Care Services Ltd,12165,Peoples Services Directorate,Nursing Care - Ext Provider,G311
http://opendatacommunities.org/id/london-borough-council/sutton,London Borough of Sutton,30/10/2020,40466783,"3,502.08 ",Cross Care Services Ltd,12165,Peoples Services Directorate,Nursing Care - Ext Provider,G311
http://opendatacommunities.org/id/london-borough-council/sutton,London Borough of Sutton,30/10/2020,40466807,"3,611.68 ",Cross Care Services Ltd,12165,Peoples Services Directorate,Nursing Care - Ext Provider,G311
http://opendatacommunities.org/id/london-borough-council/sutton,London Borough of Sutton,30/10/2020,40466851,"3,612.00 ",Cross Care Services Ltd,12165,Peoples Services Directorate,Nursing Care - Ext Provider,G311
http://opendatacommunities.org/id/london-borough-council/sutton,London Borough of Sutton,30/10/2020,40466852,"3,502.24 ",Cross Care Services Ltd,12165,Peoples Services Directorate,Nursing Care - Short Term Placements,G328
http://opendatacommunities.org/id/london-borough-council/sutton,London Borough of Sutton,27/11/2020,40474020,"3,612.00 ",Cross Care Services Ltd,12165,Peoples Services Directorate,Nursing Care - Ext Provider,G311
http://opendatacommunities.org/id/london-borough-council/sutton,London Borough of Sutton,27/11/2020,40474050,"3,612.00 ",Cross Care Services Ltd,12165,Peoples Services Directorate,Nursing Care - Ext Provider,G311
http://opendatacommunities.org/id/london-borough-council/sutton,London Borough of Sutton,27/11/2020,40474070,"3,502.08 ",Cross Care Services Ltd,12165,Peoples Services Directorate,Nursing Care - Ext Provider,G311
http://opendatacommunities.org/id/london-borough-council/sutton,London Borough of Sutton,27/11/2020,40474133,"3,611.68 ",Cross Care Services Ltd,12165,Peoples Services Directorate,Nursing Care - Ext Provider,G311
http://opendatacommunities.org/id/london-borough-council/sutton,London Borough of Sutton,27/11/2020,40474151,"3,502.24 ",Cross Care Services Ltd,12165,Peoples Services Directorate,Nursing Care - Short Term Placements,G328
http://opendatacommunities.org/id/london-borough-council/sutton,London Borough of Sutton,27/11/2020,40474184,"3,612.00 ",Cross Care Services Ltd,12165,Peoples Services Directorate,Nursing Care - Ext Provider,G311
http://opendatacommunities.org/id/london-borough-council/sutton,London Borough of Sutton,27/11/2020,40474351,"3,171.44 ",Cross Care Services Ltd,12165,Peoples Services Directorate,Nursing Care - Ext Provider,G311
http://opendatacommunities.org/id/london-borough-council/sutton,London Borough of Sutton,27/11/2020,40474377,"3,612.00 ",Cross Care Services Ltd,12165,Peoples Services Directorate,Nursing Care - Ext Provider,G311
http://opendatacommunities.org/id/london-borough-council/sutton,London Borough of Sutton,30/10/2020,40466741,"2,634.68 ",Crossways Community,11187,Peoples Services Directorate,Residential Care - Ext Provider,G310
http://opendatacommunities.org/id/london-borough-council/sutton,London Borough of Sutton,30/10/2020,40466775,"4,168.24 ",Crossways Community,11187,Peoples Services Directorate,Residential Care - Ext Provider,G310
http://opendatacommunities.org/id/london-borough-council/sutton,London Borough of Sutton,27/11/2020,40474035,"2,634.68 ",Crossways Community,11187,Peoples Services Directorate,Residential Care - Ext Provider,G310
http://opendatacommunities.org/id/london-borough-council/sutton,London Borough of Sutton,27/11/2020,40474055,"4,168.24 ",Crossways Community,11187,Peoples Services Directorate,Residential Care - Ext Provider,G310
http://opendatacommunities.org/id/london-borough-council/sutton,London Borough of Sutton,05/10/2020,6979327,"37,249.87 ",Croydon Council,11227,"Environment, Housing & Regeneration Directorate",Civic Amenity,G172
http://opendatacommunities.org/id/london-borough-council/sutton,London Borough of Sutton,05/10/2020,6979328,"39,837.42 ",Croydon Council,11227,"Environment, Housing & Regeneration Directorate",Civic Amenity,G172
http://opendatacommunities.org/id/london-borough-council/sutton,London Borough of Sutton,09/07/2020,6980166,"274,481.67 ",Croydon Council,11227,"Environment, Housing & Regeneration Directorate",Gate Fee Tonnage,G105
http://opendatacommunities.org/id/london-borough-council/sutton,London Borough of Sutton,09/07/2020,6980167,"30,228.67 ",Croydon Council,11227,"Environment, Housing & Regeneration Directorate",Civic Amenity,G172
http://opendatacommunities.org/id/london-borough-council/sutton,London Borough of Sutton,01/11/2020,6981428,704.56 ,CSL Dualcom Ltd,28014,Resources Directorate,FM - Planned Maintenance Contract - Mitie,G613
http://opendatacommunities.org/id/london-borough-council/sutton,London Borough of Sutton,30/10/2020,40466947,"7,200.00 ",CSS Ltd t/a Grove Care,19184,Peoples Services Directorate,Residential Care - Ext Provider,G310
http://opendatacommunities.org/id/london-borough-council/sutton,London Borough of Sutton,27/11/2020,40474245,"7,200.00 ",CSS Ltd t/a Grove Care,19184,Peoples Services Directorate,Residential Care - Ext Provider,G310
http://opendatacommunities.org/id/london-borough-council/sutton,London Borough of Sutton,01/12/2020,1302209,600.00 ,Culvers House Primary School,11252,Peoples Services Directorate,Payments to Schools,G065
http://opendatacommunities.org/id/london-borough-council/sutton,London Borough of Sutton,13/11/2020,6981476,"1,096.00 ",D Hillier,99898,"Environment, Housing & Regeneration Directorate",Depositors,X460
http://opendatacommunities.org/id/london-borough-council/sutton,London Borough of Sutton,03/11/2020,6980744,746.00 ,D Karapinar,26474,"Environment, Housing & Regeneration Directorate",Temporary Protection - Homeless Persons,H300
http://opendatacommunities.org/id/london-borough-council/sutton,London Borough of Sutton,02/11/2020,6981452,"4,381.50 ",Daisy Bogg Consultancy Ltd,26425,Peoples Services Directorate,Training - Course Fees,A520
http://opendatacommunities.org/id/london-borough-council/sutton,London Borough of Sutton,02/11/2020,6981453,"1,496.25 ",Daisy Bogg Consultancy Ltd,26425,Peoples Services Directorate,Training - Course Fees,A520
http://opendatacommunities.org/id/london-borough-council/sutton,London Borough of Sutton,23/11/2020,6981975,528.60 ,Dariba Design Ltd,99815,"Environment, Housing & Regeneration Directorate",Grants -Made,Y610
http://opendatacommunities.org/id/london-borough-council/sutton,London Borough of Sutton,01/11/2020,6980412,"2,839.99 ",David Rea T/A Angel Lettings,18658,"Environment, Housing & Regeneration Directorate",Temporary Protection - Homeless Persons,H300
http://opendatacommunities.org/id/london-borough-council/sutton,London Borough of Sutton,01/12/2020,6982157,"2,839.99 ",David Rea T/A Angel Lettings,18658,"Environment, Housing & Regeneration Directorate",Temporary Protection - Homeless Persons,H300
http://opendatacommunities.org/id/london-borough-council/sutton,London Borough of Sutton,01/11/2020,6980411,"2,839.99 ",David Rea T/A Dreamlettings,11391,"Environment, Housing & Regeneration Directorate",Temporary Protection - Homeless Persons,H300
http://opendatacommunities.org/id/london-borough-council/sutton,London Borough of Sutton,01/12/2020,6982156,"2,839.99 ",David Rea T/A Dreamlettings,11391,"Environment, Housing & Regeneration Directorate",Temporary Protection - Homeless Persons,H300
http://opendatacommunities.org/id/london-borough-council/sutton,London Borough of Sutton,29/10/2020,6980384,"1,209.00 ",David V.  Randall,29122,"Environment, Housing & Regeneration Directorate",Temporary Protection - Homeless Persons,H300
http://opendatacommunities.org/id/london-borough-council/sutton,London Borough of Sutton,16/11/2020,6981435,"1,209.00 ",David V.  Randall,29122,"Environment, Housing & Regeneration Directorate",Temporary Protection - Homeless Persons,H300
http://opendatacommunities.org/id/london-borough-council/sutton,London Borough of Sutton,11/10/2020,40469363,424.00 ,Day and Nite Services,26773,Peoples Services Directorate,Home Care,G334
http://opendatacommunities.org/id/london-borough-council/sutton,London Borough of Sutton,25/10/2020,40469364,424.00 ,Day and Nite Services,26773,Peoples Services Directorate,Home Care,G334
http://opendatacommunities.org/id/london-borough-council/sutton,London Borough of Sutton,11/10/2020,40469368,672.00 ,Day and Nite Services,26773,Peoples Services Directorate,Home Care,G334
http://opendatacommunities.org/id/london-borough-council/sutton,London Borough of Sutton,25/10/2020,40469369,672.00 ,Day and Nite Services,26773,Peoples Services Directorate,Home Care,G334
http://opendatacommunities.org/id/london-borough-council/sutton,London Borough of Sutton,11/10/2020,40469417,560.00 ,Day and Nite Services,26773,Peoples Services Directorate,Home Care,G334
http://opendatacommunities.org/id/london-borough-council/sutton,London Borough of Sutton,25/10/2020,40469418,560.00 ,Day and Nite Services,26773,Peoples Services Directorate,Home Care,G334
http://opendatacommunities.org/id/london-borough-council/sutton,London Borough of Sutton,18/10/2020,40473041,424.00 ,Day and Nite Services,26773,Peoples Services Directorate,Home Care,G334
http://opendatacommunities.org/id/london-borough-council/sutton,London Borough of Sutton,18/10/2020,40473042,672.00 ,Day and Nite Services,26773,Peoples Services Directorate,Home Care,G334
http://opendatacommunities.org/id/london-borough-council/sutton,London Borough of Sutton,18/10/2020,40473061,560.00 ,Day and Nite Services,26773,Peoples Services Directorate,Home Care,G334
http://opendatacommunities.org/id/london-borough-council/sutton,London Borough of Sutton,01/11/2020,6980544,"1,231.20 ",REDACTED - PERSONAL DATA,35091,Peoples Services Directorate,Miscellaneous Costs,G499
http://opendatacommunities.org/id/london-borough-council/sutton,London Borough of Sutton,29/06/2020,6980591,995.00 ,Democracy Counts Ltd,30131,Resources Directorate,Fees - Computer Software,F384
http://opendatacommunities.org/id/london-borough-council/sutton,London Borough of Sutton,11/11/2020,6981319,"1,116.00 ",Denhan Property Services,28353,"Environment, Housing & Regeneration Directorate",Bed and Breakfast Accommodation,G400
http://opendatacommunities.org/id/london-borough-council/sutton,London Borough of Sutton,11/11/2020,6981320,"1,681.75 ",Denhan Property Services,28353,"Environment, Housing & Regeneration Directorate",Bed and Breakfast Accommodation,G400
http://opendatacommunities.org/id/london-borough-council/sutton,London Borough of Sutton,11/11/2020,6981321,"1,619.75 ",Denhan Property Services,28353,"Environment, Housing & Regeneration Directorate",Bed and Breakfast Accommodation,G400
http://opendatacommunities.org/id/london-borough-council/sutton,London Borough of Sutton,11/11/2020,6981322,"1,302.00 ",Denhan Property Services,28353,"Environment, Housing & Regeneration Directorate",Bed and Breakfast Accommodation,G400
http://opendatacommunities.org/id/london-borough-council/sutton,London Borough of Sutton,11/11/2020,6981324,"1,984.00 ",Denhan Property Services,28353,"Environment, Housing & Regeneration Directorate",Bed and Breakfast Accommodation,G400
http://opendatacommunities.org/id/london-borough-council/sutton,London Borough of Sutton,30/10/2020,40466979,"2,918.00 ",Denville Hall 2012,35324,Peoples Services Directorate,Residential Care - Ext Provider,G310
http://opendatacommunities.org/id/london-borough-council/sutton,London Borough of Sutton,27/11/2020,40474276,"2,918.00 ",Denville Hall 2012,35324,Peoples Services Directorate,Residential Care - Ext Provider,G310
http://opendatacommunities.org/id/london-borough-council/sutton,London Borough of Sutton,02/11/2020,1301685,"4,925.00 ",Devonshire Primary School,11321,Peoples Services Directorate,Top-up Funding,G064
http://opendatacommunities.org/id/london-borough-council/sutton,London Borough of Sutton,22/11/2020,6982181,"1,300.00 ",D'Gama Ltd,26438,"Environment, Housing & Regeneration Directorate",Temporary Protection - Homeless Persons,H300
http://opendatacommunities.org/id/london-borough-council/sutton,London Borough of Sutton,22/10/2020,6982182,"1,300.00 ",D'Gama Ltd,26438,"Environment, Housing & Regeneration Directorate",Temporary Protection - Homeless Persons,H300
http://opendatacommunities.org/id/london-borough-council/sutton,London Borough of Sutton,20/10/2020,6979996,"2,160.00 ",Digital Catapult Services Ltd,32157,"Environment, Housing & Regeneration Directorate",Other Services,F340
http://opendatacommunities.org/id/london-borough-council/sutton,London Borough of Sutton,17/11/2020,1301891,"3,718.00 ",Direct Care And Support Services,23268,Peoples Services Directorate,Contract Cleaning,D806
http://opendatacommunities.org/id/london-borough-council/sutton,London Borough of Sutton,29/09/2020,40467078,"1,570.80 ",Direct Care And Support Services,23268,Peoples Services Directorate,Supported Living - Ext Provider,G306
http://opendatacommunities.org/id/london-borough-council/sutton,London Borough of Sutton,29/09/2020,40467121,"7,669.20 ",Direct Care And Support Services,23268,Peoples Services Directorate,Supported Living - Ext Provider,G306
http://opendatacommunities.org/id/london-borough-council/sutton,London Borough of Sutton,29/09/2020,40470799,"2,232.44 ",Direct Care And Support Services,23268,Peoples Services Directorate,Supported Living - Ext Provider,G306
http://opendatacommunities.org/id/london-borough-council/sutton,London Borough of Sutton,30/10/2020,40473119,"3,132.80 ",Direct Care And Support Services,23268,Peoples Services Directorate,Supported Living - Ext Provider,G306
http://opendatacommunities.org/id/london-borough-council/sutton,London Borough of Sutton,30/10/2020,40473120,"2,116.80 ",Direct Care And Support Services,23268,Peoples Services Directorate,Supported Living - Ext Provider,G306
http://opendatacommunities.org/id/london-borough-council/sutton,London Borough of Sutton,30/10/2020,40473122,"2,128.28 ",Direct Care And Support Services,23268,Peoples Services Directorate,Supported Living - Ext Provider,G306
http://opendatacommunities.org/id/london-borough-council/sutton,London Borough of Sutton,30/10/2020,40473123,"1,299.48 ",Direct Care And Support Services,23268,Peoples Services Directorate,Supported Living - Ext Provider,G306
http://opendatacommunities.org/id/london-borough-council/sutton,London Borough of Sutton,30/10/2020,40473124,"4,470.88 ",Direct Care And Support Services,23268,Peoples Services Directorate,Supported Living - Ext Provider,G306
http://opendatacommunities.org/id/london-borough-council/sutton,London Borough of Sutton,30/10/2020,40473126,"2,256.24 ",Direct Care And Support Services,23268,Peoples Services Directorate,Supported Living - Ext Provider,G306
http://opendatacommunities.org/id/london-borough-council/sutton,London Borough of Sutton,30/10/2020,40473128,"4,062.24 ",Direct Care And Support Services,23268,Peoples Services Directorate,Supported Living - Ext Provider,G306
http://opendatacommunities.org/id/london-borough-council/sutton,London Borough of Sutton,30/10/2020,40473129,"2,450.00 ",Direct Care And Support Services,23268,Peoples Services Directorate,Supported Living - Ext Provider,G306
http://opendatacommunities.org/id/london-borough-council/sutton,London Borough of Sutton,30/10/2020,40473130,"2,232.44 ",Direct Care And Support Services,23268,Peoples Services Directorate,Supported Living - Ext Provider,G306
http://opendatacommunities.org/id/london-borough-council/sutton,London Borough of Sutton,30/10/2020,40473131,"2,204.16 ",Direct Care And Support Services,23268,Peoples Services Directorate,Supported Living - Ext Provider,G306
http://opendatacommunities.org/id/london-borough-council/sutton,London Borough of Sutton,30/10/2020,40473132,"5,514.48 ",Direct Care And Support Services,23268,Peoples Services Directorate,Supported Living - Ext Provider,G306
http://opendatacommunities.org/id/london-borough-council/sutton,London Borough of Sutton,30/10/2020,40473133,"3,496.00 ",Direct Care And Support Services,23268,Peoples Services Directorate,Supported Living - Ext Provider,G306
http://opendatacommunities.org/id/london-borough-council/sutton,London Borough of Sutton,30/10/2020,40473134,"1,570.80 ",Direct Care And Support Services,23268,Peoples Services Directorate,Supported Living - Ext Provider,G306
http://opendatacommunities.org/id/london-borough-council/sutton,London Borough of Sutton,30/10/2020,40473446,"7,669.20 ",Direct Care And Support Services,23268,Peoples Services Directorate,Supported Living - Ext Provider,G306
http://opendatacommunities.org/id/london-borough-council/sutton,London Borough of Sutton,17/11/2020,6981595,"11,695.00 ",Dorchester Primary School,11376,Peoples Services Directorate,Equipment It,Y523
http://opendatacommunities.org/id/london-borough-council/sutton,London Borough of Sutton,11/11/2020,6981080,"1,000.00 ",Dr Bilikisu A Alatishe,27008,"Environment, Housing & Regeneration Directorate",Temporary Protection - Homeless Persons,H300
http://opendatacommunities.org/id/london-borough-council/sutton,London Borough of Sutton,02/11/2020,6980951,440.00 ,Dr Sharon Harvey,35686,Peoples Services Directorate,Personal Requisites,F106
http://opendatacommunities.org/id/london-borough-council/sutton,London Borough of Sutton,01/12/2020,6981719,440.00 ,Dr Sharon Harvey,35686,Peoples Services Directorate,Personal Requisites,F106
http://opendatacommunities.org/id/london-borough-council/sutton,London Borough of Sutton,30/11/2020,6982192,"1,500.00 ",Drew Gildea,35375,Resources Directorate,General Office Expenses,F235
http://opendatacommunities.org/id/london-borough-council/sutton,London Borough of Sutton,06/11/2020,6980865,437.49 ,DSI Billing Services Ltd,17962,Resources Directorate,Postages - General,F350
http://opendatacommunities.org/id/london-borough-council/sutton,London Borough of Sutton,06/11/2020,6980865,437.49 ,DSI Billing Services Ltd,17962,Resources Directorate,Postages - General,F350
http://opendatacommunities.org/id/london-borough-council/sutton,London Borough of Sutton,19/11/2020,6981582,887.61 ,DSI Billing Services Ltd,17962,Resources Directorate,Postages - General,F350
http://opendatacommunities.org/id/london-borough-council/sutton,London Borough of Sutton,19/11/2020,6981582,887.61 ,DSI Billing Services Ltd,17962,Resources Directorate,Postages - General,F350
http://opendatacommunities.org/id/london-borough-council/sutton,London Borough of Sutton,01/10/2020,6980595,"3,653.57 ",Dunfield & Mead Ltd,28055,Peoples Services Directorate,Approved Lodgings,H323
http://opendatacommunities.org/id/london-borough-council/sutton,London Borough of Sutton,01/10/2020,6980596,"1,472.14 ",Dunfield & Mead Ltd,28055,Peoples Services Directorate,Approved Lodgings,H323
http://opendatacommunities.org/id/london-borough-council/sutton,London Borough of Sutton,01/10/2020,6980597,"1,660.71 ",Dunfield & Mead Ltd,28055,Peoples Services Directorate,Approved Lodgings,H323
http://opendatacommunities.org/id/london-borough-council/sutton,London Borough of Sutton,01/10/2020,6980598,"3,653.57 ",Dunfield & Mead Ltd,28055,Peoples Services Directorate,Approved Lodgings,H323
http://opendatacommunities.org/id/london-borough-council/sutton,London Borough of Sutton,01/10/2020,6980599,"3,653.57 ",Dunfield & Mead Ltd,28055,Peoples Services Directorate,Approved Lodgings,H323
http://opendatacommunities.org/id/london-borough-council/sutton,London Borough of Sutton,01/10/2020,6980600,"3,653.57 ",Dunfield & Mead Ltd,28055,Peoples Services Directorate,Approved Lodgings,H323
http://opendatacommunities.org/id/london-borough-council/sutton,London Borough of Sutton,01/10/2020,6980601,"2,546.42 ",Dunfield & Mead Ltd,28055,Peoples Services Directorate,Approved Lodgings,H323
http://opendatacommunities.org/id/london-borough-council/sutton,London Borough of Sutton,01/10/2020,6980602,"4,009.85 ",Dunfield & Mead Ltd,28055,Peoples Services Directorate,Living Allowance,H322
http://opendatacommunities.org/id/london-borough-council/sutton,London Borough of Sutton,01/10/2020,6980603,"3,474.64 ",Dunfield & Mead Ltd,28055,Peoples Services Directorate,Approved Lodgings,H323
http://opendatacommunities.org/id/london-borough-council/sutton,London Borough of Sutton,01/10/2020,6980604,896.42 ,Dunfield & Mead Ltd,28055,Peoples Services Directorate,Approved Lodgings,H323
http://opendatacommunities.org/id/london-borough-council/sutton,London Borough of Sutton,01/10/2020,6980605,"1,771.42 ",Dunfield & Mead Ltd,28055,Peoples Services Directorate,Approved Lodgings,H323
http://opendatacommunities.org/id/london-borough-council/sutton,London Borough of Sutton,01/10/2020,6981496,842.14 ,Dunfield & Mead Ltd,28055,Peoples Services Directorate,Living Allowance,H322
http://opendatacommunities.org/id/london-borough-council/sutton,London Borough of Sutton,01/11/2020,40467627,"4,683.20 ",Dunfield & Mead Ltd,28055,Peoples Services Directorate,Accommodation - Supported Living,H201
http://opendatacommunities.org/id/london-borough-council/sutton,London Borough of Sutton,01/11/2020,40467628,"4,018.92 ",Dunfield & Mead Ltd,28055,Peoples Services Directorate,Accommodation - Supported Living,H201
http://opendatacommunities.org/id/london-borough-council/sutton,London Borough of Sutton,01/11/2020,40467629,"4,351.07 ",Dunfield & Mead Ltd,28055,Peoples Services Directorate,Approved Lodgings,H323
http://opendatacommunities.org/id/london-borough-council/sutton,London Borough of Sutton,01/11/2020,40467723,"4,683.20 ",Dunfield & Mead Ltd,28055,Peoples Services Directorate,Accommodation - Supported Living,H201
http://opendatacommunities.org/id/london-borough-council/sutton,London Borough of Sutton,01/11/2020,40467724,"4,683.20 ",Dunfield & Mead Ltd,28055,Peoples Services Directorate,Accommodation - Supported Living,H201
http://opendatacommunities.org/id/london-borough-council/sutton,London Borough of Sutton,01/11/2020,40467744,"4,018.92 ",Dunfield & Mead Ltd,28055,Peoples Services Directorate,Accommodation - Supported Living,H201
http://opendatacommunities.org/id/london-borough-council/sutton,London Borough of Sutton,01/11/2020,40472611,561.42 ,Dunfield & Mead Ltd,28055,Peoples Services Directorate,Approved Lodgings,H323
http://opendatacommunities.org/id/london-borough-council/sutton,London Borough of Sutton,30/10/2020,40466847,"3,071.92 ",Dunheved Lodge,11403,Peoples Services Directorate,Residential Care - Ext Provider,G310
http://opendatacommunities.org/id/london-borough-council/sutton,London Borough of Sutton,30/10/2020,40466847,"3,016.00 ",Dunheved Lodge,11403,Peoples Services Directorate,One to One Care,G335
http://opendatacommunities.org/id/london-borough-council/sutton,London Borough of Sutton,27/11/2020,40474163,"3,071.92 ",Dunheved Lodge,11403,Peoples Services Directorate,Residential Care - Ext Provider,G310
http://opendatacommunities.org/id/london-borough-council/sutton,London Borough of Sutton,27/11/2020,40474163,"3,016.00 ",Dunheved Lodge,11403,Peoples Services Directorate,One to One Care,G335
http://opendatacommunities.org/id/london-borough-council/sutton,London Borough of Sutton,31/10/2020,6980566,"14,682.00 ",Dunheved Partnership Ltd,26353,"Environment, Housing & Regeneration Directorate",Bed and Breakfast Accommodation,G400
http://opendatacommunities.org/id/london-borough-council/sutton,London Borough of Sutton,20/10/2020,6979928,578.56 ,Dynamic Care Ltd,29928,Peoples Services Directorate,Approved Lodgings,H323
http://opendatacommunities.org/id/london-borough-council/sutton,London Borough of Sutton,20/10/2020,6979930,"1,114.27 ",Dynamic Care Ltd,29928,Peoples Services Directorate,Approved Lodgings,H323
http://opendatacommunities.org/id/london-borough-council/sutton,London Borough of Sutton,20/11/2020,6981696,"2,242.49 ",Dynamic Care Ltd,29928,Peoples Services Directorate,Approved Lodgings,H323
http://opendatacommunities.org/id/london-borough-council/sutton,London Borough of Sutton,20/11/2020,6981699,"1,151.42 ",Dynamic Care Ltd,29928,Peoples Services Directorate,Approved Lodgings,H323
http://opendatacommunities.org/id/london-borough-council/sutton,London Borough of Sutton,20/11/2020,6981700,"1,705.00 ",Dynamic Care Ltd,29928,Peoples Services Directorate,Approved Lodgings,H323
http://opendatacommunities.org/id/london-borough-council/sutton,London Borough of Sutton,20/11/2020,6981701,"1,151.42 ",Dynamic Care Ltd,29928,Peoples Services Directorate,Approved Lodgings,H323
http://opendatacommunities.org/id/london-borough-council/sutton,London Borough of Sutton,20/11/2020,6981702,597.85 ,Dynamic Care Ltd,29928,Peoples Services Directorate,Approved Lodgings,H323
http://opendatacommunities.org/id/london-borough-council/sutton,London Borough of Sutton,01/11/2020,40472593,"4,461.77 ",Dynamic Care Ltd,29928,Peoples Services Directorate,Approved Lodgings,H323
http://opendatacommunities.org/id/london-borough-council/sutton,London Borough of Sutton,01/11/2020,40472600,"4,461.77 ",Dynamic Care Ltd,29928,Peoples Services Directorate,Approved Lodgings,H323
http://opendatacommunities.org/id/london-borough-council/sutton,London Borough of Sutton,01/11/2020,40472602,"5,015.34 ",Dynamic Care Ltd,29928,Peoples Services Directorate,Approved Lodgings,H323
http://opendatacommunities.org/id/london-borough-council/sutton,London Borough of Sutton,01/11/2020,40472608,"5,568.91 ",Dynamic Care Ltd,29928,Peoples Services Directorate,Approved Lodgings,H323
http://opendatacommunities.org/id/london-borough-council/sutton,London Borough of Sutton,11/11/2020,6981397,"1,131.00 ",E & R Moffat Ltd,97126,Resources Directorate,Other Equipment - Purchase,F015
http://opendatacommunities.org/id/london-borough-council/sutton,London Borough of Sutton,31/10/2020,6981350,"16,825.15 ",E Homes And Shelters,28378,"Environment, Housing & Regeneration Directorate",Bed and Breakfast Accommodation,G400
http://opendatacommunities.org/id/london-borough-council/sutton,London Borough of Sutton,31/07/2020,6982201,"20,017.15 ",E Homes And Shelters,28378,"Environment, Housing & Regeneration Directorate",Bed and Breakfast Accommodation,G400
http://opendatacommunities.org/id/london-borough-council/sutton,London Borough of Sutton,31/08/2020,6982202,"20,034.15 ",E Homes And Shelters,28378,"Environment, Housing & Regeneration Directorate",Bed and Breakfast Accommodation,G400
http://opendatacommunities.org/id/london-borough-council/sutton,London Borough of Sutton,30/10/2020,40466773,"3,379.20 ",Eastcroft Nursing Home,11420,Peoples Services Directorate,Nursing Care - Ext Provider,G311
http://opendatacommunities.org/id/london-borough-council/sutton,London Borough of Sutton,27/11/2020,40474091,"3,379.20 ",Eastcroft Nursing Home,11420,Peoples Services Directorate,Nursing Care - Ext Provider,G311
http://opendatacommunities.org/id/london-borough-council/sutton,London Borough of Sutton,21/10/2020,6980293,976.07 ,EDF Energy (Seeboard),13999,"Environment, Housing & Regeneration Directorate",Electricity - General,D620
http://opendatacommunities.org/id/london-borough-council/sutton,London Borough of Sutton,26/10/2020,6980724,"1,936.30 ",EDF Energy (Seeboard),13999,HRA,Electricity - Anti Hypothermia Heating,D622
http://opendatacommunities.org/id/london-borough-council/sutton,London Borough of Sutton,26/10/2020,6980724,"(1,880.24)",EDF Energy (Seeboard),13999,HRA,Electricity - Anti Hypothermia Heating,D622
http://opendatacommunities.org/id/london-borough-council/sutton,London Borough of Sutton,27/10/2020,6980838,"2,843.30 ",EDF Energy (Seeboard),13999,Resources Directorate,Electricity - General,D620
http://opendatacommunities.org/id/london-borough-council/sutton,London Borough of Sutton,27/10/2020,6980842,"(2,773.64)",EDF Energy (Seeboard),13999,Resources Directorate,Electricity - General,D620
http://opendatacommunities.org/id/london-borough-council/sutton,London Borough of Sutton,02/11/2020,6980874,854.24 ,EDF Energy (Seeboard),13999,"Environment, Housing & Regeneration Directorate",Electricity - General,D620
http://opendatacommunities.org/id/london-borough-council/sutton,London Borough of Sutton,03/11/2020,6981009,"4,463.06 ",EDF Energy (Seeboard),13999,Resources Directorate,Electricity - General,D620
http://opendatacommunities.org/id/london-borough-council/sutton,London Borough of Sutton,06/11/2020,6981224,432.20 ,EDF Energy (Seeboard),13999,HRA,Electricity - Anti Hypothermia Heating,D622
http://opendatacommunities.org/id/london-borough-council/sutton,London Borough of Sutton,23/11/2020,6981797,550.00 ,Edge Training and Consultancy Limited,22919,Peoples Services Directorate,Training - Course Fees,A520
http://opendatacommunities.org/id/london-borough-council/sutton,London Borough of Sutton,31/10/2020,6980806,"14,541.72 ",Eldercare,22163,Peoples Services Directorate,Equipment,H250
http://opendatacommunities.org/id/london-borough-council/sutton,London Borough of Sutton,31/10/2020,6980818,"1,343.52 ",Eldercare,22163,Peoples Services Directorate,Agency Services,G431
http://opendatacommunities.org/id/london-borough-council/sutton,London Borough of Sutton,31/10/2020,6980886,"22,237.30 ",Eldercare,22163,Peoples Services Directorate,Agency Services,G431
http://opendatacommunities.org/id/london-borough-council/sutton,London Borough of Sutton,31/10/2020,6980975,"1,865.07 ",Eldercare,22163,Peoples Services Directorate,Agency Services,G431
http://opendatacommunities.org/id/london-borough-council/sutton,London Borough of Sutton,31/10/2020,6980976,"5,723.25 ",Eldercare,22163,Peoples Services Directorate,Agency Services,G431
http://opendatacommunities.org/id/london-borough-council/sutton,London Borough of Sutton,30/09/2020,6981362,"15,280.18 ",Eldercare,22163,Peoples Services Directorate,Equipment,H250
http://opendatacommunities.org/id/london-borough-council/sutton,London Borough of Sutton,30/10/2020,40466804,"4,484.80 ",Eleanor Nursing & Social Care Ltd,25134,Peoples Services Directorate,Residential Care - Ext Provider,G310
http://opendatacommunities.org/id/london-borough-council/sutton,London Borough of Sutton,27/11/2020,40474145,"4,484.80 ",Eleanor Nursing & Social Care Ltd,25134,Peoples Services Directorate,Residential Care - Ext Provider,G310
http://opendatacommunities.org/id/london-borough-council/sutton,London Borough of Sutton,09/11/2020,6980934,519.00 ,Elementary Signs,22214,"Environment, Housing & Regeneration Directorate",Furniture & Fittings,Y500
http://opendatacommunities.org/id/london-borough-council/sutton,London Borough of Sutton,17/11/2020,1301884,"5,408.00 ",Elite CarePlus Ltd,26199,Peoples Services Directorate,Contract Cleaning,D806
http://opendatacommunities.org/id/london-borough-council/sutton,London Borough of Sutton,30/10/2020,40466925,"7,390.52 ",Elysium Supported Living Limited,34957,Peoples Services Directorate,Residential Care - Ext Provider,G310
http://opendatacommunities.org/id/london-borough-council/sutton,London Borough of Sutton,27/11/2020,40474227,"7,390.52 ",Elysium Supported Living Limited,34957,Peoples Services Directorate,Residential Care - Ext Provider,G310
http://opendatacommunities.org/id/london-borough-council/sutton,London Borough of Sutton,31/10/2020,6980503,675.00 ,Emerging Field Ltd,35401,"Environment, Housing & Regeneration Directorate",Other Services,F340
http://opendatacommunities.org/id/london-borough-council/sutton,London Borough of Sutton,13/11/2020,6981265,547.25 ,Emily Chilvers,35695,"Environment, Housing & Regeneration Directorate",Materials - General,F100
http://opendatacommunities.org/id/london-borough-council/sutton,London Borough of Sutton,19/11/2020,40472278,"3,642.86 ",Enriched Care Ltd,35622,Peoples Services Directorate,Supported Living - Ext Provider,G306
http://opendatacommunities.org/id/london-borough-council/sutton,London Borough of Sutton,04/11/2020,6980859,"10,311.04 ",Enviva Paediatric Care/formerlyPNL Nursing Link Ltd (Pnl),28212,Peoples Services Directorate,Homecare Core Services,G336
http://opendatacommunities.org/id/london-borough-council/sutton,London Borough of Sutton,04/11/2020,40472812,458.92 ,Enviva Paediatric Care/formerlyPNL Nursing Link Ltd (Pnl),28212,Peoples Services Directorate,Provider Contract Payments,F470
http://opendatacommunities.org/id/london-borough-council/sutton,London Borough of Sutton,04/11/2020,40472813,946.05 ,Enviva Paediatric Care/formerlyPNL Nursing Link Ltd (Pnl),28212,Peoples Services Directorate,Provider Contract Payments,F470
http://opendatacommunities.org/id/london-borough-council/sutton,London Borough of Sutton,04/11/2020,40472814,"18,893.86 ",Enviva Paediatric Care/formerlyPNL Nursing Link Ltd (Pnl),28212,Peoples Services Directorate,Provider Contract Payments,F470
http://opendatacommunities.org/id/london-borough-council/sutton,London Borough of Sutton,04/11/2020,40472815,"1,822.35 ",Enviva Paediatric Care/formerlyPNL Nursing Link Ltd (Pnl),28212,Peoples Services Directorate,Provider Contract Payments,F470
http://opendatacommunities.org/id/london-borough-council/sutton,London Borough of Sutton,30/10/2020,40466640,"2,600.00 ",Eothen Homes Ltd,11539,Peoples Services Directorate,Residential Care - Ext Provider,G310
http://opendatacommunities.org/id/london-borough-council/sutton,London Borough of Sutton,30/10/2020,40466641,"2,600.00 ",Eothen Homes Ltd,11539,Peoples Services Directorate,Residential Care - Ext Provider,G310
http://opendatacommunities.org/id/london-borough-council/sutton,London Borough of Sutton,30/10/2020,40466930,"2,600.00 ",Eothen Homes Ltd,11539,Peoples Services Directorate,Residential Care - Ext Provider,G310
http://opendatacommunities.org/id/london-borough-council/sutton,London Borough of Sutton,30/10/2020,40466985,"2,600.00 ",Eothen Homes Ltd,11539,Peoples Services Directorate,Residential Care - Ext Provider,G310
http://opendatacommunities.org/id/london-borough-council/sutton,London Borough of Sutton,27/11/2020,40474237,"2,600.00 ",Eothen Homes Ltd,11539,Peoples Services Directorate,Residential Care - Ext Provider,G310
http://opendatacommunities.org/id/london-borough-council/sutton,London Borough of Sutton,27/11/2020,40474269,"2,600.00 ",Eothen Homes Ltd,11539,Peoples Services Directorate,Residential Care - Ext Provider,G310
http://opendatacommunities.org/id/london-borough-council/sutton,London Borough of Sutton,27/11/2020,40474302,"2,600.00 ",Eothen Homes Ltd,11539,Peoples Services Directorate,Residential Care - Ext Provider,G310
http://opendatacommunities.org/id/london-borough-council/sutton,London Borough of Sutton,27/11/2020,40474347,"1,578.57 ",Eothen Homes Ltd,11539,Peoples Services Directorate,Residential Care - Ext Provider,G310
http://opendatacommunities.org/id/london-borough-council/sutton,London Borough of Sutton,01/12/2020,1302208,420.00 ,Epping Upland CofE Primary School,35805,Peoples Services Directorate,Payments to Schools,G065
http://opendatacommunities.org/id/london-borough-council/sutton,London Borough of Sutton,07/10/2020,6979407,"88,672.00 ",Epsom & St Helier Nhs Trust,11542,Health and Wellbeing Directorate,Provider Contract Payments,F470
http://opendatacommunities.org/id/london-borough-council/sutton,London Borough of Sutton,17/11/2020,1301886,"1,014.00 ",Escoben Care Services Ltd,35743,Peoples Services Directorate,Contract Cleaning,D806
http://opendatacommunities.org/id/london-borough-council/sutton,London Borough of Sutton,12/11/2020,6981235,720.00 ,Esendex Limited,29045,Resources Directorate,Fees - Computer Software,F384
http://opendatacommunities.org/id/london-borough-council/sutton,London Borough of Sutton,05/10/2020,40467738,"4,086.77 ",Ethelbert Specialist Homes Ltd,11560,Peoples Services Directorate,Foster Parents,G326
http://opendatacommunities.org/id/london-borough-council/sutton,London Borough of Sutton,31/10/2020,6980529,"16,416.00 ",Euro Hotels (Croydon Court) Ltd,21414,"Environment, Housing & Regeneration Directorate",Bed and Breakfast Accommodation,G400
http://opendatacommunities.org/id/london-borough-council/sutton,London Borough of Sutton,31/10/2020,6980648,"3,103.00 ",Euro Hotels (Gilroy Court) Ltd,25822,"Environment, Housing & Regeneration Directorate",Bed and Breakfast Accommodation,G400
http://opendatacommunities.org/id/london-borough-council/sutton,London Borough of Sutton,31/10/2020,6980649,"1,085.00 ",Euro Hotels (Gilroy Court) Ltd,25822,Peoples Services Directorate,C.C.A Rent & Utilities,H211
http://opendatacommunities.org/id/london-borough-council/sutton,London Borough of Sutton,31/10/2020,6980651,"14,194.00 ",Euro Hotels (Gilroy Court) Ltd,25822,"Environment, Housing & Regeneration Directorate",Bed and Breakfast Accommodation,G400
http://opendatacommunities.org/id/london-borough-council/sutton,London Borough of Sutton,31/10/2020,6980654,"33,416.60 ",Euro Hotels (Thornton Heath) Ltd,10030,"Environment, Housing & Regeneration Directorate",Bed and Breakfast Accommodation,G400
http://opendatacommunities.org/id/london-borough-council/sutton,London Borough of Sutton,17/11/2020,1301887,"13,351.00 ",Exodus Health Care Services Ltd,33380,Peoples Services Directorate,Contract Cleaning,D806
http://opendatacommunities.org/id/london-borough-council/sutton,London Borough of Sutton,27/09/2020,40467888,796.25 ,Exodus Health Care Services Ltd,33380,Peoples Services Directorate,Home Care,G334
http://opendatacommunities.org/id/london-borough-council/sutton,London Borough of Sutton,04/10/2020,40467889,796.25 ,Exodus Health Care Services Ltd,33380,Peoples Services Directorate,Home Care,G334
http://opendatacommunities.org/id/london-borough-council/sutton,London Borough of Sutton,27/09/2020,40467910,551.15 ,Exodus Health Care Services Ltd,33380,Peoples Services Directorate,Home Care,G334
http://opendatacommunities.org/id/london-borough-council/sutton,London Borough of Sutton,04/10/2020,40467911,551.15 ,Exodus Health Care Services Ltd,33380,Peoples Services Directorate,Home Care,G334
http://opendatacommunities.org/id/london-borough-council/sutton,London Borough of Sutton,27/09/2020,40467914,612.50 ,Exodus Health Care Services Ltd,33380,Peoples Services Directorate,Home Care,G334
http://opendatacommunities.org/id/london-borough-council/sutton,London Borough of Sutton,04/10/2020,40467915,612.50 ,Exodus Health Care Services Ltd,33380,Peoples Services Directorate,Home Care,G334
